Department Family,Entity,Date of Payment,Expense Type,Expense Area,Supplier,Voluntary & Community Sector,SME Class,Sole Trader,Transaction number,Narrative,Postal Code,Amount in Sterling,Grant?
Communities & Local Government,DCLG,02/04/2012,Online Database Information Retrieval,Finance & Corporate Services,IDOX INFORMATION SOLUTIONS LTD,,Large,,5106177440,Idox database renewal 2012-13,G1 3PL,"14,940.00",
Communities & Local Government,DCLG,02/04/2012,Revenue Support grant payable,Localism,ADUR DC,,,,5000193887,Grant Payable by Exchequer,BN43 6PR,"11,838.00",Yes
Communities & Local Government,DCLG,02/04/2012,Revenue Support grant payable,Localism,ALLERDALE BOROUGH COUNCIL,,,,5000193890,Grant Payable by Exchequer,CA14 3YJ,"22,150.00",Yes
Communities & Local Government,DCLG,02/04/2012,Revenue Support grant payable,Localism,AMBER VALLEY BC,,,,5000193893,Grant Payable by Exchequer,DE5 3WZ,"21,547.00",Yes
Communities & Local Government,DCLG,02/04/2012,Revenue Support grant payable,Localism,ARUN DC,,,,5000193896,Grant Payable by Exchequer,BN17 5LF,"25,325.00",Yes
Communities & Local Government,DCLG,02/04/2012,Revenue Support grant payable,Localism,ASHFIELD DC,,,,5000193899,Grant Payable by Exchequer,NG17 8DA,"23,635.00",Yes
Communities & Local Government,DCLG,02/04/2012,Revenue Support grant payable,Localism,ASHFORD BC,,,,5000193902,Grant Payable by Exchequer,TN23 1PL,"19,244.00",Yes
Communities & Local Government,DCLG,02/04/2012,Revenue Support grant payable,Localism,AVON & SOMERSET POLICE AUTHORITY,,,,5000193905,Grant Payable by Exchequer,TA1 4DY,"247,708.00",Yes
Communities & Local Government,DCLG,02/04/2012,Revenue Support grant payable,Localism,AVON FIRE AUTHORITY,,,,5000193908,Grant Payable by Exchequer,BS1 6EU,"76,379.00",Yes
Communities & Local Government,DCLG,02/04/2012,Revenue Support grant payable,Localism,AYLESBURY VALE DC,,,,5000193911,Grant Payable by Exchequer,HP20 1SD,"30,371.00",Yes
Communities & Local Government,DCLG,02/04/2012,Revenue Support grant payable,Localism,BABERGH DC,,,,5000193914,Grant Payable by Exchequer,IP7 6SJ,"15,332.00",Yes
Communities & Local Government,DCLG,02/04/2012,Revenue Support grant payable,Localism,BARKING & DAGENHAM LB,,,,5000193917,Grant Payable by Exchequer,RM10 7BY,"302,132.00",Yes
Communities & Local Government,DCLG,02/04/2012,Revenue Support grant payable,Localism,BARNET LBC,,,,5000193920,Grant Payable by Exchequer,NW4 4BG,"404,424.00",Yes
Communities & Local Government,DCLG,02/04/2012,Revenue Support grant payable,Localism,BARNSLEY MBC,,,,5000193923,Grant Payable by Exchequer,S70 2AQ,"343,562.00",Yes
Communities & Local Government,DCLG,02/04/2012,Revenue Support grant payable,Localism,BARROW BC,,,,5000193926,Grant Payable by Exchequer,LA14 2LD,"19,006.00",Yes
Communities & Local Government,DCLG,02/04/2012,Revenue Support grant payable,Localism,BASILDON DC,,,,5000193929,Grant Payable by Exchequer,SS14 0DF,"39,371.00",Yes
Communities & Local Government,DCLG,02/04/2012,Revenue Support grant payable,Localism,BASINGSTOKE & DEANE BC,,,,5000193932,Grant Payable by Exchequer,RG21 2AJ,"20,683.00",Yes
Communities & Local Government,DCLG,02/04/2012,Revenue Support grant payable,Localism,BASSETLAW DC,,,,5000193935,Grant Payable by Exchequer,S80 2AH,"25,080.00",Yes
Communities & Local Government,DCLG,02/04/2012,Revenue Support grant payable,Localism,BATH & NORTH EAST SOMERSET DC,,,,5000193938,Grant Payable by Exchequer,BA1 5AW,"203,749.00",Yes
Communities & Local Government,DCLG,02/04/2012,Revenue Support grant payable,Localism,BEDFORD BOROUGH COUNCIL,,,,5000194252,Grant Payable by Exchequer,MK40 1SJ,"235,126.00",Yes
Communities & Local Government,DCLG,02/04/2012,Revenue Support grant payable,Localism,BEDFORDSHIRE POLICE AUTH,,,,5000193944,Grant Payable by Exchequer,MK43 9AX,"93,814.00",Yes
Communities & Local Government,DCLG,02/04/2012,Revenue Support grant payable,Localism,BEDS & LUTON FIRE & RESCUE SERVICE,,,,5000193941,Grant Payable by Exchequer,MK42 7NR,"45,230.00",Yes
Communities & Local Government,DCLG,02/04/2012,Revenue Support grant payable,Localism,BEXLEY LB,,,,5000193950,Grant Payable by Exchequer,DA8 1TL,"249,143.00",Yes
Communities & Local Government,DCLG,02/04/2012,Revenue Support grant payable,Localism,BIRMINGHAM CITY CNCL,,,,5000193953,Grant Payable by Exchequer,B3 3AB,"1,946,189.00",Yes
Communities & Local Government,DCLG,02/04/2012,Revenue Support grant payable,Localism,BLABY DC,,,,5000193956,Grant Payable by Exchequer,LE9 5EP,"16,683.00",Yes
Communities & Local Government,DCLG,02/04/2012,Revenue Support grant payable,Localism,BLACKBURN WITH DARWEN BC,,,,5000193959,Grant Payable by Exchequer,BB1 7DY,"257,301.00",Yes
Communities & Local Government,DCLG,02/04/2012,Revenue Support grant payable,Localism,BLACKPOOL BC,,,,5000193962,Grant Payable by Exchequer,FY1 1NA,"274,524.00",Yes
Communities & Local Government,DCLG,02/04/2012,Revenue Support grant payable,Localism,BOLSOVER DC,,Large,,5000193965,Grant Payable by Exchequer,S44 6NF,"18,707.00",Yes
Communities & Local Government,DCLG,02/04/2012,Revenue Support grant payable,Localism,BOLTON MBC,,,,5000193968,Grant Payable by Exchequer,BL1 1RU,"398,525.00",Yes
Communities & Local Government,DCLG,02/04/2012,Revenue Support grant payable,Localism,BOSTON BC,,,,5000193971,Grant Payable by Exchequer,PE21 8QR,"15,967.00",Yes
Communities & Local Government,DCLG,02/04/2012,Revenue Support grant payable,Localism,BOURNEMOUTH DC,,,,5000193974,Grant Payable by Exchequer,BH2 6EB,"225,163.00",Yes
Communities & Local Government,DCLG,02/04/2012,Revenue Support grant payable,Localism,BRACKNELL FOREST DC,,,,5000193977,Grant Payable by Exchequer,RG12 1AQ,"104,123.00",Yes
Communities & Local Government,DCLG,02/04/2012,Revenue Support grant payable,Localism,BRADFORD MBC,,,,5000193980,Grant Payable by Exchequer,BD1 1HX,"771,733.00",Yes
Communities & Local Government,DCLG,02/04/2012,Revenue Support grant payable,Localism,BRAINTREE DC,,,,5000193983,Grant Payable by Exchequer,CM7 6HB,"25,145.00",Yes
Communities & Local Government,DCLG,02/04/2012,Revenue Support grant payable,Localism,BRECKLAND DC,,,,5000193986,Grant Payable by Exchequer,NR19 1EE,"24,978.00",Yes
Communities & Local Government,DCLG,02/04/2012,Revenue Support grant payable,Localism,BRENT LB,,,,5000193989,Grant Payable by Exchequer,HA9 9EZ,"467,854.00",Yes
Communities & Local Government,DCLG,02/04/2012,Revenue Support grant payable,Localism,BRENTWOOD BC,,,,5000193992,Grant Payable by Exchequer,CM15 8AY,"12,731.00",Yes
Communities & Local Government,DCLG,02/04/2012,Revenue Support grant payable,Localism,BRIGHTON & HOVE CITY COUNCIL,,,,5000193995,Grant Payable by Exchequer,BN3 2SR,"380,476.00",Yes
Communities & Local Government,DCLG,02/04/2012,Revenue Support grant payable,Localism,BRISTOL CITY CNCL,,,,5000193998,Grant Payable by Exchequer,BS99 7BL,"640,793.00",Yes
Communities & Local Government,DCLG,02/04/2012,Revenue Support grant payable,Localism,BROADLAND DC,,,,5000194001,Grant Payable by Exchequer,NR7 0DU,"19,392.00",Yes
Communities & Local Government,DCLG,02/04/2012,Revenue Support grant payable,Localism,BROMLEY LB,,,,5000194004,Grant Payable by Exchequer,BR1 3UH,"289,286.00",Yes
Communities & Local Government,DCLG,02/04/2012,Revenue Support grant payable,Localism,BROMSGROVE DC,,,,5000194007,Grant Payable by Exchequer,B60 1AA,"13,785.00",Yes
Communities & Local Government,DCLG,02/04/2012,Revenue Support grant payable,Localism,BROXBOURNE BOROUGH COUNCIL,,,,5000194010,Grant Payable by Exchequer,EN8 9GX,"14,457.00",Yes
Communities & Local Government,DCLG,02/04/2012,Revenue Support grant payable,Localism,BROXTOWE BC,,,,5000194013,Grant Payable by Exchequer,NG9 1AB,"19,706.00",Yes
Communities & Local Government,DCLG,02/04/2012,Revenue Support grant payable,Localism,BUCKINGHAMSHIRE CC,,,,5000194020,Grant Payable by Exchequer,HP20 1UD,"407,225.00",Yes
Communities & Local Government,DCLG,02/04/2012,Revenue Support grant payable,Localism,BUCKS & MILTON KEYNES FIRE AUTH,,,,5000194016,Grant Payable by Exchequer,HP20 1BD,"43,164.00",Yes
Communities & Local Government,DCLG,02/04/2012,Revenue Support grant payable,Localism,BURNLEY BC,,,,5000194023,Grant Payable by Exchequer,BB11 1JA,"24,767.00",Yes
Communities & Local Government,DCLG,02/04/2012,Revenue Support grant payable,Localism,BURY MBC,,,,5000194026,Grant Payable by Exchequer,BL9 0SP,"230,450.00",Yes
Communities & Local Government,DCLG,02/04/2012,Revenue Support grant payable,Localism,CALDERDALE MBC,,,,5000194029,Grant Payable by Exchequer,HX1 1YP,"280,888.00",Yes
Communities & Local Government,DCLG,02/04/2012,Revenue Support grant payable,Localism,CAMBRIDGE CITY COUNCIL,,,,5000194032,Grant Payable by Exchequer,CB2 3NA,"25,885.00",Yes
Communities & Local Government,DCLG,02/04/2012,Revenue Support grant payable,Localism,CAMBRIDGESHIRE COUNTY CNCL,,,,5000194041,Grant Payable by Exchequer,CB3 0AP,"520,361.00",Yes
Communities & Local Government,DCLG,02/04/2012,Revenue Support grant payable,Localism,CAMBRIDGESHIRE POLICE AUT,,,,5000194038,Grant Payable by Exchequer,P18 8NP,"114,890.00",Yes
Communities & Local Government,DCLG,02/04/2012,Revenue Support grant payable,Localism,CAMBS & PETERBOROUGH FIRE AUTHORITY,,,,5000194035,Grant Payable by Exchequer,PE29 2NA,"47,489.00",Yes
Communities & Local Government,DCLG,02/04/2012,Revenue Support grant payable,Localism,CAMDEN LONDON BOROUGH,,,,5000194044,Grant Payable by Exchequer,WC1H 8NG,"521,067.00",Yes
Communities & Local Government,DCLG,02/04/2012,Revenue Support grant payable,Localism,CANNOCK CHASE DC,,,,5000194047,Grant Payable by Exchequer,WS11 1BG,"19,944.00",Yes
Communities & Local Government,DCLG,02/04/2012,Revenue Support grant payable,Localism,CANTERBURY CITY CNCL,,,,5000194049,Grant Payable by Exchequer,CT1 1YW,"31,278.00",Yes
Communities & Local Government,DCLG,02/04/2012,Revenue Support grant payable,Localism,CARLISLE CITY CNCL,,,,5000194052,Grant Payable by Exchequer,CA3 8QG,"19,632.00",Yes
Communities & Local Government,DCLG,02/04/2012,Revenue Support grant payable,Localism,CASTLE POINT BC,,,,5000194055,Grant Payable by Exchequer,SS7 1TF,"15,682.00",Yes
Communities & Local Government,DCLG,02/04/2012,Revenue Support grant payable,Localism,CENTRAL BEDFORDSHIRE COUNCIL,,,,5000194228,Grant Payable by Exchequer,SG17 5TQ,"220,530.00",Yes
Communities & Local Government,DCLG,02/04/2012,Revenue Support grant payable,Localism,CHARNWOOD BC,,,,5000194058,Grant Payable by Exchequer,LE11 2TU,"29,165.00",Yes
Communities & Local Government,DCLG,02/04/2012,Revenue Support grant payable,Localism,CHELMSFORD BC,,,,5000194061,Grant Payable by Exchequer,CM1 1JE,"25,167.00",Yes
Communities & Local Government,DCLG,02/04/2012,Revenue Support grant payable,Localism,CHELTENHAM BC,,,,5000194064,Grant Payable by Exchequer,GL50 1PW,"19,023.00",Yes
Communities & Local Government,DCLG,02/04/2012,Revenue Support grant payable,Localism,CHERWELL DC,,,,5000194067,Grant Payable by Exchequer,OX15 4AA,"25,881.00",Yes
Communities & Local Government,DCLG,02/04/2012,Revenue Support grant payable,Localism,CHESHIRE EAST COUNCIL,,,,5000194231,Grant Payable by Exchequer,CH1 1SG,"246,709.00",Yes
Communities & Local Government,DCLG,02/04/2012,Revenue Support grant payable,Localism,CHESHIRE FIRE AUTHORITY,,,,5000194070,Grant Payable by Exchequer,CW7 2FQ,"77,890.00",Yes
Communities & Local Government,DCLG,02/04/2012,Revenue Support grant payable,Localism,CHESHIRE POLICE AUTHORITY,,,,5000194073,Grant Payable by Exchequer,CW7 9FX,"171,677.00",Yes
Communities & Local Government,DCLG,02/04/2012,Revenue Support grant payable,Localism,CHESHIRE WEST AND CHESTER,,Large,,5000194234,Grant Payable by Exchequer,CH1 1SG,"303,176.00",Yes
Communities & Local Government,DCLG,02/04/2012,Revenue Support grant payable,Localism,CHESTERFIELD BC,,,,5000194076,Grant Payable by Exchequer,S40 1LP,"20,461.00",Yes
Communities & Local Government,DCLG,02/04/2012,Revenue Support grant payable,Localism,CHICHESTER DC,,,,5000194079,Grant Payable by Exchequer,PO19 1TY,"15,956.00",Yes
Communities & Local Government,DCLG,02/04/2012,Revenue Support grant payable,Localism,CHILTERN DC,,,,5000194082,Grant Payable by Exchequer,HP6 5AW,"14,444.00",Yes
Communities & Local Government,DCLG,02/04/2012,Revenue Support grant payable,Localism,CHORLEY DC,,,,5000194085,Grant Payable by Exchequer,PR7 1DP,"20,110.00",Yes
Communities & Local Government,DCLG,02/04/2012,Revenue Support grant payable,Localism,CHRISTCHURCH BC,,,,5000194088,Grant Payable by Exchequer,BH23 1AZ,"6,815.00",Yes
Communities & Local Government,DCLG,02/04/2012,Revenue Support grant payable,Localism,CITY OF LINCOLN COUNCIL,,,,5000194039,Grant Payable by Exchequer,LN1 1DB,"22,345.00",Yes
Communities & Local Government,DCLG,02/04/2012,Revenue Support grant payable,Localism,CITY OF WAKEFIELD MDC,,,,5000194089,Grant Payable by Exchequer,WF1 2QW,"435,894.00",Yes
Communities & Local Government,DCLG,02/04/2012,Revenue Support grant payable,Localism,CLEVELAND FIRE AUTHORITY,,,,5000194097,Grant Payable by Exchequer,TS25 5TB,"59,721.00",Yes
Communities & Local Government,DCLG,02/04/2012,Revenue Support grant payable,Localism,CLEVELAND POLICE AUTHORITY,,,,5000194100,Grant Payable by Exchequer,TS1 2JX,"133,672.00",Yes
Communities & Local Government,DCLG,02/04/2012,Revenue Support grant payable,Localism,CO DURHAM & DARLINGTON FIRE AND RES,,,,5000194187,Grant Payable by Exchequer,DH1 5UE,"48,369.00",Yes
Communities & Local Government,DCLG,02/04/2012,Revenue Support grant payable,Localism,COLCHESTER BC,,,,5000194103,Grant Payable by Exchequer,CO3 3WG,"28,854.00",Yes
Communities & Local Government,DCLG,02/04/2012,Revenue Support grant payable,Localism,COPELAND BC,,,,5000194106,Grant Payable by Exchequer,CA28 7NY,"15,354.00",Yes
Communities & Local Government,DCLG,02/04/2012,Revenue Support grant payable,Localism,CORBY BC,,,,5000194109,Grant Payable by Exchequer,NN17 1GD,"12,796.00",Yes
Communities & Local Government,DCLG,02/04/2012,Revenue Support grant payable,Localism,CORNWALL COUNCIL,,,,5000194237,Grant Payable by Exchequer,TR1 3AY,"817,866.00",Yes
Communities & Local Government,DCLG,02/04/2012,Revenue Support grant payable,Localism,CORPORATION OF LONDON,,,,5000194091,Grant Payable by Exchequer,EC2P 2EJ,"170,304.00",Yes
Communities & Local Government,DCLG,02/04/2012,Revenue Support grant payable,Localism,COTSWOLD DC,,,,5000194112,Grant Payable by Exchequer,GL7 1PX,"14,976.00",Yes
Communities & Local Government,DCLG,02/04/2012,Revenue Support grant payable,Localism,COVENTRY CITY CNCL,,,,5000194115,Grant Payable by Exchequer,CV1 2QL,"496,091.00",Yes
Communities & Local Government,DCLG,02/04/2012,Revenue Support grant payable,Localism,CRAVEN DISTRICT COUNCIL,,,,5000194118,Grant Payable by Exchequer,BD23 1PS,"10,712.00",Yes
Communities & Local Government,DCLG,02/04/2012,Revenue Support grant payable,Localism,CRAWLEY BC,,,,5000194121,Grant Payable by Exchequer,RH10 1UZ,"21,428.00",Yes
Communities & Local Government,DCLG,02/04/2012,Revenue Support grant payable,Localism,CROYDON LB,,,,5000194124,Grant Payable by Exchequer,CR9 3JS,"422,889.00",Yes
Communities & Local Government,DCLG,02/04/2012,Revenue Support grant payable,Localism,CUMBRIA COUNTY CNCL,,,,5000194127,Grant Payable by Exchequer,CA3 8NA,"655,096.00",Yes
Communities & Local Government,DCLG,02/04/2012,Revenue Support grant payable,Localism,CUMBRIA POLICE AUTHORITY,,,,5000194130,Grant Payable by Exchequer,CA10 2AU,"116,000.00",Yes
Communities & Local Government,DCLG,02/04/2012,Revenue Support grant payable,Localism,DACORUM BC,,,,5000194133,Grant Payable by Exchequer,HP1 1HH,"20,305.00",Yes
Communities & Local Government,DCLG,02/04/2012,Revenue Support grant payable,Localism,DARLINGTON BC,,,,5000194136,Grant Payable by Exchequer,TS19 1JA,"142,424.00",Yes
Communities & Local Government,DCLG,02/04/2012,Revenue Support grant payable,Localism,DARTFORD BC,,,,5000194139,Grant Payable by Exchequer,DA1 1DR,"18,035.00",Yes
Communities & Local Government,DCLG,02/04/2012,Revenue Support grant payable,Localism,DAVENTRY DC,,,,5000194142,Grant Payable by Exchequer,NN11 5AF,"14,882.00",Yes
Communities & Local Government,DCLG,02/04/2012,Revenue Support grant payable,Localism,DERBY CITY CNCL,,,,5000194145,Grant Payable by Exchequer,DE1 2FS,"351,465.00",Yes
Communities & Local Government,DCLG,02/04/2012,Revenue Support grant payable,Localism,DERBYSHIRE COUNTYCOUNCIL,,,,5000194154,Grant Payable by Exchequer,DE4 3AH,"903,708.00",Yes
Communities & Local Government,DCLG,02/04/2012,Revenue Support grant payable,Localism,DERBYSHIRE DALES DC,,,,5000194158,Grant Payable by Exchequer,DE4 3NN,"11,622.00",Yes
Communities & Local Government,DCLG,02/04/2012,Revenue Support grant payable,Localism,DERBYSHIRE FIRE AUTHORITY,,,,5000194148,Grant Payable by Exchequer,DE55 1RH,"67,318.00",Yes
Communities & Local Government,DCLG,02/04/2012,Revenue Support grant payable,Localism,DERBYSHIRE POLICE AUTHORITY,,,,5000194151,Grant Payable by Exchequer,DE5 3RS,"162,351.00",Yes
Communities & Local Government,DCLG,02/04/2012,Revenue Support grant payable,Localism,DEVON & CORNWALL POLICE A,,,,5000194162,Grant Payable by Exchequer,EX2 5YT,"256,421.00",Yes
Communities & Local Government,DCLG,02/04/2012,Revenue Support grant payable,Localism,DEVON & SOMERSET FIRE & RESCUE SERV,,,,5000194168,Grant Payable by Exchequer,EX3 0NW,"129,067.00",Yes
Communities & Local Government,DCLG,02/04/2012,Revenue Support grant payable,Localism,DEVON COUNTY CNCL,,,,5000194165,Grant Payable by Exchequer,EX2 4QJ,"881,110.00",Yes
Communities & Local Government,DCLG,02/04/2012,Revenue Support grant payable,Localism,DONCASTER MBC,,,,5000194171,Grant Payable by Exchequer,DN1 3QA,"451,880.00",Yes
Communities & Local Government,DCLG,02/04/2012,Revenue Support grant payable,Localism,DORSET COUNTY CNCL,,,,5000194174,Grant Payable by Exchequer,DT1 1XJ,"416,721.00",Yes
Communities & Local Government,DCLG,02/04/2012,Revenue Support grant payable,Localism,DORSET FIRE AUTHORITY,,,,5000194177,Grant Payable by Exchequer,DT1 1FB,"45,705.00",Yes
Communities & Local Government,DCLG,02/04/2012,Revenue Support grant payable,Localism,DORSET POLICE AUTHORITY,,,,5000194178,Grant Payable by Exchequer,DT2 8DZ,"98,049.00",Yes
Communities & Local Government,DCLG,02/04/2012,Revenue Support grant payable,Localism,DOVER DC,,,,5000194181,Grant Payable by Exchequer,CT16 3PD,"21,799.00",Yes
Communities & Local Government,DCLG,02/04/2012,Revenue Support grant payable,Localism,DUDLEY MBC,,,,5000194184,Grant Payable by Exchequer,DY1 1HF,"405,104.00",Yes
Communities & Local Government,DCLG,02/04/2012,Revenue Support grant payable,Localism,DURHAM COUNTY COUNCIL,,,,5000194240,Grant Payable by Exchequer,DH1 5UE,"813,842.00",Yes
Communities & Local Government,DCLG,02/04/2012,Revenue Support grant payable,Localism,DURHAM POLICE AUTHORITY,,,,5000194190,Grant Payable by Exchequer,DH1 5TT,"127,769.00",Yes
Communities & Local Government,DCLG,02/04/2012,Revenue Support grant payable,Localism,EALING LB,,,,5000194193,Grant Payable by Exchequer,W5 2BY,"450,904.00",Yes
Communities & Local Government,DCLG,02/04/2012,Revenue Support grant payable,Localism,EAST CAMBRIDGESHIRE DC,,,,5000194196,Grant Payable by Exchequer,CB7 4PL,"16,765.00",Yes
Communities & Local Government,DCLG,02/04/2012,Revenue Support grant payable,Localism,EAST DEVON DC,,,,5000194199,Grant Payable by Exchequer,EX10 8HL,"19,707.00",Yes
Communities & Local Government,DCLG,02/04/2012,Revenue Support grant payable,Localism,EAST DORSET DC,,,,5000194202,Grant Payable by Exchequer,BH21 4HN,"11,517.00",Yes
Communities & Local Government,DCLG,02/04/2012,Revenue Support grant payable,Localism,EAST HAMPSHIRE DC,,,,5000194205,Grant Payable by Exchequer,GU31 4EX,"15,014.00",Yes
Communities & Local Government,DCLG,02/04/2012,Revenue Support grant payable,Localism,EAST HERTFORDSHIRE DC,,,,5000194208,Grant Payable by Exchequer,CM23 2EN,"21,934.00",Yes
Communities & Local Government,DCLG,02/04/2012,Revenue Support grant payable,Localism,EAST LINDSEY DC,,,,5000194211,Grant Payable by Exchequer,LN11 8UP,"33,855.00",Yes
Communities & Local Government,DCLG,02/04/2012,Revenue Support grant payable,Localism,EAST NORTHAMPTONSHIRE COUNCIL,,,,5000194214,Grant Payable by Exchequer,NN14 4LZ,"16,382.00",Yes
Communities & Local Government,DCLG,02/04/2012,Revenue Support grant payable,Localism,EAST RIDING OF YORKS,,,,5000194217,Grant Payable by Exchequer,HU17 9AB,"416,469.00",Yes
Communities & Local Government,DCLG,02/04/2012,Revenue Support grant payable,Localism,EAST STAFFORDSHIRE BC,,,,5000194220,Grant Payable by Exchequer,DE14 2EB,"21,099.00",Yes
Communities & Local Government,DCLG,02/04/2012,Revenue Support grant payable,Localism,EAST SUSSEX COUNTY CNCL,,,,5000194223,Grant Payable by Exchequer,BN7 1SF,"634,812.00",Yes
Communities & Local Government,DCLG,02/04/2012,Revenue Support grant payable,Localism,EAST SUSSEX FIRE & RESCUE SERVICE,,,,5000194226,Grant Payable by Exchequer,BN21 1EU,"62,048.00",Yes
Communities & Local Government,DCLG,02/04/2012,Revenue Support grant payable,Localism,EASTBOURNE BC,,,,5000194229,Grant Payable by Exchequer,BN21 4TW,"23,334.00",Yes
Communities & Local Government,DCLG,02/04/2012,Revenue Support grant payable,Localism,EASTLEIGH BOROUGH COUNCIL,,,,5000194232,Grant Payable by Exchequer,SO5 9YN,"19,341.00",Yes
Communities & Local Government,DCLG,02/04/2012,Revenue Support grant payable,Localism,EDEN DC,,,,5000194235,Grant Payable by Exchequer,CA11 7QF,"11,087.00",Yes
Communities & Local Government,DCLG,02/04/2012,Revenue Support grant payable,Localism,ELMBRIDGE BOROUGH COUNCIL,,,,5000194238,Grant Payable by Exchequer,KT10 9SD,"21,696.00",Yes
Communities & Local Government,DCLG,02/04/2012,Revenue Support grant payable,Localism,ENFIELD LB,,,,5000194241,Grant Payable by Exchequer,EN1 3XF,"456,857.00",Yes
Communities & Local Government,DCLG,02/04/2012,Revenue Support grant payable,Localism,EPPING FOREST DC,,,,5000194244,Grant Payable by Exchequer,CM16 4BZ,"24,266.00",Yes
Communities & Local Government,DCLG,02/04/2012,Revenue Support grant payable,Localism,EPSOM & EWELL BC,,,,5000194247,Grant Payable by Exchequer,KT18 5BY,"10,766.00",Yes
Communities & Local Government,DCLG,02/04/2012,Revenue Support grant payable,Localism,EREWASH BC,,,,5000194250,Grant Payable by Exchequer,DE7 5RP,"20,036.00",Yes
Communities & Local Government,DCLG,02/04/2012,Revenue Support grant payable,Localism,ESSEX COUNTY CNCL,,,,5000194253,Grant Payable by Exchequer,CM1 1JZ,"1,437,047.00",Yes
Communities & Local Government,DCLG,02/04/2012,Revenue Support grant payable,Localism,ESSEX FIRE AUTHORITY,,,,5000194255,Grant Payable by Exchequer,CM8 3HB,"135,372.00",Yes
Communities & Local Government,DCLG,02/04/2012,Revenue Support grant payable,Localism,ESSEX POLICE AUTHORITY,,,,5000194258,Grant Payable by Exchequer,CM2 6DA,"231,899.00",Yes
Communities & Local Government,DCLG,02/04/2012,Revenue Support grant payable,Localism,EXETER CITY CNCL,,,,5000194260,Grant Payable by Exchequer,EX1 1JN,"22,570.00",Yes
Communities & Local Government,DCLG,02/04/2012,Revenue Support grant payable,Localism,FAREHAM BC,,,,5000194262,Grant Payable by Exchequer,PO16 7PU,"15,130.00",Yes
Communities & Local Government,DCLG,02/04/2012,Revenue Support grant payable,Localism,FENLAND DC,,,,5000194264,Grant Payable by Exchequer,PE15 8NQ,"23,780.00",Yes
Communities & Local Government,DCLG,02/04/2012,Revenue Support grant payable,Localism,FOREST HEATH DISTRICT COUNCIL,,,,5000194266,Grant Payable by Exchequer,IP28 7EY,"12,252.00",Yes
Communities & Local Government,DCLG,02/04/2012,Revenue Support grant payable,Localism,FOREST OF DEAN DC,,,,5000194268,Grant Payable by Exchequer,GL16 8HG,"17,396.00",Yes
Communities & Local Government,DCLG,02/04/2012,Revenue Support grant payable,Localism,FYLDE BC,,,,5000194270,Grant Payable by Exchequer,FY8 1LW,"12,968.00",Yes
Communities & Local Government,DCLG,02/04/2012,Revenue Support grant payable,Localism,GATESHEAD MBC,,,,5000194272,Grant Payable by Exchequer,NE8 1HH,"331,290.00",Yes
Communities & Local Government,DCLG,02/04/2012,Revenue Support grant payable,Localism,GEDLING BC,,,,5000194274,Grant Payable by Exchequer,NG5 6LU,"18,887.00",Yes
Communities & Local Government,DCLG,02/04/2012,Revenue Support grant payable,Localism,GLOUCESTER CITY CNCL,,,,5000194278,Grant Payable by Exchequer,GL1 2EQ,"21,127.00",Yes
Communities & Local Government,DCLG,02/04/2012,Revenue Support grant payable,Localism,GLOUCESTERSHIRE COUNTY CNCL,,,,5000194280,Grant Payable by Exchequer,GL1 2TG,"644,411.00",Yes
Communities & Local Government,DCLG,02/04/2012,Revenue Support grant payable,Localism,GLOUCESTERSHIRE POLICE AUTHORITY,,,,5000194282,Grant Payable by Exchequer,GL2 2AN,"94,963.00",Yes
Communities & Local Government,DCLG,02/04/2012,Revenue Support grant payable,Localism,GOSPORT BOROUGH COUNCIL,,,,5000194284,Grant Payable by Exchequer,PO12 1ED,"16,258.00",Yes
Communities & Local Government,DCLG,02/04/2012,Revenue Support grant payable,Localism,GRAVESHAM BC,,,,5000194286,Grant Payable by Exchequer,DA12 1AU,"17,719.00",Yes
Communities & Local Government,DCLG,02/04/2012,Revenue Support grant payable,Localism,GREAT YARMOUTH BC,,,,5000194288,Grant Payable by Exchequer,NR30 2QG,"23,358.00",Yes
Communities & Local Government,DCLG,02/04/2012,Revenue Support grant payable,Localism,GREATER LONDON AUTHORITY,,,,5000194276,Grant Payable by Exchequer,SE10 1AJ,"2,843,774.00",Yes
Communities & Local Government,DCLG,02/04/2012,Revenue Support grant payable,Localism,GREATER LONDON AUTHORITY-FIRE,,,,5000194225,Grant Payable by Exchequer,SE1 2AA,"862,190.00",Yes
Communities & Local Government,DCLG,02/04/2012,Revenue Support grant payable,Localism,GREATER MANCHESTER FIRE,,,,5000194066,Grant Payable by Exchequer,M27 2US,"201,951.00",Yes
Communities & Local Government,DCLG,02/04/2012,Revenue Support grant payable,Localism,GREATER MANCHESTER POL AUTH,,,,5000194069,Grant Payable by Exchequer,M16 0RE,"631,443.00",Yes
Communities & Local Government,DCLG,02/04/2012,Revenue Support grant payable,Localism,GREENWICH LB,,,,5000194290,Grant Payable by Exchequer,SE18 6RA,"466,438.00",Yes
Communities & Local Government,DCLG,02/04/2012,Revenue Support grant payable,Localism,GUILDFORD BC,,,,5000194292,Grant Payable by Exchequer,GU2 5BB,"21,591.00",Yes
Communities & Local Government,DCLG,02/04/2012,Revenue Support grant payable,Localism,HALTON BC,,,,5000194296,Grant Payable by Exchequer,WA8 7QF,"209,111.00",Yes
Communities & Local Government,DCLG,02/04/2012,Revenue Support grant payable,Localism,HAMBLETON DC,,,,5000194298,Grant Payable by Exchequer,DL6 2UU,"12,736.00",Yes
Communities & Local Government,DCLG,02/04/2012,Revenue Support grant payable,Localism,HAMMERSMITH & FULHAM LB,,,,5000194300,Grant Payable by Exchequer,W6 9JU,"350,817.00",Yes
Communities & Local Government,DCLG,02/04/2012,Revenue Support grant payable,Localism,HAMPSHIRE COUNTY COUNCIL,,,,5000194302,Grant Payable by Exchequer,SO23 8UB,"1,123,444.00",Yes
Communities & Local Government,DCLG,02/04/2012,Revenue Support grant payable,Localism,HAMPSHIRE FIRE & RESCUE AUTHORITY,,,,5000194304,Grant Payable by Exchequer,SO23 8UB,"123,039.00",Yes
Communities & Local Government,DCLG,02/04/2012,Revenue Support grant payable,Localism,HAMPSHIRE POLICE AUTHORITY,,,,5000194306,Grant Payable by Exchequer,SO23 8UB,"263,976.00",Yes
Communities & Local Government,DCLG,02/04/2012,Revenue Support grant payable,Localism,HARBOROUGH DC,,,,5000194308,Grant Payable by Exchequer,LE16 7AG,"13,474.00",Yes
Communities & Local Government,DCLG,02/04/2012,Revenue Support grant payable,Localism,HARINGEY LB,,,,5000193889,Grant Payable by Exchequer,N22 7TR,"478,486.00",Yes
Communities & Local Government,DCLG,02/04/2012,Revenue Support grant payable,Localism,HARLOW COUNCIL,,,,5000193892,Grant Payable by Exchequer,CM20 1WG,"19,302.00",Yes
Communities & Local Government,DCLG,02/04/2012,Revenue Support grant payable,Localism,HARROGATE BOROUGH COUNCIL,,,,5000193895,Grant Payable by Exchequer,HG1 2SG,"27,993.00",Yes
Communities & Local Government,DCLG,02/04/2012,Revenue Support grant payable,Localism,HARROW LB,,,,5000193898,Grant Payable by Exchequer,HA1 2UZ,"287,505.00",Yes
Communities & Local Government,DCLG,02/04/2012,Revenue Support grant payable,Localism,HART DC,,,,5000193901,Grant Payable by Exchequer,GU13 8AE,"12,682.00",Yes
Communities & Local Government,DCLG,02/04/2012,Revenue Support grant payable,Localism,HARTLEPOOL BOROUGH COUNCIL,,,,5000193904,Grant Payable by Exchequer,TS24 7BT,"161,327.00",Yes
Communities & Local Government,DCLG,02/04/2012,Revenue Support grant payable,Localism,HASTINGS BC,,,,5000193907,Grant Payable by Exchequer,TN34 3WN,"21,109.00",Yes
Communities & Local Government,DCLG,02/04/2012,Revenue Support grant payable,Localism,HAVANT BC,,,,5000193910,Grant Payable by Exchequer,PO9 2AX,"22,085.00",Yes
Communities & Local Government,DCLG,02/04/2012,Revenue Support grant payable,Localism,HAVERING LB,,,,5000193913,Grant Payable by Exchequer,RM1 3BB,"248,393.00",Yes
Communities & Local Government,DCLG,02/04/2012,Revenue Support grant payable,Localism,HEREFORD WORCESTER FIRE BRIGADE,,,,5000193916,Grant Payable by Exchequer,WR1 2HQ,"47,509.00",Yes
Communities & Local Government,DCLG,02/04/2012,Revenue Support grant payable,Localism,HEREFORDSHIRE DISTRICT COUNCIL,,,,5000193919,Grant Payable by Exchequer,HR1 1SH,"242,235.00",Yes
Communities & Local Government,DCLG,02/04/2012,Revenue Support grant payable,Localism,HERTFORDSHIRE CONTY CNCL,,,,5000193925,Grant Payable by Exchequer,SG13 8DQ,"1,115,479.00",Yes
Communities & Local Government,DCLG,02/04/2012,Revenue Support grant payable,Localism,HERTFORDSHIRE POLICE AUTH,,,,5000193922,Grant Payable by Exchequer,AL8 6XF,"172,289.00",Yes
Communities & Local Government,DCLG,02/04/2012,Revenue Support grant payable,Localism,HERTSMERE BC,,,,5000193928,Grant Payable by Exchequer,WD6 1WA,"18,727.00",Yes
Communities & Local Government,DCLG,02/04/2012,Revenue Support grant payable,Localism,HIGH PEAK BC,,,,5000193931,Grant Payable by Exchequer,SK17 6EL,"15,829.00",Yes
Communities & Local Government,DCLG,02/04/2012,Revenue Support grant payable,Localism,HILLINGDON LB,,,,5000193934,Grant Payable by Exchequer,UB8 1UW,"319,006.00",Yes
Communities & Local Government,DCLG,02/04/2012,Revenue Support grant payable,Localism,HINCKLEY & BOSWORTH BC,,,,5000193937,Grant Payable by Exchequer,LE10 1BZ,"17,879.00",Yes
Communities & Local Government,DCLG,02/04/2012,Revenue Support grant payable,Localism,HORSHAM DC,,,,5000193940,Grant Payable by Exchequer,RH12 1RL,"16,398.00",Yes
Communities & Local Government,DCLG,02/04/2012,Revenue Support grant payable,Localism,HOUNSLOW LB,,,,5000193943,Grant Payable by Exchequer,TW3 4DN,"306,249.00",Yes
Communities & Local Government,DCLG,02/04/2012,Revenue Support grant payable,Localism,HULL CITY COUNCIL,,,,5000193988,Grant Payable by Exchequer,HU1 2AA,"442,344.00",Yes
Communities & Local Government,DCLG,02/04/2012,Revenue Support grant payable,Localism,HUMBERSIDE FIRE & RESCUE SERVICE,,,,5000193946,Grant Payable by Exchequer,HU4 7BB,"86,897.00",Yes
Communities & Local Government,DCLG,02/04/2012,Revenue Support grant payable,Localism,HUMBERSIDE POLICE,,,,5000193949,Grant Payable by Exchequer,HU5 5SF,"177,499.00",Yes
Communities & Local Government,DCLG,02/04/2012,Revenue Support grant payable,Localism,HUNTINGDONSHIRE DC,,,,5000193952,Grant Payable by Exchequer,PE18 6TN,"31,524.00",Yes
Communities & Local Government,DCLG,02/04/2012,Revenue Support grant payable,Localism,HYNDBURN BC,,,,5000193955,Grant Payable by Exchequer,BB5 1EZ,"21,427.00",Yes
Communities & Local Government,DCLG,02/04/2012,Revenue Support grant payable,Localism,IPSWICH BC,,,,5000193961,Grant Payable by Exchequer,IP1 2EE,"27,420.00",Yes
Communities & Local Government,DCLG,02/04/2012,Revenue Support grant payable,Localism,ISLE OF WIGHT CNCL,,,,5000193958,Grant Payable by Exchequer,PO30 1UD,"238,444.00",Yes
Communities & Local Government,DCLG,02/04/2012,Revenue Support grant payable,Localism,ISLES OF SCILLY COUNCIL,,,,5000193964,Grant Payable by Exchequer,TR21 0LW,"7,916.00",Yes
Communities & Local Government,DCLG,02/04/2012,Revenue Support grant payable,Localism,ISLINGTON LB,,,,5000193967,Grant Payable by Exchequer,N1 1XR,"464,337.00",Yes
Communities & Local Government,DCLG,02/04/2012,Revenue Support grant payable,Localism,KENT & MEDWAY TOWNS FIRE AUTHORITY,,,,5000193976,Grant Payable by Exchequer,ME15 6XB,"118,056.00",Yes
Communities & Local Government,DCLG,02/04/2012,Revenue Support grant payable,Localism,KENT COUNTY CNCL,,,,5000193973,Grant Payable by Exchequer,ME14 1XQ,"1,490,489.00",Yes
Communities & Local Government,DCLG,02/04/2012,Revenue Support grant payable,Localism,KENT POLICE AUTHORITY,,,,5000193979,Grant Payable by Exchequer,ME15 9BZ,"287,407.00",Yes
Communities & Local Government,DCLG,02/04/2012,Revenue Support grant payable,Localism,KETTERING BC,,,,5000193982,Grant Payable by Exchequer,NN15 7QX,"16,452.00",Yes
Communities & Local Government,DCLG,02/04/2012,Revenue Support grant payable,Localism,KINGS LYNN & WEST NORFOLK BC,,,,5000193985,Grant Payable by Exchequer,PE30 1EX,"33,395.00",Yes
Communities & Local Government,DCLG,02/04/2012,Revenue Support grant payable,Localism,KINGSTON UPON THAMES,,,,5000193991,Grant Payable by Exchequer,KT1 1EU,"183,314.00",Yes
Communities & Local Government,DCLG,02/04/2012,Revenue Support grant payable,Localism,KIRKLEES MBC,,,,5000193994,Grant Payable by Exchequer,HD1 2YU,"547,149.00",Yes
Communities & Local Government,DCLG,02/04/2012,Revenue Support grant payable,Localism,KNOWSLEY MBC,,,,5000193997,Grant Payable by Exchequer,L36 9YZ,"332,512.00",Yes
Communities & Local Government,DCLG,02/04/2012,Revenue Support grant payable,Localism,LANCASHIRE COMBINED FIRE AUTHORITY,,,,5000194006,Grant Payable by Exchequer,PR2 3LH,"106,766.00",Yes
Communities & Local Government,DCLG,02/04/2012,Revenue Support grant payable,Localism,LANCASHIRE COUNTY CNCL,,,,5000194003,Grant Payable by Exchequer,PR1 8RD,"1,356,028.00",Yes
Communities & Local Government,DCLG,02/04/2012,Revenue Support grant payable,Localism,LANCASHIRE POLICE AUTHORITY,,,,5000194009,Grant Payable by Exchequer,PR1 OLD,"268,630.00",Yes
Communities & Local Government,DCLG,02/04/2012,Revenue Support grant payable,Localism,LANCASTER CITY CNCL,,,,5000194012,Grant Payable by Exchequer,LA1 1PJ,"35,576.00",Yes
Communities & Local Government,DCLG,02/04/2012,Revenue Support grant payable,Localism,LEEDS CITY CNCL,,,,5000194015,Grant Payable by Exchequer,LS1 1JF,"980,970.00",Yes
Communities & Local Government,DCLG,02/04/2012,Revenue Support grant payable,Localism,LEICESTER CITY CNCL,,,,5000194018,Grant Payable by Exchequer,LE1 6ZG,"540,981.00",Yes
Communities & Local Government,DCLG,02/04/2012,Revenue Support grant payable,Localism,LEICESTERSHIRE COUNTY CNCL,,,,5000194027,Grant Payable by Exchequer,LE3 8RB,"579,208.00",Yes
Communities & Local Government,DCLG,02/04/2012,Revenue Support grant payable,Localism,LEICESTERSHIRE POLICE AUTHORITY,,,,5000194024,Grant Payable by Exchequer,LE99 1A2,"154,318.00",Yes
Communities & Local Government,DCLG,02/04/2012,Revenue Support grant payable,Localism,LEICS LEICESTERSHIRE RUTLAND CFA,,,,5000194021,Grant Payable by Exchequer,LE3 8HD,"62,783.00",Yes
Communities & Local Government,DCLG,02/04/2012,Revenue Support grant payable,Localism,LEWES DC,,,,5000194030,Grant Payable by Exchequer,BN7 2DQ,"15,656.00",Yes
Communities & Local Government,DCLG,02/04/2012,Revenue Support grant payable,Localism,LEWISHAM LB,,,,5000194033,Grant Payable by Exchequer,SE6 4RU,"524,714.00",Yes
Communities & Local Government,DCLG,02/04/2012,Revenue Support grant payable,Localism,LICHFIELD DC,,,,5000194036,Grant Payable by Exchequer,WS13 6YX,"15,566.00",Yes
Communities & Local Government,DCLG,02/04/2012,Revenue Support grant payable,Localism,LINCOLNSHIRE COUNTY CNCL,,,,5000194045,Grant Payable by Exchequer,LN1 1YT,"798,200.00",Yes
Communities & Local Government,DCLG,02/04/2012,Revenue Support grant payable,Localism,LINCOLNSHIRE POLICE AUTH,,,,5000194042,Grant Payable by Exchequer,LN5 7PH,"95,834.00",Yes
Communities & Local Government,DCLG,02/04/2012,Revenue Support grant payable,Localism,LIVERPOOL CITY COUNCIL,,,,5000194048,Grant Payable by Exchequer,L1 6JD,"956,733.00",Yes
Communities & Local Government,DCLG,02/04/2012,Revenue Support grant payable,Localism,LONDON BOROUGH OF HACKNEY,,,,5000194294,Grant Payable by Exchequer,E8 4RU,"564,663.00",Yes
Communities & Local Government,DCLG,02/04/2012,Revenue Support grant payable,Localism,LONDON BOROUGH OF LAMBETH,,,,5000194000,Grant Payable by Exchequer,SW2 1RL,"620,732.00",Yes
Communities & Local Government,DCLG,02/04/2012,Revenue Support grant payable,Localism,LONDON BOROUGH OF NEWHAM,,Large,,5000194126,Grant Payable by Exchequer,E16 2QU,"551,145.00",Yes
Communities & Local Government,DCLG,02/04/2012,Revenue Support grant payable,Localism,LONDON BOROUGH OF REDBRIDGE,,,,5000194242,Grant Payable by Exchequer,IG1 1NN,"350,498.00",Yes
Communities & Local Government,DCLG,02/04/2012,Revenue Support grant payable,Localism,LUTON BC,,,,5000194051,Grant Payable by Exchequer,LU1 1DX,"286,780.00",Yes
Communities & Local Government,DCLG,02/04/2012,Revenue Support grant payable,Localism,MAIDSTONE BC,,,,5000194054,Grant Payable by Exchequer,ME15 6JQ,"23,918.00",Yes
Communities & Local Government,DCLG,02/04/2012,Revenue Support grant payable,Localism,MALDON DC,,,,5000194057,Grant Payable by Exchequer,CM9 7DL,"11,042.00",Yes
Communities & Local Government,DCLG,02/04/2012,Revenue Support grant payable,Localism,MALVERN HILLS DC,,,,5000194060,Grant Payable by Exchequer,WR14 3AF,"13,377.00",Yes
Communities & Local Government,DCLG,02/04/2012,Revenue Support grant payable,Localism,MANCHESTER CITY CNCL,,,,5000194063,Grant Payable by Exchequer,M60 2JR,"994,625.00",Yes
Communities & Local Government,DCLG,02/04/2012,Revenue Support grant payable,Localism,MANSFIELD DC,,,,5000194072,Grant Payable by Exchequer,NG19 7BH,"22,361.00",Yes
Communities & Local Government,DCLG,02/04/2012,Revenue Support grant payable,Localism,MEDWAY COUNCIL,,,,5000194075,Grant Payable by Exchequer,ME4 4TR,"294,341.00",Yes
Communities & Local Government,DCLG,02/04/2012,Revenue Support grant payable,Localism,MELTON BC,,,,5000194078,Grant Payable by Exchequer,LE13 0UL,"9,014.00",Yes
Communities & Local Government,DCLG,02/04/2012,Revenue Support grant payable,Localism,MENDIP DISTRICT COUNCIL,,,,5000194081,Grant Payable by Exchequer,BA4 5BA,"18,668.00",Yes
Communities & Local Government,DCLG,02/04/2012,Revenue Support grant payable,Localism,MERSEYSIDE FIRE & RESCUE SERVICE,,,,5000194084,Grant Payable by Exchequer,L30 4YD,"123,908.00",Yes
Communities & Local Government,DCLG,02/04/2012,Revenue Support grant payable,Localism,MERSEYSIDE POLICE AUTH,,,,5000194087,Grant Payable by Exchequer,L69 1JD,"384,196.00",Yes
Communities & Local Government,DCLG,02/04/2012,Revenue Support grant payable,Localism,MERTON LB,,,,5000194090,Grant Payable by Exchequer,SM4 5DX,"245,670.00",Yes
Communities & Local Government,DCLG,02/04/2012,Revenue Support grant payable,Localism,MID DEVON DC,,,,5000194093,Grant Payable by Exchequer,EX16 6PP,"14,301.00",Yes
Communities & Local Government,DCLG,02/04/2012,Revenue Support grant payable,Localism,MID SUFFOLK DC,,,,5000194096,Grant Payable by Exchequer,IP6 8DL,"16,370.00",Yes
Communities & Local Government,DCLG,02/04/2012,Revenue Support grant payable,Localism,MID SUSSEX DC,,,,5000194099,Grant Payable by Exchequer,RH16 1SS,"18,396.00",Yes
Communities & Local Government,DCLG,02/04/2012,Revenue Support grant payable,Localism,MIDDLESBROUGH BC,,,,5000194102,Grant Payable by Exchequer,TS1 9GA,"245,826.00",Yes
Communities & Local Government,DCLG,02/04/2012,Revenue Support grant payable,Localism,MILTON KEYNES BC,,,,5000194105,Grant Payable by Exchequer,MK9 3EJ,"305,914.00",Yes
Communities & Local Government,DCLG,02/04/2012,Revenue Support grant payable,Localism,MOLE VALLEY DC,,,,5000194108,Grant Payable by Exchequer,RH4 1SJ,"10,678.00",Yes
Communities & Local Government,DCLG,02/04/2012,Revenue Support grant payable,Localism,NEW FOREST DC,,,,5000194114,Grant Payable by Exchequer,SO41 9ZG,"31,946.00",Yes
Communities & Local Government,DCLG,02/04/2012,Revenue Support grant payable,Localism,NEWARK & SHERWOOD DC,,,,5000194117,Grant Payable by Exchequer,NG23 5QX,"25,015.00",Yes
Communities & Local Government,DCLG,02/04/2012,Revenue Support grant payable,Localism,NEWCASTLE UNDER LYME BC,,,,5000194123,Grant Payable by Exchequer,ST5 2AG,"22,543.00",Yes
Communities & Local Government,DCLG,02/04/2012,Revenue Support grant payable,Localism,NEWCASTLE UPON TYNE DC,,,,5000194120,Grant Payable by Exchequer,NE99 1RD,"483,870.00",Yes
Communities & Local Government,DCLG,02/04/2012,Revenue Support grant payable,Localism,NORFOLK COUNTY COUNCIL,,,,5000194129,Grant Payable by Exchequer,NR1 2DW,"1,062,593.00",Yes
Communities & Local Government,DCLG,02/04/2012,Revenue Support grant payable,Localism,NORFOLK POLICE AUTHORITY,,,,5000194132,Grant Payable by Exchequer,NR18 0WW,"128,526.00",Yes
Communities & Local Government,DCLG,02/04/2012,Revenue Support grant payable,Localism,NORTH DEVON DC,,,,5000194135,Grant Payable by Exchequer,EX31 1EA,"19,494.00",Yes
Communities & Local Government,DCLG,02/04/2012,Revenue Support grant payable,Localism,NORTH DORSET DC,,,,5000194138,Grant Payable by Exchequer,DT11 7LL,"11,019.00",Yes
Communities & Local Government,DCLG,02/04/2012,Revenue Support grant payable,Localism,NORTH EAST DERBYSHIRE DC,,,,5000194111,Grant Payable by Exchequer,S40 1LF,"19,310.00",Yes
Communities & Local Government,DCLG,02/04/2012,Revenue Support grant payable,Localism,NORTH EAST LINCOLN DC,,,,5000194141,Grant Payable by Exchequer,DN31 1HU,"252,324.00",Yes
Communities & Local Government,DCLG,02/04/2012,Revenue Support grant payable,Localism,NORTH HERTS DC,,,,5000194144,Grant Payable by Exchequer,SG6 3HN,"19,539.00",Yes
Communities & Local Government,DCLG,02/04/2012,Revenue Support grant payable,Localism,NORTH KESTEVEN DC,,,,5000194147,Grant Payable by Exchequer,NG34 7EF,"20,913.00",Yes
Communities & Local Government,DCLG,02/04/2012,Revenue Support grant payable,Localism,NORTH LINCOLNSHIRE DC,,,,5000194150,Grant Payable by Exchequer,DN20 8LD,"217,239.00",Yes
Communities & Local Government,DCLG,02/04/2012,Revenue Support grant payable,Localism,NORTH NORFOLK DC,,,,5000194153,Grant Payable by Exchequer,NR27 9EJ,"21,193.00",Yes
Communities & Local Government,DCLG,02/04/2012,Revenue Support grant payable,Localism,NORTH SOMERSET DC,,,,5000194156,Grant Payable by Exchequer,BS23 1LL,"250,969.00",Yes
Communities & Local Government,DCLG,02/04/2012,Revenue Support grant payable,Localism,NORTH TYNESIDE MBC,,,,5000194159,Grant Payable by Exchequer,NE30 1AE,"281,714.00",Yes
Communities & Local Government,DCLG,02/04/2012,Revenue Support grant payable,Localism,NORTH WARWICKSHIRE BC,,,,5000194161,Grant Payable by Exchequer,CV9 1DE,"14,023.00",Yes
Communities & Local Government,DCLG,02/04/2012,Revenue Support grant payable,Localism,NORTH WEST LEICESTER DC,,,,5000194203,Grant Payable by Exchequer,LE67 3FJ,"17,853.00",Yes
Communities & Local Government,DCLG,02/04/2012,Revenue Support grant payable,Localism,NORTH YORKSHIRE CC,,,,5000194164,Grant Payable by Exchequer,DL7 8AL,"647,822.00",Yes
Communities & Local Government,DCLG,02/04/2012,Revenue Support grant payable,Localism,NORTH YORKSHIRE FIRE & RESCUE AUTH,,,,5000194167,Grant Payable by Exchequer,DL6 1AB,"50,549.00",Yes
Communities & Local Government,DCLG,02/04/2012,Revenue Support grant payable,Localism,NORTH YORKSHIRE POLICE AUTHORITY,,,,5000194170,Grant Payable by Exchequer,DL7 9HA,"134,035.00",Yes
Communities & Local Government,DCLG,02/04/2012,Revenue Support grant payable,Localism,NORTHAMPTON BOROUGH COUNCIL,,Large,,5000194173,Grant Payable by Exchequer,NN1 12A,"44,241.00",Yes
Communities & Local Government,DCLG,02/04/2012,Revenue Support grant payable,Localism,NORTHAMPTONSHIRE COUNTY COUNCIL,,,,5000194176,Grant Payable by Exchequer,NN4 7DB,"686,903.00",Yes
Communities & Local Government,DCLG,02/04/2012,Revenue Support grant payable,Localism,NORTHAMPTONSHIRE POLICE AUTH,,,,5000194179,Grant Payable by Exchequer,NN1 5DQ,"102,382.00",Yes
Communities & Local Government,DCLG,02/04/2012,Revenue Support grant payable,Localism,NORTHUMBERLAND,,,,5000194243,Grant Payable by Exchequer,NE61 2EF,"482,815.00",Yes
Communities & Local Government,DCLG,02/04/2012,Revenue Support grant payable,Localism,NORTHUMBRIA POLICE AUTH,,,,5000194182,Grant Payable by Exchequer,NE1 8DL,"323,565.00",Yes
Communities & Local Government,DCLG,02/04/2012,Revenue Support grant payable,Localism,NORWICH CITY CNCL,,,,5000194185,Grant Payable by Exchequer,NR2 1NH,"34,508.00",Yes
Communities & Local Government,DCLG,02/04/2012,Revenue Support grant payable,Localism,NOTTINGHAM CITY COUNCIL,,,,5000194188,Grant Payable by Exchequer,M33 0DJ,"520,962.00",Yes
Communities & Local Government,DCLG,02/04/2012,Revenue Support grant payable,Localism,NOTTINGHAMSHIRE COUNTY CNCL,,,,5000194191,Grant Payable by Exchequer,NG1 4BU,"930,069.00",Yes
Communities & Local Government,DCLG,02/04/2012,Revenue Support grant payable,Localism,NOTTINGHAMSHIRE POLICE AU,,,,5000194197,Grant Payable by Exchequer,NG5 8PP,"182,628.00",Yes
Communities & Local Government,DCLG,02/04/2012,Revenue Support grant payable,Localism,NOTTS & CITY NOTTINGHAM FIRE AUTH,,,,5000194194,Grant Payable by Exchequer,NG5 8PD,"81,817.00",Yes
Communities & Local Government,DCLG,02/04/2012,Revenue Support grant payable,Localism,NUNEATON & BEDWORTH BC,,,,5000194200,Grant Payable by Exchequer,CV11 5AA,"23,689.00",Yes
Communities & Local Government,DCLG,02/04/2012,Revenue Support grant payable,Localism,OADBY & WIGSTON BC,,,,5000194206,Grant Payable by Exchequer,LE8 2DR,"10,806.00",Yes
Communities & Local Government,DCLG,02/04/2012,Revenue Support grant payable,Localism,OLDHAM MBC,,,,5000194209,Grant Payable by Exchequer,OL1 1UH,"383,184.00",Yes
Communities & Local Government,DCLG,02/04/2012,Revenue Support grant payable,Localism,OXFORD CITY CNCL,,,,5000194212,Grant Payable by Exchequer,OX1 1DS,"36,208.00",Yes
Communities & Local Government,DCLG,02/04/2012,Revenue Support grant payable,Localism,OXFORDSHIRE CC,,,,5000194215,Grant Payable by Exchequer,OX4 2GQ,"639,635.00",Yes
Communities & Local Government,DCLG,02/04/2012,Revenue Support grant payable,Localism,PENDLE BC,,,,5000194218,Grant Payable by Exchequer,BB9 OLX,"24,054.00",Yes
Communities & Local Government,DCLG,02/04/2012,Revenue Support grant payable,Localism,PETERBOROUGH CITY CNCL,,,,5000194221,Grant Payable by Exchequer,PE1 1HG,"246,535.00",Yes
Communities & Local Government,DCLG,02/04/2012,Revenue Support grant payable,Localism,PLYMOUTH CITY CNCL,,,,5000194224,Grant Payable by Exchequer,PL1 2AA,"358,037.00",Yes
Communities & Local Government,DCLG,02/04/2012,Revenue Support grant payable,Localism,POOLE BC,,,,5000194227,Grant Payable by Exchequer,BH15 2RU,"166,154.00",Yes
Communities & Local Government,DCLG,02/04/2012,Revenue Support grant payable,Localism,PORTSMOUTH CITY COUNCIL,,,,5000194230,Grant Payable by Exchequer,PO1 2AR,"286,686.00",Yes
Communities & Local Government,DCLG,02/04/2012,Revenue Support grant payable,Localism,PRESTON BC,,,,5000194233,Grant Payable by Exchequer,PR1 2RL,"32,076.00",Yes
Communities & Local Government,DCLG,02/04/2012,Revenue Support grant payable,Localism,PURBECK DC,,,,5000194236,Grant Payable by Exchequer,BH20 4PP,"8,095.00",Yes
Communities & Local Government,DCLG,02/04/2012,Revenue Support grant payable,Localism,READING BC,,,,5000194239,Grant Payable by Exchequer,RG1 7TD,"189,512.00",Yes
Communities & Local Government,DCLG,02/04/2012,Revenue Support grant payable,Localism,REDCAR & CLEVELAND BOROUGH COUNCIL,,,,5000194245,Grant Payable by Exchequer,TS6 9AR,"212,609.00",Yes
Communities & Local Government,DCLG,02/04/2012,Revenue Support grant payable,Localism,REDDITCH BC,,,,5000194248,Grant Payable by Exchequer,B98 8AH,"14,017.00",Yes
Communities & Local Government,DCLG,02/04/2012,Revenue Support grant payable,Localism,REIGATE & BANSTEAD BC,,,,5000194251,Grant Payable by Exchequer,RH2 OSH,"19,376.00",Yes
Communities & Local Government,DCLG,02/04/2012,Revenue Support grant payable,Localism,RIBBLE VALLEY BC,,,,5000194254,Grant Payable by Exchequer,BB7 2RA,"9,656.00",Yes
Communities & Local Government,DCLG,02/04/2012,Revenue Support grant payable,Localism,RICHMOND UPON THAMES LB,,,,5000194256,Grant Payable by Exchequer,TW1 3BZ,"190,848.00",Yes
Communities & Local Government,DCLG,02/04/2012,Revenue Support grant payable,Localism,RICHMONDSHIRE DC,,Large,,5000194257,Grant Payable by Exchequer,DL10 7AF,"10,933.00",Yes
Communities & Local Government,DCLG,02/04/2012,Revenue Support grant payable,Localism,ROCHDALE MBC,,,,5000194259,Grant Payable by Exchequer,OL16 1LQ,"357,093.00",Yes
Communities & Local Government,DCLG,02/04/2012,Revenue Support grant payable,Localism,ROCHFORD DISTRICT COUNCIL,,,,5000194261,Grant Payable by Exchequer,SS4 1BW,"13,496.00",Yes
Communities & Local Government,DCLG,02/04/2012,Revenue Support grant payable,Localism,ROSSENDALE BC,,,,5000194263,Grant Payable by Exchequer,BB4 7LZ,"13,938.00",Yes
Communities & Local Government,DCLG,02/04/2012,Revenue Support grant payable,Localism,ROTHER DC,,,,5000194265,Grant Payable by Exchequer,TN39 3JX,"16,436.00",Yes
Communities & Local Government,DCLG,02/04/2012,Revenue Support grant payable,Localism,ROTHERHAM MBC,,,,5000194267,Grant Payable by Exchequer,S65 1UF,"383,729.00",Yes
Communities & Local Government,DCLG,02/04/2012,Revenue Support grant payable,Localism,ROYAL BERKSHIRE FIRE AUTHORITY,,,,5000193947,Grant Payable by Exchequer,RG30 4FS,"56,235.00",Yes
Communities & Local Government,DCLG,02/04/2012,Revenue Support grant payable,Localism,ROYAL BORO OF KENSINGTON & CHELSEA,,,,5000193970,Grant Payable by Exchequer,W8 7NX,"335,712.00",Yes
Communities & Local Government,DCLG,02/04/2012,Revenue Support grant payable,Localism,RUGBY BC,,,,5000194269,Grant Payable by Exchequer,CV21 2LA,"15,860.00",Yes
Communities & Local Government,DCLG,02/04/2012,Revenue Support grant payable,Localism,RUNNYMEDE BOROUGH COUNCIL,,,,5000194271,Grant Payable by Exchequer,KT15 2AH,"13,210.00",Yes
Communities & Local Government,DCLG,02/04/2012,Revenue Support grant payable,Localism,RUSHCLIFFE BOROUGH COUNCIL,,,,5000194273,Grant Payable by Exchequer,NG2 5FE,"18,253.00",Yes
Communities & Local Government,DCLG,02/04/2012,Revenue Support grant payable,Localism,RUSHMOOR BC,,,,5000194275,Grant Payable by Exchequer,GU14 7JU,"16,288.00",Yes
Communities & Local Government,DCLG,02/04/2012,Revenue Support grant payable,Localism,RUTLAND CC,,,,5000194277,Grant Payable by Exchequer,LE15 6HP,"48,692.00",Yes
Communities & Local Government,DCLG,02/04/2012,Revenue Support grant payable,Localism,RYEDALE DC,,,,5000194279,Grant Payable by Exchequer,YO17 0HH,"11,690.00",Yes
Communities & Local Government,DCLG,02/04/2012,Revenue Support grant payable,Localism,SALFORD CITY CNCL,,,,5000194281,Grant Payable by Exchequer,M27 5AW,"424,032.00",Yes
Communities & Local Government,DCLG,02/04/2012,Revenue Support grant payable,Localism,SANDWELL MBC,,,,5000194283,Grant Payable by Exchequer,B69 3BS,"530,120.00",Yes
Communities & Local Government,DCLG,02/04/2012,Revenue Support grant payable,Localism,SCARBOROUGH BC,,Large,,5000194285,Grant Payable by Exchequer,YO11 2HG,"27,450.00",Yes
Communities & Local Government,DCLG,02/04/2012,Revenue Support grant payable,Localism,SEDGEMOOR DC,,,,5000194287,Grant Payable by Exchequer,TA6 3AR,"21,122.00",Yes
Communities & Local Government,DCLG,02/04/2012,Revenue Support grant payable,Localism,SEFTON MBC,,,,5000194289,Grant Payable by Exchequer,L20 3NQ,"430,298.00",Yes
Communities & Local Government,DCLG,02/04/2012,Revenue Support grant payable,Localism,SELBY DC,,,,5000194291,Grant Payable by Exchequer,YO8 0SA,"15,960.00",Yes
Communities & Local Government,DCLG,02/04/2012,Revenue Support grant payable,Localism,SEVENOAKS DC,,,,5000194293,Grant Payable by Exchequer,TN13 1HG,"18,894.00",Yes
Communities & Local Government,DCLG,02/04/2012,Revenue Support grant payable,Localism,SHEFFIELD CITY CNCL,,,,5000194295,Grant Payable by Exchequer,S1 1UR,"884,309.00",Yes
Communities & Local Government,DCLG,02/04/2012,Revenue Support grant payable,Localism,SHEPWAY DC,,,,5000194297,Grant Payable by Exchequer,CT20 2QY,"24,511.00",Yes
Communities & Local Government,DCLG,02/04/2012,Revenue Support grant payable,Localism,SHROPSHIRE & WREKIN FIRE AUTHORITY,,,,5000194299,Grant Payable by Exchequer,SY1 2HJ,"32,362.00",Yes
Communities & Local Government,DCLG,02/04/2012,Revenue Support grant payable,Localism,SHROPSHIRE COUNCIL,,Large,,5000194246,Grant Payable by Exchequer,SY2 6ND,"386,607.00",Yes
Communities & Local Government,DCLG,02/04/2012,Revenue Support grant payable,Localism,SLOUGH BOROUGH COUNCIL,,,,5000194301,Grant Payable by Exchequer,SL1 3UQ,"177,438.00",Yes
Communities & Local Government,DCLG,02/04/2012,Revenue Support grant payable,Localism,SOLIHULL MBC,,,,5000194303,Grant Payable by Exchequer,B91 3QR,"217,363.00",Yes
Communities & Local Government,DCLG,02/04/2012,Revenue Support grant payable,Localism,SOMERSET COUNTY CNCL,,,,5000194305,Grant Payable by Exchequer,TA1 4DY,"616,473.00",Yes
Communities & Local Government,DCLG,02/04/2012,Revenue Support grant payable,Localism,SOUTH BUCKS DC,,,,5000194307,Grant Payable by Exchequer,UB9 4LH,"9,481.00",Yes
Communities & Local Government,DCLG,02/04/2012,Revenue Support grant payable,Localism,SOUTH CAMBRIDGESHIRE DC,,,,5000193888,Grant Payable by Exchequer,CB3 6EA,"19,730.00",Yes
Communities & Local Government,DCLG,02/04/2012,Revenue Support grant payable,Localism,SOUTH DERBYSHIRE D C,,,,5000193891,Grant Payable by Exchequer,DE11 0AH,"17,714.00",Yes
Communities & Local Government,DCLG,02/04/2012,Revenue Support grant payable,Localism,SOUTH GLOUCESTERSHIRE COUNCIL,,,,5000193894,Grant Payable by Exchequer,BS15 2TR,"270,876.00",Yes
Communities & Local Government,DCLG,02/04/2012,Revenue Support grant payable,Localism,SOUTH HAMS DC,,,,5000193897,Grant Payable by Exchequer,TQ9 5NE,"13,769.00",Yes
Communities & Local Government,DCLG,02/04/2012,Revenue Support grant payable,Localism,SOUTH HOLLAND,,,,5000193900,Grant Payable by Exchequer,PE11 2XE,"20,037.00",Yes
Communities & Local Government,DCLG,02/04/2012,Revenue Support grant payable,Localism,SOUTH KESTEVEN DC,,,,5000193903,Grant Payable by Exchequer,NG31 6PZ,"22,655.00",Yes
Communities & Local Government,DCLG,02/04/2012,Revenue Support grant payable,Localism,SOUTH LAKELAND DC,,,,5000193906,Grant Payable by Exchequer,LA49 4DQ,"16,710.00",Yes
Communities & Local Government,DCLG,02/04/2012,Revenue Support grant payable,Localism,SOUTH NORFOLK DC,,,,5000193909,Grant Payable by Exchequer,NR15 2XE,"22,637.00",Yes
Communities & Local Government,DCLG,02/04/2012,Revenue Support grant payable,Localism,SOUTH NORTHAMPTONSHIRE DC,,,,5000193912,Grant Payable by Exchequer,NN12 7AE,"14,738.00",Yes
Communities & Local Government,DCLG,02/04/2012,Revenue Support grant payable,Localism,SOUTH OXFORDSHIRE DC,,,,5000193915,Grant Payable by Exchequer,OX10 8HQ,"21,429.00",Yes
Communities & Local Government,DCLG,02/04/2012,Revenue Support grant payable,Localism,SOUTH RIBBLE BC,,,,5000193918,Grant Payable by Exchequer,PR5 1DH,"17,631.00",Yes
Communities & Local Government,DCLG,02/04/2012,Revenue Support grant payable,Localism,SOUTH SOMERSET DC,,,,5000193921,Grant Payable by Exchequer,BA20 2DS,"25,662.00",Yes
Communities & Local Government,DCLG,02/04/2012,Revenue Support grant payable,Localism,SOUTH STAFFORDSHIRE DC,,,,5000193924,Grant Payable by Exchequer,WV8 1PX,"15,788.00",Yes
Communities & Local Government,DCLG,02/04/2012,Revenue Support grant payable,Localism,SOUTH TYNESIDE COUNCIL,,,,5000193927,Grant Payable by Exchequer,NE33 2RL,"254,786.00",Yes
Communities & Local Government,DCLG,02/04/2012,Revenue Support grant payable,Localism,SOUTH YORKSHIRE FIRE & CD,,,,5000193930,Grant Payable by Exchequer,S1 3FG,"98,504.00",Yes
Communities & Local Government,DCLG,02/04/2012,Revenue Support grant payable,Localism,SOUTH YORKSHIRE P A,,,,5000193933,Grant Payable by Exchequer,S3 8LY,"271,074.00",Yes
Communities & Local Government,DCLG,02/04/2012,Revenue Support grant payable,Localism,SOUTHAMPTON CITY CNCL,,,,5000193936,Grant Payable by Exchequer,SO14 7NR,"331,063.00",Yes
Communities & Local Government,DCLG,02/04/2012,Revenue Support grant payable,Localism,SOUTHEND ON SEA BC,,,,5000193939,Grant Payable by Exchequer,SS2 6EP,"220,379.00",Yes
Communities & Local Government,DCLG,02/04/2012,Revenue Support grant payable,Localism,SOUTHWARK LB,,,,5000193942,Grant Payable by Exchequer,SE16 3QN,"584,936.00",Yes
Communities & Local Government,DCLG,02/04/2012,Revenue Support grant payable,Localism,SPELTHORNE DC,,,,5000193945,Grant Payable by Exchequer,TW18 1XB,"14,499.00",Yes
Communities & Local Government,DCLG,02/04/2012,Revenue Support grant payable,Localism,ST ALBANS CITY COUNCIL,,,,5000193948,Grant Payable by Exchequer,AL1 3JE,"22,153.00",Yes
Communities & Local Government,DCLG,02/04/2012,Revenue Support grant payable,Localism,ST EDMUNDSBURY BC,,,,5000193951,Grant Payable by Exchequer,IP33 3YS,"17,324.00",Yes
Communities & Local Government,DCLG,02/04/2012,Revenue Support grant payable,Localism,ST HELENS MBC,,,,5000193954,Grant Payable by Exchequer,WA10 1HP,"281,561.00",Yes
Communities & Local Government,DCLG,02/04/2012,Revenue Support grant payable,Localism,STAFFORD BC,,,,5000193957,Grant Payable by Exchequer,ST16 3AQ,"19,345.00",Yes
Communities & Local Government,DCLG,02/04/2012,Revenue Support grant payable,Localism,STAFFORDSHIRE  FIRE & RESCUE SERV,,,,5000193963,Grant Payable by Exchequer,ST15 0BS,"71,111.00",Yes
Communities & Local Government,DCLG,02/04/2012,Revenue Support grant payable,Localism,STAFFORDSHIRE COUNTY CNCL,,,,5000193960,Grant Payable by Exchequer,ST16 2LH,"823,187.00",Yes
Communities & Local Government,DCLG,02/04/2012,Revenue Support grant payable,Localism,STAFFORDSHIRE MOORLANDS DC,,,,5000193966,Grant Payable by Exchequer,ST13 6HQ,"18,212.00",Yes
Communities & Local Government,DCLG,02/04/2012,Revenue Support grant payable,Localism,STAFFORDSHIRE POLICE AUTHORITY,,,,5000193969,Grant Payable by Exchequer,ST16 2NF,"174,331.00",Yes
Communities & Local Government,DCLG,02/04/2012,Revenue Support grant payable,Localism,STEVENAGE BC,,,,5000193972,Grant Payable by Exchequer,SG1 1HN,"14,852.00",Yes
Communities & Local Government,DCLG,02/04/2012,Revenue Support grant payable,Localism,STOCKPORT MBC,,,,5000193975,Grant Payable by Exchequer,SK1 3XE,"353,745.00",Yes
Communities & Local Government,DCLG,02/04/2012,Revenue Support grant payable,Localism,STOCKTON ON TEES BC,,,,5000193978,Grant Payable by Exchequer,TS23 2YS,"239,708.00",Yes
Communities & Local Government,DCLG,02/04/2012,Revenue Support grant payable,Localism,STOKE ON TRENT CITY COUNCIL,,,,5000193981,Grant Payable by Exchequer,ST4 1RJ,"411,692.00",Yes
Communities & Local Government,DCLG,02/04/2012,Revenue Support grant payable,Localism,STRATFORD ON AVON DC,,,,5000193984,Grant Payable by Exchequer,CV37 6HX,"17,671.00",Yes
Communities & Local Government,DCLG,02/04/2012,Revenue Support grant payable,Localism,STROUD DC,,,,5000193987,Grant Payable by Exchequer,GL5 4UB,"19,295.00",Yes
Communities & Local Government,DCLG,02/04/2012,Revenue Support grant payable,Localism,SUFFOLK COASTAL DC,,,,5000193993,Grant Payable by Exchequer,IP12 1AU,"20,924.00",Yes
Communities & Local Government,DCLG,02/04/2012,Revenue Support grant payable,Localism,SUFFOLK COUNTY CNCL,,,,5000193990,Grant Payable by Exchequer,IP4 2JP,"813,260.00",Yes
Communities & Local Government,DCLG,02/04/2012,Revenue Support grant payable,Localism,SUFFOLK POLICE AUTHORITY,,,,5000193996,Grant Payable by Exchequer,IP5 3QS,"96,727.00",Yes
Communities & Local Government,DCLG,02/04/2012,Revenue Support grant payable,Localism,SUNDERLAND DC,,,,5000193999,Grant Payable by Exchequer,SR2 7DN,"446,076.00",Yes
Communities & Local Government,DCLG,02/04/2012,Revenue Support grant payable,Localism,SURREY COUNTY CNCL,,,,5000194002,Grant Payable by Exchequer,KT1 2EA,"941,932.00",Yes
Communities & Local Government,DCLG,02/04/2012,Revenue Support grant payable,Localism,SURREY HEATH BC,,,,5000194005,Grant Payable by Exchequer,GU15 3HD,"13,146.00",Yes
Communities & Local Government,DCLG,02/04/2012,Revenue Support grant payable,Localism,SURREY POLICE AUTHORITY,,,,5000194008,Grant Payable by Exchequer,KT1 2EA,"186,548.00",Yes
Communities & Local Government,DCLG,02/04/2012,Revenue Support grant payable,Localism,SUSSEX POLICE AUTHORITY,,,,5000194011,Grant Payable by Exchequer,PO19 1RG,"233,855.00",Yes
Communities & Local Government,DCLG,02/04/2012,Revenue Support grant payable,Localism,SUTTON LB,,,,5000194014,Grant Payable by Exchequer,SM1 1EA,"221,258.00",Yes
Communities & Local Government,DCLG,02/04/2012,Revenue Support grant payable,Localism,SWALE BC,,,,5000194017,Grant Payable by Exchequer,ME10 3HT,"25,889.00",Yes
Communities & Local Government,DCLG,02/04/2012,Revenue Support grant payable,Localism,SWINDON BC,,,,5000194019,Grant Payable by Exchequer,SN1 2JH,"220,583.00",Yes
Communities & Local Government,DCLG,02/04/2012,Revenue Support grant payable,Localism,TAMESIDE MBC,,,,5000194022,Grant Payable by Exchequer,OL6 6DL,"334,778.00",Yes
Communities & Local Government,DCLG,02/04/2012,Revenue Support grant payable,Localism,TAMWORTH BOROUGH COUNCIL,,,,5000194025,Grant Payable by Exchequer,B79 7BZ,"14,124.00",Yes
Communities & Local Government,DCLG,02/04/2012,Revenue Support grant payable,Localism,TANDRIDGE DC,,,,5000194028,Grant Payable by Exchequer,RH8 0BT,"12,562.00",Yes
Communities & Local Government,DCLG,02/04/2012,Revenue Support grant payable,Localism,TAUNTON DEANE BC,,,,5000194031,Grant Payable by Exchequer,TA1 1HE,"18,131.00",Yes
Communities & Local Government,DCLG,02/04/2012,Revenue Support grant payable,Localism,TEIGNBRIDGE DC,,,,5000194034,Grant Payable by Exchequer,TQ12 4XX,"22,286.00",Yes
Communities & Local Government,DCLG,02/04/2012,Revenue Support grant payable,Localism,TELFORD & WREKIN DC,,,,5000194037,Grant Payable by Exchequer,TF3 4LF,"221,783.00",Yes
Communities & Local Government,DCLG,02/04/2012,Revenue Support grant payable,Localism,TENDRING DC,,,,5000194040,Grant Payable by Exchequer,CO15 1SE,"29,667.00",Yes
Communities & Local Government,DCLG,02/04/2012,Revenue Support grant payable,Localism,TEST VALLEY BC,,Large,,5000194043,Grant Payable by Exchequer,SP10 3AJ,"16,778.00",Yes
Communities & Local Government,DCLG,02/04/2012,Revenue Support grant payable,Localism,TEWKESBURY BC,,,,5000194046,Grant Payable by Exchequer,GL20 5TT,"12,662.00",Yes
Communities & Local Government,DCLG,02/04/2012,Revenue Support grant payable,Localism,THAMES VALLEY POLICE AUTHORITY,,,,5000194050,Grant Payable by Exchequer,OX5 2NX,"346,005.00",Yes
Communities & Local Government,DCLG,02/04/2012,Revenue Support grant payable,Localism,THANET DC,,,,5000194053,Grant Payable by Exchequer,CT8 1XZ,"31,476.00",Yes
Communities & Local Government,DCLG,02/04/2012,Revenue Support grant payable,Localism,THREE RIVERS DC,,,,5000194056,Grant Payable by Exchequer,WD3 1RL,"16,478.00",Yes
Communities & Local Government,DCLG,02/04/2012,Revenue Support grant payable,Localism,THURROCK  BOROUGH COUNCIL,,,,5000194059,Grant Payable by Exchequer,RM17 6LT,"213,466.00",Yes
Communities & Local Government,DCLG,02/04/2012,Revenue Support grant payable,Localism,TONBRIDGE & MALLING BC,,,,5000194062,Grant Payable by Exchequer,ME19 6LZ,"17,748.00",Yes
Communities & Local Government,DCLG,02/04/2012,Revenue Support grant payable,Localism,TORBAY BC,,,,5000194065,Grant Payable by Exchequer,TQ1 3DR,"216,752.00",Yes
Communities & Local Government,DCLG,02/04/2012,Revenue Support grant payable,Localism,TORRIDGE DC,,,,5000194068,Grant Payable by Exchequer,EX39 2HT,"14,258.00",Yes
Communities & Local Government,DCLG,02/04/2012,Revenue Support grant payable,Localism,TOWER HAMLETS LB,,,,5000194071,Grant Payable by Exchequer,E14 2BG,"576,113.00",Yes
Communities & Local Government,DCLG,02/04/2012,Revenue Support grant payable,Localism,TRAFFORD MBC,,,,5000194074,Grant Payable by Exchequer,M32 0YY,"239,862.00",Yes
Communities & Local Government,DCLG,02/04/2012,Revenue Support grant payable,Localism,TUNBRIDGE WELLS BC,,,,5000194077,Grant Payable by Exchequer,TN1 1RS,"16,920.00",Yes
Communities & Local Government,DCLG,02/04/2012,Revenue Support grant payable,Localism,TYNE & WEAR FIRE AUTHORITY,,,,5000194080,Grant Payable by Exchequer,SR2 7DN,"95,406.00",Yes
Communities & Local Government,DCLG,02/04/2012,Revenue Support grant payable,Localism,UTTLESFORD DC,,,,5000194083,Grant Payable by Exchequer,CB11 4ER,"11,446.00",Yes
Communities & Local Government,DCLG,02/04/2012,Revenue Support grant payable,Localism,VALE OF WHITE HORSE DC,,,,5000194086,Grant Payable by Exchequer,OX14 3JH,"18,088.00",Yes
Communities & Local Government,DCLG,02/04/2012,Revenue Support grant payable,Localism,W YORKSHIRE FIRE & RESCUE AUTH,,,,5000194163,Grant Payable by Exchequer,BD11 2DY,"157,734.00",Yes
Communities & Local Government,DCLG,02/04/2012,Revenue Support grant payable,Localism,WALSALL MBC,,,,5000194092,Grant Payable by Exchequer,WS1 1TW,"429,838.00",Yes
Communities & Local Government,DCLG,02/04/2012,Revenue Support grant payable,Localism,WALTHAM FOREST LB,,Large,,5000194095,Grant Payable by Exchequer,E17 4JF,"393,468.00",Yes
Communities & Local Government,DCLG,02/04/2012,Revenue Support grant payable,Localism,WANDSWORTH LB,,,,5000194098,Grant Payable by Exchequer,SW18 2PU,"382,601.00",Yes
Communities & Local Government,DCLG,02/04/2012,Revenue Support grant payable,Localism,WARRINGTON BC,,,,5000194101,Grant Payable by Exchequer,WA1 1BN,"213,554.00",Yes
Communities & Local Government,DCLG,02/04/2012,Revenue Support grant payable,Localism,WARWICK,,,,5000194104,Grant Payable by Exchequer,CV32 4NW,"23,894.00",Yes
Communities & Local Government,DCLG,02/04/2012,Revenue Support grant payable,Localism,WARWICKSHIRE COUNTY CNCL,,,,5000194107,Grant Payable by Exchequer,CV34 4RH,"579,644.00",Yes
Communities & Local Government,DCLG,02/04/2012,Revenue Support grant payable,Localism,WARWICKSHIRE POLICE AUTHORITY,,,,5000194110,Grant Payable by Exchequer,CV35 7QB,"84,626.00",Yes
Communities & Local Government,DCLG,02/04/2012,Revenue Support grant payable,Localism,WATFORD COUNCIL,,,,5000194113,Grant Payable by Exchequer,WD17 3EX,"19,753.00",Yes
Communities & Local Government,DCLG,02/04/2012,Revenue Support grant payable,Localism,WAVENEY DISTRICT COUNCIL,,Large,,5000194116,Grant Payable by Exchequer,NR32 1HS,"24,637.00",Yes
Communities & Local Government,DCLG,02/04/2012,Revenue Support grant payable,Localism,WAVERLEY BC,,,,5000194119,Grant Payable by Exchequer,GU7 1HR,"17,332.00",Yes
Communities & Local Government,DCLG,02/04/2012,Revenue Support grant payable,Localism,WEALDEN DC,,,,5000194122,Grant Payable by Exchequer,BN22 9LN,"23,789.00",Yes
Communities & Local Government,DCLG,02/04/2012,Revenue Support grant payable,Localism,WELLINGBOROUGH,,,,5000194125,Grant Payable by Exchequer,NN8 1BN,"15,103.00",Yes
Communities & Local Government,DCLG,02/04/2012,Revenue Support grant payable,Localism,WELWYN HATFIELD COUNCIL,,,,5000194128,Grant Payable by Exchequer,AL8 6AE,"21,979.00",Yes
Communities & Local Government,DCLG,02/04/2012,Revenue Support grant payable,Localism,WEST BERKSHIRE COUNCIL,,,,5000194131,Grant Payable by Exchequer,RG14 2AF,"169,678.00",Yes
Communities & Local Government,DCLG,02/04/2012,Revenue Support grant payable,Localism,WEST DEVON BC,,,,5000194134,Grant Payable by Exchequer,PL19 0BZ,"11,209.00",Yes
Communities & Local Government,DCLG,02/04/2012,Revenue Support grant payable,Localism,WEST DORSET DC,,,,5000194137,Grant Payable by Exchequer,DT1 1UZ,"19,599.00",Yes
Communities & Local Government,DCLG,02/04/2012,Revenue Support grant payable,Localism,WEST LANCASHIRE BC,,,,5000194140,Grant Payable by Exchequer,L39 2DF,"22,095.00",Yes
Communities & Local Government,DCLG,02/04/2012,Revenue Support grant payable,Localism,WEST LINDSEY DC,,,,5000194143,Grant Payable by Exchequer,DN21 2NA,"19,409.00",Yes
Communities & Local Government,DCLG,02/04/2012,Revenue Support grant payable,Localism,WEST MERCIA POLICE AUTH,,,,5000194146,Grant Payable by Exchequer,WR5 2NP,"202,504.00",Yes
Communities & Local Government,DCLG,02/04/2012,Revenue Support grant payable,Localism,WEST MIDLANDS FIRE & CIVIL DEFENCE,,,,5000194149,Grant Payable by Exchequer,B4 7DE,"215,554.00",Yes
Communities & Local Government,DCLG,02/04/2012,Revenue Support grant payable,Localism,WEST MIDLANDS POLICE AUTH,,,,5000194152,Grant Payable by Exchequer,B4 6NQ,"575,342.00",Yes
Communities & Local Government,DCLG,02/04/2012,Revenue Support grant payable,Localism,WEST OXFORDSHIRE DC,,,,5000194155,Grant Payable by Exchequer,OX28 1NB,"14,238.00",Yes
Communities & Local Government,DCLG,02/04/2012,Revenue Support grant payable,Localism,WEST SOMERSET DC,,,,5000194157,Grant Payable by Exchequer,TA4 4QA,"7,605.00",Yes
Communities & Local Government,DCLG,02/04/2012,Revenue Support grant payable,Localism,WEST SUSSEX CC,,,,5000194160,Grant Payable by Exchequer,PO19 1RG,"749,400.00",Yes
Communities & Local Government,DCLG,02/04/2012,Revenue Support grant payable,Localism,WEST YORKSHIRE POLICE AUTHORITY,,,,5000194166,Grant Payable by Exchequer,WF1 3QP,"431,732.00",Yes
Communities & Local Government,DCLG,02/04/2012,Revenue Support grant payable,Localism,WESTMINSTER CITY CNCL,,,,5000194169,Grant Payable by Exchequer,SW1E 6QP,"467,763.00",Yes
Communities & Local Government,DCLG,02/04/2012,Revenue Support grant payable,Localism,WEYMOUTH & PORTLAND BC,,,,5000194172,Grant Payable by Exchequer,DT4 8TA,"14,017.00",Yes
Communities & Local Government,DCLG,02/04/2012,Revenue Support grant payable,Localism,WIGAN MBC,,,,5000194175,Grant Payable by Exchequer,WN1 1YD,"424,137.00",Yes
Communities & Local Government,DCLG,02/04/2012,Revenue Support grant payable,Localism,WILTSHIRE & SWINDON FIRE AUTHORITY,,,,5000194180,Grant Payable by Exchequer,SN10 5PP,"38,116.00",Yes
Communities & Local Government,DCLG,02/04/2012,Revenue Support grant payable,Localism,WILTSHIRE COUNCIL,,,,5000194249,Grant Payable by Exchequer,BA14 8JN,"513,594.00",Yes
Communities & Local Government,DCLG,02/04/2012,Revenue Support grant payable,Localism,WILTSHIRE POLICE,,,,5000194183,Grant Payable by Exchequer,BA14 8JJ,"98,194.00",Yes
Communities & Local Government,DCLG,02/04/2012,Revenue Support grant payable,Localism,WINCHESTER CITY CNCL,,,,5000194186,Grant Payable by Exchequer,SO23 9LJ,"15,814.00",Yes
Communities & Local Government,DCLG,02/04/2012,Revenue Support grant payable,Localism,WINDSOR & MAIDENHEAD,,,,5000194189,Grant Payable by Exchequer,SL6 1RF,"123,531.00",Yes
Communities & Local Government,DCLG,02/04/2012,Revenue Support grant payable,Localism,WIRRAL MBC,,,,5000194192,Grant Payable by Exchequer,L41 6BU,"492,595.00",Yes
Communities & Local Government,DCLG,02/04/2012,Revenue Support grant payable,Localism,WOKING BC,,,,5000194195,Grant Payable by Exchequer,GU21 1YL,"16,259.00",Yes
Communities & Local Government,DCLG,02/04/2012,Revenue Support grant payable,Localism,WOKINGHAM DC,,,,5000194198,Grant Payable by Exchequer,RG11 1WJ,"128,044.00",Yes
Communities & Local Government,DCLG,02/04/2012,Revenue Support grant payable,Localism,WOLVERHAMPTON MBC,,,,5000194201,Grant Payable by Exchequer,WV1 1RL,"411,825.00",Yes
Communities & Local Government,DCLG,02/04/2012,Revenue Support grant payable,Localism,WORCESTER CITY CNCL,,,,5000194204,Grant Payable by Exchequer,WR1 2EZ,"15,448.00",Yes
Communities & Local Government,DCLG,02/04/2012,Revenue Support grant payable,Localism,WORCESTERSHIRE COUNTY COUNCIL,,,,5000194207,Grant Payable by Exchequer,WR5 2NP,"583,030.00",Yes
Communities & Local Government,DCLG,02/04/2012,Revenue Support grant payable,Localism,WORTHING BC,,,,5000194210,Grant Payable by Exchequer,BN11 1HB,"17,458.00",Yes
Communities & Local Government,DCLG,02/04/2012,Revenue Support grant payable,Localism,WYCHAVON DISTRICT COUNCIL,,,,5000194213,Grant Payable by Exchequer,WR10 1PT,"18,176.00",Yes
Communities & Local Government,DCLG,02/04/2012,Revenue Support grant payable,Localism,WYCOMBE DC,,,,5000194216,Grant Payable by Exchequer,HP11 1BB,"25,098.00",Yes
Communities & Local Government,DCLG,02/04/2012,Revenue Support grant payable,Localism,WYRE BC,,,,5000194219,Grant Payable by Exchequer,FY6 7PU,"22,863.00",Yes
Communities & Local Government,DCLG,02/04/2012,Revenue Support grant payable,Localism,WYRE FOREST DISTRICT COUNCIL,,,,5000194222,Grant Payable by Exchequer,DY10 1DA,"18,518.00",Yes
Communities & Local Government,DCLG,02/04/2012,Revenue Support grant payable,Localism,YORK CITY CNCL,,,,5000194094,Grant Payable by Exchequer,YO1 1XH,"199,199.00",Yes
Communities & Local Government,DCLG,03/04/2012,Agency Staff,Finance & Corporate Services,SQUARE ONE RESOURCES LTD,,Medium,,5106176602,SAP Dev & Support for BW,EC2A 2AD,"2,287.06",
Communities & Local Government,DCLG,03/04/2012,Agency Staff,Finance & Corporate Services,SQUARE ONE RESOURCES LTD,,Medium,,5106176992,SAP Dev & Support for BW,EC2A 2AD,"2,858.82",
Communities & Local Government,DCLG,03/04/2012,Agency Staff,Finance & Corporate Services,SQUARE ONE RESOURCES LTD,,Medium,,5106177399,SAP Dev & Support for BW,EC2A 2AD,"2,858.82",
Communities & Local Government,DCLG,03/04/2012,Agency Staff,Finance & Corporate Services,SQUARE ONE RESOURCES LTD,,Medium,,5106177506,SAP Dev & Support for BW,EC2A 2AD,"2,858.82",
Communities & Local Government,DCLG,03/04/2012,Current (non AEF) Grants to Local Authorities,Localism,LONDON FIRE & EMERG PLANNING AUTH,,Large,,5000169567,Overpayment of Grant recovered by Exchequer,SE1 0LL,"-16,843.00",Yes
Communities & Local Government,DCLG,03/04/2012,Fixed Maintenance,Localism,VT FLAGSHIP INFRASTRUCTURE,,Large,,5106177473,20% SE RCC Allowance 11/12,BS3 2HQ,567.00,
Communities & Local Government,DCLG,03/04/2012,Grant in Aid to NDPBs (non budget),Localism,VALUATION TRIBUNAL SERVICE,,,,2100215609,Claim in respect to April 2012 expenditure,E1 1DU,"558,926.00",Yes
Communities & Local Government,DCLG,03/04/2012,IT - Service Contracts,Localism,INFORMED SOLUTIONS LTD,,Small,,5106177496,Outsourced IT Support 2011/12,WA14 4PA,"19,800.00",
Communities & Local Government,DCLG,03/04/2012,IT - Service Contracts,Localism,INFORMED SOLUTIONS LTD,,Small,,5106177498,Outsourced IT Support 2011/12,WA14 4PA,"1,780.00",
Communities & Local Government,DCLG,03/04/2012,Legal Fees,Finance & Corporate Services,FIELD FISHER WATERHOUSE LLP,,Large,,5106177505,Green Flag TM Fees,EC3N 2AA,"30,614.70",
Communities & Local Government,DCLG,03/04/2012,Legal Fees,Finance & Corporate Services,FIELD FISHER WATERHOUSE LLP,,Large,,5106177505,Green Flag TM Feesno vat,EC3N 2AA,"14,673.80",
Communities & Local Government,DCLG,03/04/2012,Management Consultancy,Neighbourhoods,CEL GROUP,,Medium,,5106177488,Payments for 1/10/11 - 30/09/12,SK13 8HT,"85,415.60",
Communities & Local Government,DCLG,03/04/2012,Photocopying,Finance & Corporate Services,MITIE BUSINESS SERVICES LTD,,Large,,2100215605,Reprographics 20.03.2012,SE1 2QG,233.69,
Communities & Local Government,DCLG,03/04/2012,Photocopying,Finance & Corporate Services,MITIE BUSINESS SERVICES LTD,,Large,,2100215605,Reprographics 20.03.2012,SE1 2QG,1.76,
Communities & Local Government,DCLG,03/04/2012,Photocopying,Finance & Corporate Services,MITIE BUSINESS SERVICES LTD,,Large,,2100215605,Reprographics 20.03.2012,SE1 2QG,43.74,
Communities & Local Government,DCLG,03/04/2012,Photocopying,Finance & Corporate Services,MITIE BUSINESS SERVICES LTD,,Large,,2100215605,Reprographics 20.03.2012,SE1 2QG,60.72,
Communities & Local Government,DCLG,03/04/2012,Photocopying,Finance & Corporate Services,MITIE BUSINESS SERVICES LTD,,Large,,2100215605,Reprographics 20.03.2012,SE1 2QG,8.04,
Communities & Local Government,DCLG,03/04/2012,Photocopying,Finance & Corporate Services,MITIE BUSINESS SERVICES LTD,,Large,,2100215605,Reprographics 20.03.2012,SE1 2QG,659.89,
Communities & Local Government,DCLG,03/04/2012,Photocopying,Finance & Corporate Services,MITIE BUSINESS SERVICES LTD,,Large,,2100215605,Reprographics 20.03.2012,SE1 2QG,155.71,
Communities & Local Government,DCLG,03/04/2012,Photocopying,Finance & Corporate Services,MITIE BUSINESS SERVICES LTD,,Large,,2100215605,Reprographics 20.03.2012,SE1 2QG,12.41,
Communities & Local Government,DCLG,03/04/2012,Photocopying,Finance & Corporate Services,MITIE BUSINESS SERVICES LTD,,Large,,2100215605,Reprographics 20.03.2012,SE1 2QG,694.57,
Communities & Local Government,DCLG,03/04/2012,Photocopying,Finance & Corporate Services,MITIE BUSINESS SERVICES LTD,,Large,,2100215605,Reprographics 20.03.2012,SE1 2QG,6.60,
Communities & Local Government,DCLG,03/04/2012,Photocopying,Finance & Corporate Services,MITIE BUSINESS SERVICES LTD,,Large,,2100215605,Reprographics 20.03.2012,SE1 2QG,1.85,
Communities & Local Government,DCLG,03/04/2012,Photocopying,Localism,MITIE BUSINESS SERVICES LTD,,Large,,2100215605,Reprographics 20.03.2012,SE1 2QG,14.63,
Communities & Local Government,DCLG,03/04/2012,Photocopying,Localism,MITIE BUSINESS SERVICES LTD,,Large,,2100215605,Reprographics 20.03.2012,SE1 2QG,53.06,
Communities & Local Government,DCLG,03/04/2012,Photocopying,Localism,MITIE BUSINESS SERVICES LTD,,Large,,2100215605,Reprographics 20.03.2012,SE1 2QG,28.64,
Communities & Local Government,DCLG,03/04/2012,Photocopying,Localism,MITIE BUSINESS SERVICES LTD,,Large,,2100215605,Reprographics 20.03.2012,SE1 2QG,327.93,
Communities & Local Government,DCLG,03/04/2012,Photocopying,Localism,MITIE BUSINESS SERVICES LTD,,Large,,2100215605,Reprographics 20.03.2012,SE1 2QG,22.27,
Communities & Local Government,DCLG,03/04/2012,Photocopying,Localism,MITIE BUSINESS SERVICES LTD,,Large,,2100215605,Reprographics 20.03.2012,SE1 2QG,0.53,
Communities & Local Government,DCLG,03/04/2012,Photocopying,Localism,MITIE BUSINESS SERVICES LTD,,Large,,2100215605,Reprographics 20.03.2012,SE1 2QG,2.70,
Communities & Local Government,DCLG,03/04/2012,Photocopying,Localism,MITIE BUSINESS SERVICES LTD,,Large,,2100215605,Reprographics 20.03.2012,SE1 2QG,17.82,
Communities & Local Government,DCLG,03/04/2012,Photocopying,Localism,MITIE BUSINESS SERVICES LTD,,Large,,2100215605,Reprographics 20.03.2012,SE1 2QG,33.89,
Communities & Local Government,DCLG,03/04/2012,Photocopying,Localism,MITIE BUSINESS SERVICES LTD,,Large,,2100215605,Reprographics 20.03.2012,SE1 2QG,20.69,
Communities & Local Government,DCLG,03/04/2012,Photocopying,Localism,MITIE BUSINESS SERVICES LTD,,Large,,2100215605,Reprographics 20.03.2012,SE1 2QG,132.48,
Communities & Local Government,DCLG,03/04/2012,Photocopying,Localism,MITIE BUSINESS SERVICES LTD,,Large,,2100215605,Reprographics 20.03.2012,SE1 2QG,7.04,
Communities & Local Government,DCLG,03/04/2012,Photocopying,Localism,MITIE BUSINESS SERVICES LTD,,Large,,2100215605,Reprographics 20.03.2012,SE1 2QG,"1,121.16",
Communities & Local Government,DCLG,03/04/2012,Photocopying,Localism,MITIE BUSINESS SERVICES LTD,,Large,,2100215605,Reprographics 20.03.2012,SE1 2QG,563.85,
Communities & Local Government,DCLG,03/04/2012,Photocopying,Neighbourhoods,MITIE BUSINESS SERVICES LTD,,Large,,2100215605,Reprographics 20.03.2012,SE1 2QG,5.29,
Communities & Local Government,DCLG,03/04/2012,Photocopying,Neighbourhoods,MITIE BUSINESS SERVICES LTD,,Large,,2100215605,Reprographics 20.03.2012,SE1 2QG,475.55,
Communities & Local Government,DCLG,03/04/2012,Photocopying,Neighbourhoods,MITIE BUSINESS SERVICES LTD,,Large,,2100215605,Reprographics 20.03.2012,SE1 2QG,36.43,
Communities & Local Government,DCLG,03/04/2012,Photocopying,Neighbourhoods,MITIE BUSINESS SERVICES LTD,,Large,,2100215605,Reprographics 20.03.2012,SE1 2QG,198.00,
Communities & Local Government,DCLG,03/04/2012,Photocopying,Neighbourhoods,MITIE BUSINESS SERVICES LTD,,Large,,2100215605,Reprographics 20.03.2012,SE1 2QG,100.76,
Communities & Local Government,DCLG,03/04/2012,Photocopying,Neighbourhoods,MITIE BUSINESS SERVICES LTD,,Large,,2100215605,Reprographics 20.03.2012,SE1 2QG,16.51,
Communities & Local Government,DCLG,03/04/2012,Photocopying,Neighbourhoods,MITIE BUSINESS SERVICES LTD,,Large,,2100215605,Reprographics 20.03.2012,SE1 2QG,11.29,
Communities & Local Government,DCLG,03/04/2012,Photocopying,Neighbourhoods,MITIE BUSINESS SERVICES LTD,,Large,,2100215605,Reprographics 20.03.2012,SE1 2QG,30.55,
Communities & Local Government,DCLG,03/04/2012,Photocopying,Neighbourhoods,MITIE BUSINESS SERVICES LTD,,Large,,2100215605,Reprographics 20.03.2012,SE1 2QG,2.73,
Communities & Local Government,DCLG,03/04/2012,Photocopying,Neighbourhoods,MITIE BUSINESS SERVICES LTD,,Large,,2100215605,Reprographics 20.03.2012,SE1 2QG,61.21,
Communities & Local Government,DCLG,03/04/2012,Photocopying,Troubled Families,MITIE BUSINESS SERVICES LTD,,Large,,2100215605,Reprographics 20.03.2012,SE1 2QG,45.79,
Communities & Local Government,DCLG,03/04/2012,Photocopying,Strategic Performance Team,MITIE BUSINESS SERVICES LTD,,Large,,2100215605,Reprographics 20.03.2012,SE1 2QG,67.29,
Communities & Local Government,DCLG,03/04/2012,Professional services,Localism,VALUATION OFFICE AGENCY,,Public Bodies,,2100215610,Payment for work on NNDR and CTax,W1B 5BU,"12,416,666.66",
Communities & Local Government,DCLG,03/04/2012,Professional services,Neighbourhoods,BUILDING RESEARCH ESTABLISHMENT,,Large,,5106177484,Code for April 2011 to March 2013,WD25 9XX,"15,157.27",
Communities & Local Government,DCLG,03/04/2012,Removals and Porterage,Finance & Corporate Services,D FURNELL PLANT SERVICES LTD,,Small,,5106177500,Boxed IT equipment for Eland House,HP1 7BT,723.60,
Communities & Local Government,DCLG,03/04/2012,Rent,Finance & Corporate Services,CELTIC LAND (PLYMOUTH) LTD,,Small,,5106177502,Mast Hse Plymouth Rent 2012/13,W1G 9SB,"82,500.00",
Communities & Local Government,DCLG,03/04/2012,Telephone call costs,Finance & Corporate Services,DAMOVO UK LTD,,Large,,5106177510,Telephony Charges,RH12 4QP,"1,105.32",
Communities & Local Government,DCLG,03/04/2012,Training,Finance & Corporate Services,KAPLAN FINANCIAL LTD,,Large,,5106177492,ACCA training and qualification Finance,SE1 1HR,"1,140.42",
Communities & Local Government,DCLG,03/04/2012,Vehicle Maintenance,Localism,BABCOCK CRITICAL SERVICES LTD,,Large,,5106177362,Unplanned Vehicle Maintenance,NG15 0DR,"53,166.24",
Communities & Local Government,DCLG,03/04/2012,Work In Progress Pre-Cert 40373 Spend,Neighbourhoods,CUMBRIA TOURISM,,,,7600001284,ERDF Claim - 34 - P3-NW,LA8 9PL,"76,806.11",
Communities & Local Government,DCLG,03/04/2012,Work In Progress Pre-Cert 40467 Spend,Neighbourhoods,ARMSTRONG PROPERTIES (NW) LTD,,Small,,7600001281,ERDF Claim - 4 - P1-NW,M30 9HQ,"21,035.70",
Communities & Local Government,DCLG,03/04/2012,Work In Progress Pre-Cert 40467 Spend,Neighbourhoods,REDSUN DEVELOPMENTS LTD,,,,7600001286,ERDF Claim - 28 - P3-MS,L2 7QS,"53,060.49",
Communities & Local Government,DCLG,03/04/2012,Work In Progress Pre-Cert 40467 Spend,Neighbourhoods,RIVER STREET ASSETS LLP,,,,7600001285,ERDF Claim - 21 - P4-MS,M15 4PY,"27,666.00",
Communities & Local Government,DCLG,03/04/2012,Work In Progress Pre-Cert 40467 Spend,Neighbourhoods,SALFORD CITY COUNCIL,,,,7600001282,ERDF Claim - 4 - P3-NW,M27 5FJ,"214,578.48",
Communities & Local Government,DCLG,03/04/2012,Work In Progress Pre-Cert 40467 Spend,Neighbourhoods,SALFORD CITY COUNCIL,,,,7600001283,ERDF Claim - 5 - P3-NW,M27 5FJ,"580,577.21",
Communities & Local Government,DCLG,04/04/2012,Agency Staff,Finance & Corporate Services,CAPITA RESOURCING LTD,,Large,,5106177531,Interim contractor,SL6 1DP,"2,574.00",
Communities & Local Government,DCLG,04/04/2012,Agency Staff,Finance & Corporate Services,CAPITA RESOURCING LTD,,Large,,5106177538,Contractor Internal Audit,SL6 1DP,"2,235.60",
Communities & Local Government,DCLG,04/04/2012,Agency Staff,Finance & Corporate Services,CAPITA RESOURCING LTD,,Large,,5106177538,Expenses,SL6 1DP,27.60,
Communities & Local Government,DCLG,04/04/2012,Agency Staff,Finance & Corporate Services,CAPITA RESOURCING LTD,,Large,,5106177540,Interim Contractor,SL6 1DP,"13,171.20",
Communities & Local Government,DCLG,04/04/2012,Agency Staff,Finance & Corporate Services,CAPITA RESOURCING LTD,,Large,,5106177542,Interim - CPD,SL6 1DP,"2,574.00",
Communities & Local Government,DCLG,04/04/2012,Agency Staff,Finance & Corporate Services,CAPITA RESOURCING LTD,,Large,,5106177547,CPD 0492030 Capita MSP..,SL6 1DP,"2,060.10",
Communities & Local Government,DCLG,04/04/2012,Agency Staff,Finance & Corporate Services,CAPITA RESOURCING LTD,,Large,,5106177548,Contractor IAExtension,SL6 1DP,"1,794.72",
Communities & Local Government,DCLG,04/04/2012,Agency Staff,Finance & Corporate Services,CAPITA RESOURCING LTD,,Large,,5106177560,Interim contractor - HMT Toolkit,SL6 1DP,"2,688.00",
Communities & Local Government,DCLG,04/04/2012,Agency Staff,Finance & Corporate Services,CAPITA RESOURCING LTD,,Large,,5106177590,CPD 0492030 Capita MSP,SL6 1DP,"3,322.38",
Communities & Local Government,DCLG,04/04/2012,Agency Staff,Finance & Corporate Services,MICHAEL PAGE INTERNATIONAL,,Large,,5106177518,Interim Internal Audit,SL1 3SA,"1,929.48",
Communities & Local Government,DCLG,04/04/2012,Agency Staff,Finance & Corporate Services,REED SPECIALIST RECRUITMENT LTD,,Large,,5106177575,Temp Electoral Claims,NN1 1UE,585.27,
Communities & Local Government,DCLG,04/04/2012,Agency Staff,Finance & Corporate Services,REED SPECIALIST RECRUITMENT LTD,,Large,,5106177571,Temp Electoral Claims,NN1 1UE,557.40,
Communities & Local Government,DCLG,04/04/2012,Agency Staff,Finance & Corporate Services,REED SPECIALIST RECRUITMENT LTD,,Large,,5106177573,Temp electoral claims,NN1 1UE,668.88,
Communities & Local Government,DCLG,04/04/2012,Agency Staff,Finance & Corporate Services,REED SPECIALIST RECRUITMENT LTD,,Large,,5106177576,Agency Staff,NN1 1UE,575.98,
Communities & Local Government,DCLG,04/04/2012,Agency Staff,Finance & Corporate Services,REED SPECIALIST RECRUITMENT LTD,,Large,,5106177583,Temp Electoral Claims,NN1 1UE,733.91,
Communities & Local Government,DCLG,04/04/2012,Agency Staff,Finance & Corporate Services,REED SPECIALIST RECRUITMENT LTD,,Large,,5106177586,Temp electoral claims,NN1 1UE,733.91,
Communities & Local Government,DCLG,04/04/2012,Agency Staff,Localism,CAPITA RESOURCING LTD,,Large,,5106177527,Interim Contractor,SL6 1DP,"1,020.00",
Communities & Local Government,DCLG,04/04/2012,Agency Staff,Localism,CAPITA RESOURCING LTD,,Large,,5106177533,Interim contractor,SL6 1DP,"3,281.88",
Communities & Local Government,DCLG,04/04/2012,Agency Staff,Localism,CAPITA RESOURCING LTD,,Large,,5106177539,CPD 0492030 Capita MSP,SL6 1DP,"1,737.48",
Communities & Local Government,DCLG,04/04/2012,Agency Staff,Localism,CAPITA RESOURCING LTD,,Large,,5106177545,Interim contractor,SL6 1DP,"2,032.08",
Communities & Local Government,DCLG,04/04/2012,Agency Staff,Localism,CAPITA RESOURCING LTD,,Large,,5106177550,Temporary Staff,SL6 1DP,"4,657.50",
Communities & Local Government,DCLG,04/04/2012,Agency Staff,Localism,CAPITA RESOURCING LTD,,Large,,5106177558,Interim Contractor,SL6 1DP,"1,646.40",
Communities & Local Government,DCLG,04/04/2012,Agency Staff,Localism,CAPITA RESOURCING LTD,,Large,,5106177559,Conractor LGA Advisor,SL6 1DP,"2,316.60",
Communities & Local Government,DCLG,04/04/2012,Agency Staff,Neighbourhoods,CAPITA RESOURCING LTD,,Large,,5106177529,CPD 0492030 Capita MSP,SL6 1DP,"8,495.28",
Communities & Local Government,DCLG,04/04/2012,Agency Staff,Neighbourhoods,CAPITA RESOURCING LTD,,Large,,5106177537,CPD 0492030 Capita MSP,SL6 1DP,"2,651.22",
Communities & Local Government,DCLG,04/04/2012,Agency Staff,Neighbourhoods,CAPITA RESOURCING LTD,,Large,,5106177543,CPD 0492030 Capita MSP,SL6 1DP,"2,574.00",
Communities & Local Government,DCLG,04/04/2012,Agency Staff,Neighbourhoods,CAPITA RESOURCING LTD,,Large,,5106177552,CPD 0492030 Capita MSP,SL6 1DP,"2,574.00",
Communities & Local Government,DCLG,04/04/2012,Agency Staff,Neighbourhoods,CAPITA RESOURCING LTD,,Large,,5106177556,DayRate ERREG2 Seas-Territorial,SL6 1DP,"1,044.00",
Communities & Local Government,DCLG,04/04/2012,Agency Staff,Neighbourhoods,CAPITA RESOURCING LTD,,Large,,5106177562,Contractor ERDF,SL6 1DP,"2,088.00",
Communities & Local Government,DCLG,04/04/2012,Agency Staff,Neighbourhoods,CAPITA RESOURCING LTD,,Large,,5106177562,Contractor ERDF Expenses,SL6 1DP,62.62,
Communities & Local Government,DCLG,04/04/2012,Cap Grants to Private Sector Companies,Neighbourhoods,ANGEL COFUND,,Small,,2100215502,Regional Growth Fund payment,S8 0XN,"40,000,000.00",
Communities & Local Government,DCLG,04/04/2012,Cap Grants to Private Sector Companies,Neighbourhoods,CORNWALL COUNTY COUNCIL,,Large,,2100215494,Regional Growth Fund payment,TR1 3AY,"10,500,000.00",
Communities & Local Government,DCLG,04/04/2012,Cap Grants to Private Sector Companies,Neighbourhoods,KENT COUNTY COUNCIL,,Public Bodies,,2100215495,Regional Growth Fund payment,ME14 1XQ,"20,000,000.00",
Communities & Local Government,DCLG,04/04/2012,Cap Grants to Private Sector Companies,Neighbourhoods,NORTH LINCOLNSHIRE DC,,Public Bodies,,2100215496,Regional Growth Fund payment,DN16 1AB,"7,000,000.00",
Communities & Local Government,DCLG,04/04/2012,Capital Grant to LA Replace Loan Nonbud,Neighbourhoods,PUBLIC WORKS LOANS BOARD,,,,2100215611,Extinguish PWLB debt for Lambeth LATMOS estates,EC3M 8UD,"32,926,085.18",
Communities & Local Government,DCLG,04/04/2012,Current Grants to Non Profit Bodies,Neighbourhoods,BENTLEY MOTORS LIMITED,,Large,,2100215497,Regional Growth Fund payment,CW1 3PL,"1,690,000.00",Yes
Communities & Local Government,DCLG,04/04/2012,Current Grants to Non Profit Bodies,Neighbourhoods,BENTLEY MOTORS LIMITED,,Large,,2100215498,Regional Growth Fund payment,CW1 3PL,"665,817.00",Yes
Communities & Local Government,DCLG,04/04/2012,Current Grants to Non Profit Bodies,Neighbourhoods,CORNWALL COUNTY COUNCIL,,Large,,2100215494,Regional Growth Fund payment,TR1 3AY,"2,500,000.00",Yes
Communities & Local Government,DCLG,04/04/2012,Current Grants to Non Profit Bodies,Neighbourhoods,ENVIRONMENT AGENCY,,Public Bodies,,2100215627,DCLG Qt4 2011- contribution to EA TG team,PE2 8YD,"125,000.00",Yes
Communities & Local Government,DCLG,04/04/2012,Current Grants to Non Profit Bodies,Neighbourhoods,JAGUAR CARS LTD,,,,2100215490,Regional Growth Fund payment,CV3 4LF,"6,500,000.00",Yes
Communities & Local Government,DCLG,04/04/2012,Current Grants to Non Profit Bodies,Neighbourhoods,JAGUAR CARS LTD,,,,2100215492,Regional Growth Fund payment,CV3 4LF,"6,500,000.00",Yes
Communities & Local Government,DCLG,04/04/2012,Current Grants to Non Profit Bodies,Neighbourhoods,KENT COUNTY COUNCIL,,Public Bodies,,2100215495,Regional Growth Fund payment,ME14 1XQ,"15,000,000.00",Yes
Communities & Local Government,DCLG,04/04/2012,Current Grants to Non Profit Bodies,Neighbourhoods,NORTH LINCOLNSHIRE DC,,Public Bodies,,2100215496,Regional Growth Fund payment,DN16 1AB,"3,000,000.00",Yes
Communities & Local Government,DCLG,04/04/2012,Current Grants to Non Profit Bodies,Neighbourhoods,PROCTER & GAMBLE TECHNICAL CENTRES,,,,2100215493,Regional Growth Fund payment,NE12 9TS,"607,771.00",Yes
Communities & Local Government,DCLG,04/04/2012,EU Gts (Cap) to Prvt/Sec Persons & NPISH,Finance & Corporate Services,ENVIRONMENT TRUST,,Small,,7500016684,ERDF/04/203/clw1734,E1 1SA,"-229,285.82",Yes
Communities & Local Government,DCLG,04/04/2012,EU Gts (Cap) to Prvt/Sec Persons & NPISH,Finance & Corporate Services,ENVIRONMENT TRUST,,Small,,7500021031,ERDF/04/203/clw1976,E1 1SA,"-78,190.18",Yes
Communities & Local Government,DCLG,04/04/2012,Grant in Aid to NDPBs (non budget),Neighbourhoods,HOMES & COMMUNITIES AGENCY,,Public Bodies,,2100215626,HCA Claim 1,NE11 0NA,"148,898,837.00",Yes
Communities & Local Government,DCLG,04/04/2012,"IT - PC, Network & Hardware",Finance & Corporate Services,STERIA LIMITED,,Large,,5106177535,support for OpenText,M14 0WN,"36,471.64",
Communities & Local Government,DCLG,04/04/2012,IT - Service Contracts,Finance & Corporate Services,PROCSERVE SHARED SERVICES LTD,,Large,,5106177587,32mths subscriptions Jul 2011-Jul 2014,SW1W 9SR,"6,176.64",
Communities & Local Government,DCLG,04/04/2012,IT - Service Contracts,Finance & Corporate Services,STERIA LIMITED,,Large,,5106177522,Moves & decommissioning 2&7 floors,M14 0WN,"17,390.00",
Communities & Local Government,DCLG,04/04/2012,IT - Service Contracts,Finance & Corporate Services,STERIA LIMITED,,Large,,5106177524,NR00360 - ERDF Data Transfer,M14 0WN,"1,633.82",
Communities & Local Government,DCLG,04/04/2012,IT - Service Contracts,Finance & Corporate Services,STERIA LIMITED,,Large,,5106177526,Regional Office Paper Trays,M14 0WN,"3,429.45",
Communities & Local Government,DCLG,04/04/2012,IT - Service Contracts,Finance & Corporate Services,STERIA LIMITED,,Large,,5106177528,Eland Hse Power Down 2 - 4 March,M14 0WN,"11,972.45",
Communities & Local Government,DCLG,04/04/2012,IT - Service Contracts,Finance & Corporate Services,STERIA LIMITED,,Large,,5106177534,NR00370 - PINS SAP Bridge,M14 0WN,"3,680.70",
Communities & Local Government,DCLG,04/04/2012,IT - Service Contracts,Finance & Corporate Services,STERIA LIMITED,,Large,,5106177544,RDA: MPLS Upgrade,M14 0WN,"22,141.43",
Communities & Local Government,DCLG,04/04/2012,IT - Service Contracts,Localism,STERIA LTD,,Large,,5106177551,3 days of infrastructure operations time,M14 0WN,"1,448.07",
Communities & Local Government,DCLG,04/04/2012,IT - Software Maintenance,Finance & Corporate Services,STERIA LIMITED,,Large,,5106177161,ArcGIS 10 package and deployment,M14 0WN,"6,685.22",
Communities & Local Government,DCLG,04/04/2012,IT - Software Maintenance,Neighbourhoods,I B M UK LTD,,Large,,5106177569,COGNOS support and renewal - 2012/13,PO6 3AE,"13,185.08",
Communities & Local Government,DCLG,04/04/2012,IT - Software Maintenance,Neighbourhoods,PHOLA LTD,,Micro,,5106177479,Application support & upgrade planet,W9 1DL,"3,240.00",
Communities & Local Government,DCLG,04/04/2012,Publications,Finance & Corporate Services,LEXISNEXIS UK,,Large,,5106177595,Publications - Legal,SM2 5AS,943.45,
Communities & Local Government,DCLG,04/04/2012,Rates,Finance & Corporate Services,GUILDFORD BC,,Public Bodies,,5106177589,Bridge House Annual Rates 2012/13,GU2 4BB,"32,021.45",
Communities & Local Government,DCLG,04/04/2012,Research,Troubled Families,FOUNDATION FOR SOCIAL IMPROVEMENT,,Micro,,5106177541,WFE Campaign Facebook Activity,W1F 0JL,"5,400.00",
Communities & Local Government,DCLG,04/04/2012,Telecoms equipment (non-capitalised),Finance & Corporate Services,DAMOVO UK LTD,,Large,,5106177591,Telephony - 8 new sites,RH12 4QP,"24,684.00",
Communities & Local Government,DCLG,04/04/2012,Training,Finance & Corporate Services,SOUTHAMPTON UNIVERSITY,,Large,,5106177588,Analysis of Complex Survey Data Course - continuing professional development,SO17 1BJ,660.00,
Communities & Local Government,DCLG,04/04/2012,Training,Finance & Corporate Services,SYMANTEC LTD,,Large,,5106177580,IT Database course - continuing professional development,15,"2,900.00",
Communities & Local Government,DCLG,04/04/2012,Work In Progress Pre-Cert 40373 Spend,Neighbourhoods,BIRMINGHAM CITY COUNCIL (NOT RATES),,Large,,7600001292,ERDF Claim - 10 - P3,B1 1BB,"1,360.67",
Communities & Local Government,DCLG,04/04/2012,Work In Progress Pre-Cert 40373 Spend,Neighbourhoods,BIRMINGHAM CITY COUNCIL (NOT RATES),,Large,,7600001295,ERDF Claim - 11 - P3,B1 1BB,"1,135.67",
Communities & Local Government,DCLG,04/04/2012,Work In Progress Pre-Cert 40373 Spend,Neighbourhoods,BOLSOVER DISTRICT COUNCIL,,Large,,7600001301,ERDF Claim - 7 - P2,S44 6NF,"2,040.40",
Communities & Local Government,DCLG,04/04/2012,Work In Progress Pre-Cert 40373 Spend,Neighbourhoods,BUSINESS SUPPORT KENT,,Medium,,7600001300,ERDF Claim - 52 - P1,ME14 1EE,"54,092.16",
Communities & Local Government,DCLG,04/04/2012,Work In Progress Pre-Cert 40373 Spend,Neighbourhoods,COVENTRY UNIVERSITY ENTERPRISES LTD,,Medium,,7600001288,ERDF Claim - 25 - P4,CV1 2TT,"4,035.35",
Communities & Local Government,DCLG,04/04/2012,Work In Progress Pre-Cert 40373 Spend,Neighbourhoods,COVENTRY UNIVERSITY ENTERPRISES LTD,,Medium,,7600001299,ERDF Claim - 24 - P1,CV1 2TT,"5,452.97",
Communities & Local Government,DCLG,04/04/2012,Work In Progress Pre-Cert 40373 Spend,Neighbourhoods,GWE BUSINESS WEST LTD,,,,7600001312,ERDF Claim - 7 - P2,BS8 3RA,"37,588.25",
Communities & Local Government,DCLG,04/04/2012,Work In Progress Pre-Cert 40373 Spend,Neighbourhoods,HAND IN HAND TENANTS & RESIDENTS AS,,Small,,7600001291,ERDF Claim - 10 - P2,LE3 9HF,"4,246.08",
Communities & Local Government,DCLG,04/04/2012,Work In Progress Pre-Cert 40373 Spend,Neighbourhoods,HUDDERSFIELD & DIST TEXTILE TRAIN'G,,,,7600001302,ERDF Claim - 32 - P1-SY,HD2 1YF,"2,018.29",
Communities & Local Government,DCLG,04/04/2012,Work In Progress Pre-Cert 40373 Spend,Neighbourhoods,HUDDERSFIELD & DIST TEXTILE TRAIN'G,,,,7600001303,ERDF Claim - 32 - P1-YH,HD2 1YF,"18,118.03",
Communities & Local Government,DCLG,04/04/2012,Work In Progress Pre-Cert 40373 Spend,Neighbourhoods,LEEDS CITY COUNCIL,,,,7600001314,ERDF Claim - 12 - P3-YH,LS2 8BB,"14,022.30",
Communities & Local Government,DCLG,04/04/2012,Work In Progress Pre-Cert 40373 Spend,Neighbourhoods,LOWER CARBON ECONOMY-RESOURCE EFF,,,,7600001306,ERDF Claim - 34 - P2-SY,LS11 5AE,"5,744.06",
Communities & Local Government,DCLG,04/04/2012,Work In Progress Pre-Cert 40373 Spend,Neighbourhoods,LOWER CARBON ECONOMY-RESOURCE EFF,,,,7600001307,ERDF Claim - 34 - P2-YH,LS11 5AE,"19,967.41",
Communities & Local Government,DCLG,04/04/2012,Work In Progress Pre-Cert 40373 Spend,Neighbourhoods,LOWER CARBON ECONOMY-RESOURCE EFF,,,,7600001310,ERDF Claim - 35 - P2-SY,LS11 5AE,"28,049.30",
Communities & Local Government,DCLG,04/04/2012,Work In Progress Pre-Cert 40373 Spend,Neighbourhoods,LOWER CARBON ECONOMY-RESOURCE EFF,,,,7600001311,ERDF Claim - 35 - P2-YH,LS11 5AE,"1,870.26",
Communities & Local Government,DCLG,04/04/2012,Work In Progress Pre-Cert 40373 Spend,Neighbourhoods,MARKETING BIRMINGHAM LIMITED,,Medium,,7600001293,ERDF Claim - 4 - P3,B1 2ND,"97,382.12",
Communities & Local Government,DCLG,04/04/2012,Work In Progress Pre-Cert 40373 Spend,Neighbourhoods,MARKETING BIRMINGHAM LIMITED,,Medium,,7600001296,ERDF Claim - 5 - P3,B1 2ND,"113,497.69",
Communities & Local Government,DCLG,04/04/2012,Work In Progress Pre-Cert 40373 Spend,Neighbourhoods,MIDLANDS AEROSPACE ALLIANCE LTD,,Small,,7600001297,ERDF Claim - 31 - P1,CV3 2TX,"14,962.19",
Communities & Local Government,DCLG,04/04/2012,Work In Progress Pre-Cert 40373 Spend,Neighbourhoods,NAMTEC,,Small,,7600001308,ERDF Claim - 12 - P1-SY,S60 3AR,"13,577.76",
Communities & Local Government,DCLG,04/04/2012,Work In Progress Pre-Cert 40373 Spend,Neighbourhoods,NAMTEC,,Small,,7600001309,ERDF Claim - 12 - P1-YH,S60 3AR,"13,373.84",
Communities & Local Government,DCLG,04/04/2012,Work In Progress Pre-Cert 40373 Spend,Neighbourhoods,NEWCASTLE CITY COUNCIL,,,,7600001290,ERDF Claim - 13 - P1,NE1 8QN,"80,422.16",
Communities & Local Government,DCLG,04/04/2012,Work In Progress Pre-Cert 40373 Spend,Neighbourhoods,SOLIHULL METROPOLITAN BC,,Large,,7600001294,ERDF Claim - 7 - P3,B91 3QS,"12,330.02",
Communities & Local Government,DCLG,04/04/2012,Work In Progress Pre-Cert 40373 Spend,Neighbourhoods,SOLIHULL METROPOLITAN BC,,Large,,7600001298,ERDF Claim - 13 - P3,B91 3QS,"5,683.87",
Communities & Local Government,DCLG,04/04/2012,Work In Progress Pre-Cert 40373 Spend,Neighbourhoods,SOUTH WEST SCREEN,,,,7600001315,ERDF Claim - 8 - P1,BS1 5BT,"164,018.78",
Communities & Local Government,DCLG,04/04/2012,Work In Progress Pre-Cert 40373 Spend,Neighbourhoods,SOUTHEND YMCA,,,,7600001289,ERDF Claim - 13 - P3,SS1 2FY,"2,258.56",
Communities & Local Government,DCLG,04/04/2012,Work In Progress Pre-Cert 40373 Spend,Neighbourhoods,UNIVERSITY OF SHEFFIELD,,,,7600001304,ERDF Claim - 20 - P1-SY,S60 5TZ,"58,295.77",
Communities & Local Government,DCLG,04/04/2012,Work In Progress Pre-Cert 40373 Spend,Neighbourhoods,UNIVERSITY OF SHEFFIELD,,,,7600001305,ERDF Claim - 20 - P1-YH,S60 5TZ,"31,389.41",
Communities & Local Government,DCLG,04/04/2012,Work In Progress Pre-Cert 40373 Spend,Neighbourhoods,UNIVERSITY OF WARWICK,,Large,,7600001287,ERDF Claim - 22 - P1,CV4 8UW,"325,347.55",
Communities & Local Government,DCLG,04/04/2012,Work In Progress Pre-Cert 40467 Spend,Neighbourhoods,BIRMINGHAM CITY COUNCIL (NOT RATES),,Large,,7600001292,ERDF Claim - 10 - P3,B1 1BB,"11,836.40",
Communities & Local Government,DCLG,04/04/2012,Work In Progress Pre-Cert 40467 Spend,Neighbourhoods,LOWER CARBON ECONOMY-RESOURCE EFF,,,,7600001307,ERDF Claim - 34 - P2-YH,LS11 5AE,"1,920.43",
Communities & Local Government,DCLG,04/04/2012,Work In Progress Pre-Cert 40467 Spend,Neighbourhoods,LOWER CARBON ECONOMY-RESOURCE EFF,,,,7600001310,ERDF Claim - 35 - P2-SY,LS11 5AE,"6,995.31",
Communities & Local Government,DCLG,04/04/2012,Work In Progress Pre-Cert 40467 Spend,Neighbourhoods,SOLIHULL METROPOLITAN BC,,Large,,7600001298,ERDF Claim - 13 - P3,B91 3QS,"5,500.27",
Communities & Local Government,DCLG,04/04/2012,Work In Progress Pre-Cert 40467 Spend,Neighbourhoods,UNIVERSITY OF SHEFFIELD,,,,7600001313,ERDF Claim - 24 - P1-SY,S60 5TZ,"762,344.25",
Communities & Local Government,DCLG,04/04/2012,Work In Progress Pre-Cert 40467 Spend,Neighbourhoods,UNIVERSITY OF WARWICK,,Large,,7600001287,ERDF Claim - 22 - P1,CV4 8UW,"7,959.84",
Communities & Local Government,DCLG,05/04/2012,Current (non AEF) Grants to Local Authorities,Finance & Corporate Services,THURROCK DC,,,,2100215501,Dowry to support TTGDC staff and asset transfer,RM17 6LT,"1,800,000.00",Yes
Communities & Local Government,DCLG,05/04/2012,Current (non AEF) Grants to Local Authorities,Localism,ADUR DC,,,,5000197444,Grant Payable by Exchequer,BN11 1HB,"154,594.00",Yes
Communities & Local Government,DCLG,05/04/2012,Current (non AEF) Grants to Local Authorities,Localism,AMBER VALLEY BC,,,,5000197445,Grant Payable by Exchequer,DE5 3WZ,"156,734.00",Yes
Communities & Local Government,DCLG,05/04/2012,Current (non AEF) Grants to Local Authorities,Localism,ARUN DC,,,,5000197320,Grant Payable by Exchequer,BN17 5LF,"247,417.00",Yes
Communities & Local Government,DCLG,05/04/2012,Current (non AEF) Grants to Local Authorities,Localism,ASHFIELD DC,,,,5000197446,Grant Payable by Exchequer,NG17 8DA,"148,909.00",Yes
Communities & Local Government,DCLG,05/04/2012,Current (non AEF) Grants to Local Authorities,Localism,ASHFORD BC,,,,5000197674,Grant Payable by Exchequer,TN23 1PL,"162,036.00",Yes
Communities & Local Government,DCLG,05/04/2012,Current (non AEF) Grants to Local Authorities,Localism,AVON & SOMERSET POLICE AUTHORITY,,,,5000197662,Grant Payable by Exchequer,TA1 4DY,"2,876,374.00",Yes
Communities & Local Government,DCLG,05/04/2012,Current (non AEF) Grants to Local Authorities,Localism,AYLESBURY VALE DC(HSG),,,,5000197673,Grant Payable by Exchequer,HP20 1SD,"247,305.00",Yes
Communities & Local Government,DCLG,05/04/2012,Current (non AEF) Grants to Local Authorities,Localism,BARKING & DAGENHAM LB (HSG),,,,5000197321,Grant Payable by Exchequer,RM10 7JF,"1,348,938.00",Yes
Communities & Local Government,DCLG,05/04/2012,Current (non AEF) Grants to Local Authorities,Localism,BARNET LBC,,,,5000197447,Grant Payable by Exchequer,NW4 4BG,"3,984,641.00",Yes
Communities & Local Government,DCLG,05/04/2012,Current (non AEF) Grants to Local Authorities,Localism,BARNSLEY MBC,,,,5000197448,Grant Payable by Exchequer,S70 2AQ,"2,105,061.00",Yes
Communities & Local Government,DCLG,05/04/2012,Current (non AEF) Grants to Local Authorities,Localism,BASILDON BOROUGH COUNCIL,,,,5000197449,Grant Payable by Exchequer,SS14 0DF,"403,864.00",Yes
Communities & Local Government,DCLG,05/04/2012,Current (non AEF) Grants to Local Authorities,Localism,BASINGSTOKE & DEANE BC,,,,5000197450,Grant Payable by Exchequer,RG21 2AJ,"169,900.00",Yes
Communities & Local Government,DCLG,05/04/2012,Current (non AEF) Grants to Local Authorities,Localism,BASSETLAW DC (HSG),,,,5000197675,Grant Payable by Exchequer,S80 2AH,"139,170.00",Yes
Communities & Local Government,DCLG,05/04/2012,Current (non AEF) Grants to Local Authorities,Localism,BATH & NE SOMERSET DC (HSG),,,,5000197322,Grant Payable by Exchequer,BA1 5AW,"1,936,183.00",Yes
Communities & Local Government,DCLG,05/04/2012,Current (non AEF) Grants to Local Authorities,Localism,BEDFORD UNITARY AUTHORITY,,,,5000197658,Grant Payable by Exchequer,MK40 1SJ,"1,844,417.00",Yes
Communities & Local Government,DCLG,05/04/2012,Current (non AEF) Grants to Local Authorities,Localism,BEXLEY LB (HSG),,,,5000197323,Grant Payable by Exchequer,DA8 1TL,"2,387,100.00",Yes
Communities & Local Government,DCLG,05/04/2012,Current (non AEF) Grants to Local Authorities,Localism,BIRMINGHAM CITY CNCL,,,,5000197451,Grant Payable by Exchequer,B3 3AB,"8,330,474.00",Yes
Communities & Local Government,DCLG,05/04/2012,Current (non AEF) Grants to Local Authorities,Localism,BLABY DC (HSG),,,,5000197324,Grant Payable by Exchequer,LE9 5EP,"109,306.00",Yes
Communities & Local Government,DCLG,05/04/2012,Current (non AEF) Grants to Local Authorities,Localism,BLACKBURN WITH DARWEN BC,,,,5000197452,Grant Payable by Exchequer,BB1 7DY,"1,251,812.00",Yes
Communities & Local Government,DCLG,05/04/2012,Current (non AEF) Grants to Local Authorities,Localism,BLACKPOOL BC,,,,5000197453,Grant Payable by Exchequer,FY1 1NA,"1,506,085.00",Yes
Communities & Local Government,DCLG,05/04/2012,Current (non AEF) Grants to Local Authorities,Localism,BOLSOVER DC,,,,5000197454,Grant Payable by Exchequer,S44 6NF,"90,637.00",Yes
Communities & Local Government,DCLG,05/04/2012,Current (non AEF) Grants to Local Authorities,Localism,BOLTON MBC,,,,5000197455,Grant Payable by Exchequer,BL1 1RU,"2,533,886.00",Yes
Communities & Local Government,DCLG,05/04/2012,Current (non AEF) Grants to Local Authorities,Localism,BOSTON BC,,,,5000197325,Grant Payable by Exchequer,PE21 8QR,"82,887.00",Yes
Communities & Local Government,DCLG,05/04/2012,Current (non AEF) Grants to Local Authorities,Localism,BOURNEMOUTH DC,,,,5000197456,Grant Payable by Exchequer,BH2 6EB,"2,030,194.00",Yes
Communities & Local Government,DCLG,05/04/2012,Current (non AEF) Grants to Local Authorities,Localism,BRACKNELL FOREST DC,,,,5000197457,Grant Payable by Exchequer,RG12 1AQ,"1,220,301.00",Yes
Communities & Local Government,DCLG,05/04/2012,Current (non AEF) Grants to Local Authorities,Localism,BRADFORD MBC,,,,5000197458,Grant Payable by Exchequer,BD1 1HX,"4,079,668.00",Yes
Communities & Local Government,DCLG,05/04/2012,Current (non AEF) Grants to Local Authorities,Localism,BRAINTREE DC,,,,5000197676,Grant Payable by Exchequer,CM7 6HB,"219,281.00",Yes
Communities & Local Government,DCLG,05/04/2012,Current (non AEF) Grants to Local Authorities,Localism,BRECKLAND DC,,,,5000197326,Grant Payable by Exchequer,NR19 1EE,"71,452.00",Yes
Communities & Local Government,DCLG,05/04/2012,Current (non AEF) Grants to Local Authorities,Localism,BRENT LB (HSG),,,,5000197327,Grant Payable by Exchequer,HA9 9HD,"2,604,939.00",Yes
Communities & Local Government,DCLG,05/04/2012,Current (non AEF) Grants to Local Authorities,Localism,BRENTWOOD BC,,,,5000197459,Grant Payable by Exchequer,CM15 8AY,"142,759.00",Yes
Communities & Local Government,DCLG,05/04/2012,Current (non AEF) Grants to Local Authorities,Localism,BRIGHTON & HOVE CITY COUNCIL,,,,5000197460,Grant Payable by Exchequer,BN3 2SR,"2,985,836.00",Yes
Communities & Local Government,DCLG,05/04/2012,Current (non AEF) Grants to Local Authorities,Localism,BRISTOL CITY CNCL (HSG),,,,5000197328,Grant Payable by Exchequer,BS99 7BL,"4,588,883.00",Yes
Communities & Local Government,DCLG,05/04/2012,Current (non AEF) Grants to Local Authorities,Localism,BROADLAND DC,,Large,,5000197329,Grant Payable by Exchequer,NR7 0DU,"129,638.00",Yes
Communities & Local Government,DCLG,05/04/2012,Current (non AEF) Grants to Local Authorities,Localism,BROMLEY LB,,,,5000197461,Grant Payable by Exchequer,BR1 3UH,"3,322,400.00",Yes
Communities & Local Government,DCLG,05/04/2012,Current (non AEF) Grants to Local Authorities,Localism,BROMSGROVE DC,,,,5000197330,Grant Payable by Exchequer,B60 1AA,"176,669.00",Yes
Communities & Local Government,DCLG,05/04/2012,Current (non AEF) Grants to Local Authorities,Localism,BROXBOURNE BC,,,,5000197462,Grant Payable by Exchequer,EN8 9XG,"105,854.00",Yes
Communities & Local Government,DCLG,05/04/2012,Current (non AEF) Grants to Local Authorities,Localism,BROXTOWE BC,,,,5000197463,Grant Payable by Exchequer,NG9 1AB,"145,129.00",Yes
Communities & Local Government,DCLG,05/04/2012,Current (non AEF) Grants to Local Authorities,Localism,BUCKINGHAMSHIRE CC,,,,5000197464,Grant Payable by Exchequer,HP20 1UD,"5,805,061.00",Yes
Communities & Local Government,DCLG,05/04/2012,Current (non AEF) Grants to Local Authorities,Localism,BUCKS & MILTON KEYNES FIRE AUTH,,,,5000197636,Grant Payable by Exchequer,HP20 1BD,"531,704.00",Yes
Communities & Local Government,DCLG,05/04/2012,Current (non AEF) Grants to Local Authorities,Localism,BURNLEY BC,,,,5000197465,Grant Payable by Exchequer,BB11 1JA,"165,245.00",Yes
Communities & Local Government,DCLG,05/04/2012,Current (non AEF) Grants to Local Authorities,Localism,CALDERDALE MBC,,,,5000197467,Grant Payable by Exchequer,HX1 1YP,"2,039,301.00",Yes
Communities & Local Government,DCLG,05/04/2012,Current (non AEF) Grants to Local Authorities,Localism,CAMBRIDGE CITY COUNCIL,,,,5000197468,Grant Payable by Exchequer,CB2 3NA,"170,784.00",Yes
Communities & Local Government,DCLG,05/04/2012,Current (non AEF) Grants to Local Authorities,Localism,CAMDEN LB,,,,5000197469,Grant Payable by Exchequer,WC1H 8NG,"2,486,733.00",Yes
Communities & Local Government,DCLG,05/04/2012,Current (non AEF) Grants to Local Authorities,Localism,CANNOCK CHASE DC,,,,5000197470,Grant Payable by Exchequer,WS11 1BG,"150,663.00",Yes
Communities & Local Government,DCLG,05/04/2012,Current (non AEF) Grants to Local Authorities,Localism,CANTERBURY CITY CNCL,,,,5000197331,Grant Payable by Exchequer,CT1 1YW,"233,822.00",Yes
Communities & Local Government,DCLG,05/04/2012,Current (non AEF) Grants to Local Authorities,Localism,CARLISLE CITY CNCL,,,,5000197332,Grant Payable by Exchequer,CA3 8QG,"168,405.00",Yes
Communities & Local Government,DCLG,05/04/2012,Current (non AEF) Grants to Local Authorities,Localism,CASTLE POINT BC,,,,5000197471,Grant Payable by Exchequer,SS7 1TF,"184,866.00",Yes
Communities & Local Government,DCLG,05/04/2012,Current (non AEF) Grants to Local Authorities,Localism,CENTRAL BEDFORDSHIRE COUNCIL,,,,5000197655,Grant Payable by Exchequer,SG17 5TQ,"3,228,863.00",Yes
Communities & Local Government,DCLG,05/04/2012,Current (non AEF) Grants to Local Authorities,Localism,CHARNWOOD BC,,,,5000197472,Grant Payable by Exchequer,LE11 2TU,"172,843.00",Yes
Communities & Local Government,DCLG,05/04/2012,Current (non AEF) Grants to Local Authorities,Localism,CHELTENHAM BC,,,,5000197473,Grant Payable by Exchequer,GL50 1PW,"199,137.00",Yes
Communities & Local Government,DCLG,05/04/2012,Current (non AEF) Grants to Local Authorities,Localism,CHERWELL DC,,,,5000197333,Grant Payable by Exchequer,OX15 4AA,"156,274.00",Yes
Communities & Local Government,DCLG,05/04/2012,Current (non AEF) Grants to Local Authorities,Localism,CHESHIRE EAST COUNCIL,,,,5000197656,Grant Payable by Exchequer,SK10 1DP,"4,464,193.00",Yes
Communities & Local Government,DCLG,05/04/2012,Current (non AEF) Grants to Local Authorities,Localism,CHESHIRE FIRE AUTHORITY,,,,5000197641,Grant Payable by Exchequer,CW7 2FQ,"751,741.00",Yes
Communities & Local Government,DCLG,05/04/2012,Current (non AEF) Grants to Local Authorities,Localism,CHESHIRE WEST & CHESTER COUNCIL,,,,5000197657,Grant Payable by Exchequer,CH1 1SG,"3,816,494.00",Yes
Communities & Local Government,DCLG,05/04/2012,Current (non AEF) Grants to Local Authorities,Localism,CHESTERFIELD BC,,,,5000197474,Grant Payable by Exchequer,S40 1LP,"114,761.00",Yes
Communities & Local Government,DCLG,05/04/2012,Current (non AEF) Grants to Local Authorities,Localism,CHICHESTER DC,,,,5000197334,Grant Payable by Exchequer,PO19 1TY,"177,447.00",Yes
Communities & Local Government,DCLG,05/04/2012,Current (non AEF) Grants to Local Authorities,Localism,CHILTERN DC (HSG),,,,5000197335,Grant Payable by Exchequer,HP6 5AW,"177,336.00",Yes
Communities & Local Government,DCLG,05/04/2012,Current (non AEF) Grants to Local Authorities,Localism,CHORLEY DC,,,,5000197475,Grant Payable by Exchequer,PR7 1DP,"161,684.00",Yes
Communities & Local Government,DCLG,05/04/2012,Current (non AEF) Grants to Local Authorities,Localism,CHRISTCHURCH BC (HSG),,,,5000197336,Grant Payable by Exchequer,BH23 1AZ,"91,794.00",Yes
Communities & Local Government,DCLG,05/04/2012,Current (non AEF) Grants to Local Authorities,Localism,CITY OF LINCOLN COUNCIL,,,,5000197533,Grant Payable by Exchequer,LN1 1DB,"158,036.00",Yes
Communities & Local Government,DCLG,05/04/2012,Current (non AEF) Grants to Local Authorities,Localism,CITY OF LONDON (HSG),,,,5000197678,Grant Payable by Exchequer,EC2P 2EJ,"134,687.00",Yes
Communities & Local Government,DCLG,05/04/2012,Current (non AEF) Grants to Local Authorities,Localism,CITY OF SUNDERLAND (HSG),,,,5000197677,Grant Payable by Exchequer,SR2 7DN,"2,407,549.00",Yes
Communities & Local Government,DCLG,05/04/2012,Current (non AEF) Grants to Local Authorities,Localism,CITY OF WAKEFIELD MDC,,,,5000197600,Grant Payable by Exchequer,WF1 2QW,"2,809,036.00",Yes
Communities & Local Government,DCLG,05/04/2012,Current (non AEF) Grants to Local Authorities,Localism,COLCHESTER BC,,,,5000197476,Grant Payable by Exchequer,CO3 3WG,"269,017.00",Yes
Communities & Local Government,DCLG,05/04/2012,Current (non AEF) Grants to Local Authorities,Localism,COPELAND BC,,,,5000197337,Grant Payable by Exchequer,CA28 7NY,"100,342.00",Yes
Communities & Local Government,DCLG,05/04/2012,Current (non AEF) Grants to Local Authorities,Localism,CORBY BC,,,,5000197338,Grant Payable by Exchequer,NN17 1GD,"83,874.00",Yes
Communities & Local Government,DCLG,05/04/2012,Current (non AEF) Grants to Local Authorities,Localism,CORNWALL UNITARY AUTHORITY,,,,5000197660,Grant Payable by Exchequer,TR1 3AY,"6,081,597.00",Yes
Communities & Local Government,DCLG,05/04/2012,Current (non AEF) Grants to Local Authorities,Localism,COTSWOLD DC,,,,5000197339,Grant Payable by Exchequer,GL7 1PX,"137,297.00",Yes
Communities & Local Government,DCLG,05/04/2012,Current (non AEF) Grants to Local Authorities,Localism,COVENTRY CITY CNCL,,,,5000197477,Grant Payable by Exchequer,CV1 2QL,"2,958,491.00",Yes
Communities & Local Government,DCLG,05/04/2012,Current (non AEF) Grants to Local Authorities,Localism,CRAVEN DC (HSG),,,,5000197340,Grant Payable by Exchequer,BD23 1PS,"85,099.00",Yes
Communities & Local Government,DCLG,05/04/2012,Current (non AEF) Grants to Local Authorities,Localism,CRAWLEY BC,,,,5000197341,Grant Payable by Exchequer,RH10 1UZ,"172,710.00",Yes
Communities & Local Government,DCLG,05/04/2012,Current (non AEF) Grants to Local Authorities,Localism,CROYDON LB,,,,5000197478,Grant Payable by Exchequer,CR9 3JS,"3,713,352.00",Yes
Communities & Local Government,DCLG,05/04/2012,Current (non AEF) Grants to Local Authorities,Localism,CUMBRIA COUNTY CNCL,,,,5000197479,Grant Payable by Exchequer,CA3 8NA,"5,146,423.00",Yes
Communities & Local Government,DCLG,05/04/2012,Current (non AEF) Grants to Local Authorities,Localism,DACORUM BC,,,,5000197480,Grant Payable by Exchequer,HP1 1HH,"249,866.00",Yes
Communities & Local Government,DCLG,05/04/2012,Current (non AEF) Grants to Local Authorities,Localism,DARTFORD BC,,,,5000197342,Grant Payable by Exchequer,DA1 1DR,"142,821.00",Yes
Communities & Local Government,DCLG,05/04/2012,Current (non AEF) Grants to Local Authorities,Localism,DAVENTRY DC,,,,5000197343,Grant Payable by Exchequer,NN11 5AF,"98,208.00",Yes
Communities & Local Government,DCLG,05/04/2012,Current (non AEF) Grants to Local Authorities,Localism,DERBY CITY CNCL,,,,5000197481,Grant Payable by Exchequer,DE1 2FS,"2,049,459.00",Yes
Communities & Local Government,DCLG,05/04/2012,Current (non AEF) Grants to Local Authorities,Localism,DERBYSHIRE COUNTYCOUNCIL,,,,5000197482,Grant Payable by Exchequer,DE4 3AH,"6,995,394.00",Yes
Communities & Local Government,DCLG,05/04/2012,Current (non AEF) Grants to Local Authorities,Localism,DERBYSHIRE DALES DC,,,,5000197344,Grant Payable by Exchequer,DE4 3NN,"141,640.00",Yes
Communities & Local Government,DCLG,05/04/2012,Current (non AEF) Grants to Local Authorities,Localism,DERBYSHIRE FIRE AUTHORITY,,,,5000197647,Grant Payable by Exchequer,DE55 1RH,"669,989.00",Yes
Communities & Local Government,DCLG,05/04/2012,Current (non AEF) Grants to Local Authorities,Localism,DERBYSHIRE POLICE AUTHORITY (RSG,,,,5000197623,Grant Payable by Exchequer,DE5 3RS,"1,633,228.00",Yes
Communities & Local Government,DCLG,05/04/2012,Current (non AEF) Grants to Local Authorities,Localism,DEVON COUNTY CNCL,,,,5000197483,Grant Payable by Exchequer,EX2 4QJ,"8,154,717.00",Yes
Communities & Local Government,DCLG,05/04/2012,Current (non AEF) Grants to Local Authorities,Localism,DONCASTER MBC,,,,5000197484,Grant Payable by Exchequer,DN1 3QA,"2,355,043.00",Yes
Communities & Local Government,DCLG,05/04/2012,Current (non AEF) Grants to Local Authorities,Localism,DORSET COUNTY CNCL,,,,5000197485,Grant Payable by Exchequer,DT1 1XJ,"5,068,670.00",Yes
Communities & Local Government,DCLG,05/04/2012,Current (non AEF) Grants to Local Authorities,Localism,DORSET FIRE AUTHORITY,,Large,,5000197648,Grant Payable by Exchequer,DT1 1FB,"538,478.00",Yes
Communities & Local Government,DCLG,05/04/2012,Current (non AEF) Grants to Local Authorities,Localism,DORSET POLICE AUTHORITY (RSG),,,,5000197624,Grant Payable by Exchequer,DT2 8DZ,"1,605,003.00",Yes
Communities & Local Government,DCLG,05/04/2012,Current (non AEF) Grants to Local Authorities,Localism,DUDLEY MBC,,,,5000197486,Grant Payable by Exchequer,DY1 1HF,"2,783,039.00",Yes
Communities & Local Government,DCLG,05/04/2012,Current (non AEF) Grants to Local Authorities,Localism,DURHAM POLICE AUTHORITY,,,,5000197663,Grant Payable by Exchequer,DH1 5TT,"884,290.00",Yes
Communities & Local Government,DCLG,05/04/2012,Current (non AEF) Grants to Local Authorities,Localism,DURHAM UNITARY AUTHORITY,,,,5000197661,Grant Payable by Exchequer,DH1 5UE,"5,044,696.00",Yes
Communities & Local Government,DCLG,05/04/2012,Current (non AEF) Grants to Local Authorities,Localism,EALING LB,,,,5000197487,Grant Payable by Exchequer,W5 2HL,"3,171,440.00",Yes
Communities & Local Government,DCLG,05/04/2012,Current (non AEF) Grants to Local Authorities,Localism,EAST DEVON DC,,,,5000197345,Grant Payable by Exchequer,EX10 8HL,"175,369.00",Yes
Communities & Local Government,DCLG,05/04/2012,Current (non AEF) Grants to Local Authorities,Localism,EAST DORSET DC,,,,5000197488,Grant Payable by Exchequer,BH21 4HN,"184,620.00",Yes
Communities & Local Government,DCLG,05/04/2012,Current (non AEF) Grants to Local Authorities,Localism,EAST HERTFORDSHIRE DC,,,,5000197346,Grant Payable by Exchequer,CM23 2EN,"233,236.00",Yes
Communities & Local Government,DCLG,05/04/2012,Current (non AEF) Grants to Local Authorities,Localism,EAST LINDSEY DC,,,,5000197347,Grant Payable by Exchequer,LN11 8UP,"134,766.00",Yes
Communities & Local Government,DCLG,05/04/2012,Current (non AEF) Grants to Local Authorities,Localism,EAST RIDING OF YORKS (HSG),,,,5000197348,Grant Payable by Exchequer,HU17 9BA,"3,616,565.00",Yes
Communities & Local Government,DCLG,05/04/2012,Current (non AEF) Grants to Local Authorities,Localism,EAST STAFFORDSHIRE BC,,,,5000197349,Grant Payable by Exchequer,DE14 2EB,"172,012.00",Yes
Communities & Local Government,DCLG,05/04/2012,Current (non AEF) Grants to Local Authorities,Localism,EAST SUSSEX COUNTY CNCL,,,,5000197489,Grant Payable by Exchequer,BN7 1SF,"6,020,609.00",Yes
Communities & Local Government,DCLG,05/04/2012,Current (non AEF) Grants to Local Authorities,Localism,EAST SUSSEX FIRE AUTHORITY,,Large,,5000197651,Grant Payable by Exchequer,BN21 1EU,"742,912.00",Yes
Communities & Local Government,DCLG,05/04/2012,Current (non AEF) Grants to Local Authorities,Localism,EASTBOURNE BC,,,,5000197490,Grant Payable by Exchequer,BN21 4TW,"207,298.00",Yes
Communities & Local Government,DCLG,05/04/2012,Current (non AEF) Grants to Local Authorities,Localism,EASTLEIGH BOROUGH COUNCIL,,,,5000197491,Grant Payable by Exchequer,SO5 9YN,"150,115.00",Yes
Communities & Local Government,DCLG,05/04/2012,Current (non AEF) Grants to Local Authorities,Localism,EDEN DC (HSG),,,,5000197350,Grant Payable by Exchequer,CA11 7QF,"89,829.00",Yes
Communities & Local Government,DCLG,05/04/2012,Current (non AEF) Grants to Local Authorities,Localism,ELMBRIDGE BC (HSG),,,,5000197351,Grant Payable by Exchequer,KT10 9SD,"318,181.00",Yes
Communities & Local Government,DCLG,05/04/2012,Current (non AEF) Grants to Local Authorities,Localism,ENFIELD LB,,,,5000197492,Grant Payable by Exchequer,EN1 3XF,"3,037,502.00",Yes
Communities & Local Government,DCLG,05/04/2012,Current (non AEF) Grants to Local Authorities,Localism,EPPING FOREST DC,,,,5000197493,Grant Payable by Exchequer,CM16 4BZ,"204,190.00",Yes
Communities & Local Government,DCLG,05/04/2012,Current (non AEF) Grants to Local Authorities,Localism,EREWASH BC,,,,5000197494,Grant Payable by Exchequer,DE7 5RP,"147,684.00",Yes
Communities & Local Government,DCLG,05/04/2012,Current (non AEF) Grants to Local Authorities,Localism,ESSEX COUNTY CNCL,,,,5000197495,Grant Payable by Exchequer,CM1 1JZ,"14,540,283.00",Yes
Communities & Local Government,DCLG,05/04/2012,Current (non AEF) Grants to Local Authorities,Localism,ESSEX FIRE AUTHORITY,,Large,,5000197637,Grant Payable by Exchequer,CM8 3HB,"1,293,202.00",Yes
Communities & Local Government,DCLG,05/04/2012,Current (non AEF) Grants to Local Authorities,Localism,EXETER CITY CNCL,,,,5000197496,Grant Payable by Exchequer,EX1 1JN,"119,350.00",Yes
Communities & Local Government,DCLG,05/04/2012,Current (non AEF) Grants to Local Authorities,Localism,FAREHAM BC,,,,5000197352,Grant Payable by Exchequer,PO16 7PU,"152,366.00",Yes
Communities & Local Government,DCLG,05/04/2012,Current (non AEF) Grants to Local Authorities,Localism,FENLAND DC,,,,5000197353,Grant Payable by Exchequer,PE15 8NQ,"187,318.00",Yes
Communities & Local Government,DCLG,05/04/2012,Current (non AEF) Grants to Local Authorities,Localism,FOREST HEATH DISTRICT COUNCIL,,,,5000197354,Grant Payable by Exchequer,IP28 7EY,"62,044.00",Yes
Communities & Local Government,DCLG,05/04/2012,Current (non AEF) Grants to Local Authorities,Localism,FOREST OF DEAN DC,,,,5000197355,Grant Payable by Exchequer,GL16 8HG,"119,597.00",Yes
Communities & Local Government,DCLG,05/04/2012,Current (non AEF) Grants to Local Authorities,Localism,FYLDE BC,,,,5000197497,Grant Payable by Exchequer,FY8 1LW,"141,231.00",Yes
Communities & Local Government,DCLG,05/04/2012,Current (non AEF) Grants to Local Authorities,Localism,GATESHEAD MBC,,,,5000197498,Grant Payable by Exchequer,NE8 1HH,"2,134,146.00",Yes
Communities & Local Government,DCLG,05/04/2012,Current (non AEF) Grants to Local Authorities,Localism,GLOUCESTER CITY CNCL,,,,5000197499,Grant Payable by Exchequer,GL1 2EQ,"177,863.00",Yes
Communities & Local Government,DCLG,05/04/2012,Current (non AEF) Grants to Local Authorities,Localism,GLOUCESTERSHIRE CONSTABULARY (RS,,,,5000197625,Grant Payable by Exchequer,GL51 6QH,"1,349,000.00",Yes
Communities & Local Government,DCLG,05/04/2012,Current (non AEF) Grants to Local Authorities,Localism,GLOUCESTERSHIRE COUNTY CNCL,,,,5000197500,Grant Payable by Exchequer,GL1 2TG,"6,139,032.00",Yes
Communities & Local Government,DCLG,05/04/2012,Current (non AEF) Grants to Local Authorities,Localism,GMRB,,,,5000197466,Grant Payable by Exchequer,BL9 0SW,"1,887,191.00",Yes
Communities & Local Government,DCLG,05/04/2012,Current (non AEF) Grants to Local Authorities,Localism,GOSPORT BOROUGH COUNCIL,,,,5000197501,Grant Payable by Exchequer,PO12 1ED,"140,603.00",Yes
Communities & Local Government,DCLG,05/04/2012,Current (non AEF) Grants to Local Authorities,Localism,GREAT YARMOUTH BC,,,,5000197502,Grant Payable by Exchequer,NR30 2QG,"115,840.00",Yes
Communities & Local Government,DCLG,05/04/2012,Current (non AEF) Grants to Local Authorities,Localism,GREATER LONDON AUTHORITY,,,,5000197672,Grant Payable by Exchequer,SE10 1AJ,"27,712,670.00",Yes
Communities & Local Government,DCLG,05/04/2012,Current (non AEF) Grants to Local Authorities,Localism,GREATER MANCHESTER FIRE (RSG),,,,5000197626,Grant Payable by Exchequer,M27 2US,"1,276,361.00",Yes
Communities & Local Government,DCLG,05/04/2012,Current (non AEF) Grants to Local Authorities,Localism,GREATER MANCHESTER POL AUTH (RSG,,,,5000197627,Grant Payable by Exchequer,M16 0RE,"3,498,902.00",Yes
Communities & Local Government,DCLG,05/04/2012,Current (non AEF) Grants to Local Authorities,Localism,GREENWICH LB,,,,5000197503,Grant Payable by Exchequer,SE18 6BU,"1,987,074.00",Yes
Communities & Local Government,DCLG,05/04/2012,Current (non AEF) Grants to Local Authorities,Localism,GUILDFORD BC,,,,5000197356,Grant Payable by Exchequer,GU2 5BB,"207,592.00",Yes
Communities & Local Government,DCLG,05/04/2012,Current (non AEF) Grants to Local Authorities,Localism,HALTON BC (HSG),,,,5000197357,Grant Payable by Exchequer,WA8 7QF,"1,086,704.00",Yes
Communities & Local Government,DCLG,05/04/2012,Current (non AEF) Grants to Local Authorities,Localism,HAMBLETON DC (HSG),,,,5000197358,Grant Payable by Exchequer,DL6 2UU,"80,988.00",Yes
Communities & Local Government,DCLG,05/04/2012,Current (non AEF) Grants to Local Authorities,Localism,HAMMERSMITH & FULHAM LB,,,,5000197505,Grant Payable by Exchequer,W6 9JU,"1,625,315.00",Yes
Communities & Local Government,DCLG,05/04/2012,Current (non AEF) Grants to Local Authorities,Localism,HAMPSHIRE COUNTY COUNCIL,,,,5000197506,Grant Payable by Exchequer,SO23 8UB,"13,254,231.00",Yes
Communities & Local Government,DCLG,05/04/2012,Current (non AEF) Grants to Local Authorities,Localism,HAMPSHIRE FIRE & RESCUE AUTHORITY,,Large,,5000197649,Grant Payable by Exchequer,SO23 8UB,"1,174,591.00",Yes
Communities & Local Government,DCLG,05/04/2012,Current (non AEF) Grants to Local Authorities,Localism,HAMPSHIRE POLICE AUTHORITY,,,,5000197664,Grant Payable by Exchequer,SO23 8UB,"3,043,001.00",Yes
Communities & Local Government,DCLG,05/04/2012,Current (non AEF) Grants to Local Authorities,Localism,HARBOROUGH DC (HSG),,,,5000197359,Grant Payable by Exchequer,LE16 7AG,"138,923.00",Yes
Communities & Local Government,DCLG,05/04/2012,Current (non AEF) Grants to Local Authorities,Localism,HARINGEY LB,,,,5000197507,Grant Payable by Exchequer,N22 4TR,"2,575,262.00",Yes
Communities & Local Government,DCLG,05/04/2012,Current (non AEF) Grants to Local Authorities,Localism,HARLOW DISTRICT COUNCIL,,,,5000197508,Grant Payable by Exchequer,CM20 1WG,"180,421.00",Yes
Communities & Local Government,DCLG,05/04/2012,Current (non AEF) Grants to Local Authorities,Localism,HARROGATE BC,,,,5000197360,Grant Payable by Exchequer,HG1 2SG,"341,089.00",Yes
Communities & Local Government,DCLG,05/04/2012,Current (non AEF) Grants to Local Authorities,Localism,HARROW LB,,,,5000197509,Grant Payable by Exchequer,HA1 2UZ,"2,614,563.00",Yes
Communities & Local Government,DCLG,05/04/2012,Current (non AEF) Grants to Local Authorities,Localism,HART DC,,,,5000197510,Grant Payable by Exchequer,GU13 8AE,"145,243.00",Yes
Communities & Local Government,DCLG,05/04/2012,Current (non AEF) Grants to Local Authorities,Localism,HARTLEPOOL BOROUGH COUNCIL,,,,5000197511,Grant Payable by Exchequer,TS24 7BT,"993,111.00",Yes
Communities & Local Government,DCLG,05/04/2012,Current (non AEF) Grants to Local Authorities,Localism,HASTINGS BC,,,,5000197512,Grant Payable by Exchequer,TN34 3WN,"174,612.00",Yes
Communities & Local Government,DCLG,05/04/2012,Current (non AEF) Grants to Local Authorities,Localism,HAVANT BC,,,,5000197513,Grant Payable by Exchequer,PO9 2AX,"207,846.00",Yes
Communities & Local Government,DCLG,05/04/2012,Current (non AEF) Grants to Local Authorities,Localism,HAVERING LB,,,,5000197514,Grant Payable by Exchequer,RM1 3BB,"2,693,308.00",Yes
Communities & Local Government,DCLG,05/04/2012,Current (non AEF) Grants to Local Authorities,Localism,HEREFORD WORCESTER FIRE BRIGADE,,Large,,5000197644,Grant Payable by Exchequer,WR1 2HQ,"625,997.00",Yes
Communities & Local Government,DCLG,05/04/2012,Current (non AEF) Grants to Local Authorities,Localism,HEREFORDSHIRE COUNCIL,,,,5000197361,Grant Payable by Exchequer,HR4 0XH,"2,168,608.00",Yes
Communities & Local Government,DCLG,05/04/2012,Current (non AEF) Grants to Local Authorities,Localism,HERTFORDSHIRE COUNTY CNCL,,,,5000197515,Grant Payable by Exchequer,SG13 8DQ,"12,645,590.00",Yes
Communities & Local Government,DCLG,05/04/2012,Current (non AEF) Grants to Local Authorities,Localism,HERTFORDSHIRE POLICE AUTHORITY,,,,5000197665,Grant Payable by Exchequer,AL8 6XF,"2,004,885.00",Yes
Communities & Local Government,DCLG,05/04/2012,Current (non AEF) Grants to Local Authorities,Localism,HERTSMERE BC,,,,5000197516,Grant Payable by Exchequer,WD6 1WA,"165,156.00",Yes
Communities & Local Government,DCLG,05/04/2012,Current (non AEF) Grants to Local Authorities,Localism,HIGH PEAK BC,,,,5000197362,Grant Payable by Exchequer,SK17 6EL,"139,444.00",Yes
Communities & Local Government,DCLG,05/04/2012,Current (non AEF) Grants to Local Authorities,Localism,HILLINGDON LB,,,,5000197517,Grant Payable by Exchequer,UB8 1UW,"2,788,886.00",Yes
Communities & Local Government,DCLG,05/04/2012,Current (non AEF) Grants to Local Authorities,Localism,HINCKLEY & BOSWORTH BC,,,,5000197363,Grant Payable by Exchequer,LE10 1BZ,"105,808.00",Yes
Communities & Local Government,DCLG,05/04/2012,Current (non AEF) Grants to Local Authorities,Localism,HORSHAM DC,,,,5000197364,Grant Payable by Exchequer,RH12 1RL,"203,534.00",Yes
Communities & Local Government,DCLG,05/04/2012,Current (non AEF) Grants to Local Authorities,Localism,HOUNSLOW LB,,,,5000197518,Grant Payable by Exchequer,TW3 4DN,"2,391,272.00",Yes
Communities & Local Government,DCLG,05/04/2012,Current (non AEF) Grants to Local Authorities,Localism,HULL CITY COUNCIL,,,,5000197527,Grant Payable by Exchequer,HU1 2AA,"1,924,311.00",Yes
Communities & Local Government,DCLG,05/04/2012,Current (non AEF) Grants to Local Authorities,Localism,HUMBERSIDE FIRE & RESCUE SERVICE,,,,5000197639,Grant Payable by Exchequer,HU4 7BB,"675,541.00",Yes
Communities & Local Government,DCLG,05/04/2012,Current (non AEF) Grants to Local Authorities,Localism,HYNDBURN BC,,,,5000197519,Grant Payable by Exchequer,BB5 1EZ,"132,849.00",Yes
Communities & Local Government,DCLG,05/04/2012,Current (non AEF) Grants to Local Authorities,Localism,IPSWICH BC,,,,5000197520,Grant Payable by Exchequer,IP1 2EE,"320,584.00",Yes
Communities & Local Government,DCLG,05/04/2012,Current (non AEF) Grants to Local Authorities,Localism,ISLE OF WIGHT CNCL,,,,5000197521,Grant Payable by Exchequer,PO30 1UD,"1,795,466.00",Yes
Communities & Local Government,DCLG,05/04/2012,Current (non AEF) Grants to Local Authorities,Localism,ISLES OF SCILLY COUNCIL,,,,5000197522,Grant Payable by Exchequer,TR21 0LW,"31,254.00",Yes
Communities & Local Government,DCLG,05/04/2012,Current (non AEF) Grants to Local Authorities,Localism,ISLINGTON LB,,,,5000197523,Grant Payable by Exchequer,N1 1XR,"2,158,965.00",Yes
Communities & Local Government,DCLG,05/04/2012,Current (non AEF) Grants to Local Authorities,Localism,KENT & MEDWAY TOWNS FIRE AUTHORITY,,Large,,5000197640,Grant Payable by Exchequer,ME15 6XB,"1,304,827.00",Yes
Communities & Local Government,DCLG,05/04/2012,Current (non AEF) Grants to Local Authorities,Localism,KENT COUNTY CNCL,,,,5000197525,Grant Payable by Exchequer,ME14 1XQ,"14,447,854.00",Yes
Communities & Local Government,DCLG,05/04/2012,Current (non AEF) Grants to Local Authorities,Localism,KENT POLICE AUTHORITY,,,,5000197628,Grant Payable by Exchequer,ME15 9BZ,"2,663,038.00",Yes
Communities & Local Government,DCLG,05/04/2012,Current (non AEF) Grants to Local Authorities,Localism,KETTERING BC,,,,5000197526,Grant Payable by Exchequer,NN15 7QX,"160,271.00",Yes
Communities & Local Government,DCLG,05/04/2012,Current (non AEF) Grants to Local Authorities,Localism,KINGS LYNN & WEST NORFOLK BC,,,,5000197365,Grant Payable by Exchequer,PE30 1EX,"157,488.00",Yes
Communities & Local Government,DCLG,05/04/2012,Current (non AEF) Grants to Local Authorities,Localism,KINGSTON UPON THAMES  (HSG),,,,5000197366,Grant Payable by Exchequer,KT1 1EU,"2,136,215.00",Yes
Communities & Local Government,DCLG,05/04/2012,Current (non AEF) Grants to Local Authorities,Localism,KIRKLEES COUNCIL (HSG),,,,5000197367,Grant Payable by Exchequer,HD1 2YU,"3,909,608.00",Yes
Communities & Local Government,DCLG,05/04/2012,Current (non AEF) Grants to Local Authorities,Localism,KNOWSLEY MBC,,,,5000197528,Grant Payable by Exchequer,L36 9YZ,"1,316,269.00",Yes
Communities & Local Government,DCLG,05/04/2012,Current (non AEF) Grants to Local Authorities,Localism,LANCASHIRE COMBINED FIRE AUTHORITY,,Large,,5000197646,Grant Payable by Exchequer,PR2 3LH,"896,231.00",Yes
Communities & Local Government,DCLG,05/04/2012,Current (non AEF) Grants to Local Authorities,Localism,LANCASHIRE COUNTY CNCL,,,,5000197530,Grant Payable by Exchequer,PR1 8RD,"10,631,467.00",Yes
Communities & Local Government,DCLG,05/04/2012,Current (non AEF) Grants to Local Authorities,Localism,LANCASTER CITY CNCL,,,,5000197368,Grant Payable by Exchequer,LA1 1PJ,"209,072.00",Yes
Communities & Local Government,DCLG,05/04/2012,Current (non AEF) Grants to Local Authorities,Localism,LEEDS CITY CNCL,,,,5000197531,Grant Payable by Exchequer,LS1 1JF,"6,742,372.00",Yes
Communities & Local Government,DCLG,05/04/2012,Current (non AEF) Grants to Local Authorities,Localism,LEICESTERSHIRE COUNTY CNCL,,,,5000197532,Grant Payable by Exchequer,LE3 8RB,"6,008,477.00",Yes
Communities & Local Government,DCLG,05/04/2012,Current (non AEF) Grants to Local Authorities,Localism,LEICS LEICESTERSHIRE RUTLAND CFA,,,,5000197650,Grant Payable by Exchequer,LE3 8HD,"513,054.00",Yes
Communities & Local Government,DCLG,05/04/2012,Current (non AEF) Grants to Local Authorities,Localism,LEWES DC,,,,5000197369,Grant Payable by Exchequer,BN7 2DQ,"186,086.00",Yes
Communities & Local Government,DCLG,05/04/2012,Current (non AEF) Grants to Local Authorities,Localism,LEWISHAM LB (HSG),,,,5000197370,Grant Payable by Exchequer,SE6 4RU,"2,329,611.00",Yes
Communities & Local Government,DCLG,05/04/2012,Current (non AEF) Grants to Local Authorities,Localism,LINCOLNSHIRE COUNTY COUNCIL,,,,5000197534,Grant Payable by Exchequer,LN1 1YT,"6,331,576.00",Yes
Communities & Local Government,DCLG,05/04/2012,Current (non AEF) Grants to Local Authorities,Localism,LIVERPOOL CITY COUNCIL,,,,5000197535,Grant Payable by Exchequer,L1 6JD,"4,096,081.00",Yes
Communities & Local Government,DCLG,05/04/2012,Current (non AEF) Grants to Local Authorities,Localism,LONDON BOROUGH OF HACKNEY,,,,5000197504,Grant Payable by Exchequer,E8 4RU,"1,930,800.00",Yes
Communities & Local Government,DCLG,05/04/2012,Current (non AEF) Grants to Local Authorities,Localism,LONDON BOROUGH OF LAMBETH,,,,5000197529,Grant Payable by Exchequer,SW2 1RL,"2,510,404.00",Yes
Communities & Local Government,DCLG,05/04/2012,Current (non AEF) Grants to Local Authorities,Localism,LONDON BOROUGH OF NEWHAM,,,,5000197542,Grant Payable by Exchequer,E16 2QU,"1,821,052.00",Yes
Communities & Local Government,DCLG,05/04/2012,Current (non AEF) Grants to Local Authorities,Localism,LONDON BOROUGH OF REDBRIDGE,,,,5000197561,Grant Payable by Exchequer,IG1 1NN,"2,496,984.00",Yes
Communities & Local Government,DCLG,05/04/2012,Current (non AEF) Grants to Local Authorities,Localism,MAIDSTONE BC,,,,5000197371,Grant Payable by Exchequer,ME15 6JQ,"339,063.00",Yes
Communities & Local Government,DCLG,05/04/2012,Current (non AEF) Grants to Local Authorities,Localism,MALDON DC,,,,5000197372,Grant Payable by Exchequer,CM9 7DL,"105,859.00",Yes
Communities & Local Government,DCLG,05/04/2012,Current (non AEF) Grants to Local Authorities,Localism,MALVERN HILLS DC,,,,5000197536,Grant Payable by Exchequer,WR14 3AF,"101,599.00",Yes
Communities & Local Government,DCLG,05/04/2012,Current (non AEF) Grants to Local Authorities,Localism,MANCHESTER CITY CNCL (HSG),,,,5000197373,Grant Payable by Exchequer,M60 2JR,"3,553,938.00",Yes
Communities & Local Government,DCLG,05/04/2012,Current (non AEF) Grants to Local Authorities,Localism,MANSFIELD DC,,,,5000197537,Grant Payable by Exchequer,NG19 7BH,"147,150.00",Yes
Communities & Local Government,DCLG,05/04/2012,Current (non AEF) Grants to Local Authorities,Localism,MEDWAY TOWNS D C (HSG),,,,5000197374,Grant Payable by Exchequer,ME4 4TR,"2,476,995.00",Yes
Communities & Local Government,DCLG,05/04/2012,Current (non AEF) Grants to Local Authorities,Localism,MELTON BC,,,,5000197375,Grant Payable by Exchequer,LE13 0UL,"84,486.00",Yes
Communities & Local Government,DCLG,05/04/2012,Current (non AEF) Grants to Local Authorities,Localism,MENDIP DISTRICT COUNCIL,,,,5000197376,Grant Payable by Exchequer,BA4 5BA,"151,352.00",Yes
Communities & Local Government,DCLG,05/04/2012,Current (non AEF) Grants to Local Authorities,Localism,MERTON LB,,,,5000197538,Grant Payable by Exchequer,SM4 5DX,"2,069,734.00",Yes
Communities & Local Government,DCLG,05/04/2012,Current (non AEF) Grants to Local Authorities,Localism,MID DEVON DC,,,,5000197377,Grant Payable by Exchequer,EX16 6PP,"129,352.00",Yes
Communities & Local Government,DCLG,05/04/2012,Current (non AEF) Grants to Local Authorities,Localism,MID SUFFOLK DC,,,,5000197378,Grant Payable by Exchequer,IP1 2DH,"135,940.00",Yes
Communities & Local Government,DCLG,05/04/2012,Current (non AEF) Grants to Local Authorities,Localism,MID SUSSEX DC,,,,5000197379,Grant Payable by Exchequer,RH16 1SS,"215,796.00",Yes
Communities & Local Government,DCLG,05/04/2012,Current (non AEF) Grants to Local Authorities,Localism,MILTON KEYNES BC,,,,5000197539,Grant Payable by Exchequer,MK9 3WJ,"2,352,095.00",Yes
Communities & Local Government,DCLG,05/04/2012,Current (non AEF) Grants to Local Authorities,Localism,MOLE VALLEY DC,,,,5000197380,Grant Payable by Exchequer,RH4 1SJ,"154,689.00",Yes
Communities & Local Government,DCLG,05/04/2012,Current (non AEF) Grants to Local Authorities,Localism,NEW FOREST DC,,Public Bodies,,5000197381,Grant Payable by Exchequer,SO43 9ZG,"285,330.00",Yes
Communities & Local Government,DCLG,05/04/2012,Current (non AEF) Grants to Local Authorities,Localism,NEWARK & SHERWOOD DC (HSG),,,,5000197382,Grant Payable by Exchequer,NG23 5QX,"158,215.00",Yes
Communities & Local Government,DCLG,05/04/2012,Current (non AEF) Grants to Local Authorities,Localism,NEWCASTLE UNDER LYME BC,,,,5000197540,Grant Payable by Exchequer,ST5 2AG,"173,108.00",Yes
Communities & Local Government,DCLG,05/04/2012,Current (non AEF) Grants to Local Authorities,Localism,NEWCASTLE UPON TYNE DC,,,,5000197541,Grant Payable by Exchequer,NE99 1RD,"2,639,660.00",Yes
Communities & Local Government,DCLG,05/04/2012,Current (non AEF) Grants to Local Authorities,Localism,NORFOLK COUNTY COUNCIL,,,,5000197543,Grant Payable by Exchequer,NR1 2DW,"8,622,391.00",Yes
Communities & Local Government,DCLG,05/04/2012,Current (non AEF) Grants to Local Authorities,Localism,NORTH DEVON DC,,,,5000197383,Grant Payable by Exchequer,EX31 1EA,"144,050.00",Yes
Communities & Local Government,DCLG,05/04/2012,Current (non AEF) Grants to Local Authorities,Localism,NORTH DORSET DC,,,,5000197384,Grant Payable by Exchequer,DT11 7LL,"72,264.00",Yes
Communities & Local Government,DCLG,05/04/2012,Current (non AEF) Grants to Local Authorities,Localism,NORTH EAST DERBYSHIRE DC,,,,5000197544,Grant Payable by Exchequer,S40 1LF,"141,464.00",Yes
Communities & Local Government,DCLG,05/04/2012,Current (non AEF) Grants to Local Authorities,Localism,NORTH EAST LINCOLN DC (HSG),,,,5000197385,Grant Payable by Exchequer,DN35 8LN,"1,488,648.00",Yes
Communities & Local Government,DCLG,05/04/2012,Current (non AEF) Grants to Local Authorities,Localism,NORTH HERTS DC (HOUSING) (HSG),,,,5000197386,Grant Payable by Exchequer,SG6 3HN,"248,620.00",Yes
Communities & Local Government,DCLG,05/04/2012,Current (non AEF) Grants to Local Authorities,Localism,NORTH KESTEVEN DC,,,,5000197545,Grant Payable by Exchequer,NG34 7EF,"128,798.00",Yes
Communities & Local Government,DCLG,05/04/2012,Current (non AEF) Grants to Local Authorities,Localism,NORTH LINCOLNSHIRE DC (HSG),,,,5000197387,Grant Payable by Exchequer,DN16 1AB,"1,673,145.00",Yes
Communities & Local Government,DCLG,05/04/2012,Current (non AEF) Grants to Local Authorities,Localism,NORTH NORFOLK DC,,,,5000197388,Grant Payable by Exchequer,NR27 9EJ,"143,613.00",Yes
Communities & Local Government,DCLG,05/04/2012,Current (non AEF) Grants to Local Authorities,Localism,NORTH SOMERSET DC,,,,5000197546,Grant Payable by Exchequer,BS23 1LL,"2,268,330.00",Yes
Communities & Local Government,DCLG,05/04/2012,Current (non AEF) Grants to Local Authorities,Localism,NORTH TYNESIDE MBC,,,,5000197547,Grant Payable by Exchequer,NE27 0BY,"2,132,170.00",Yes
Communities & Local Government,DCLG,05/04/2012,Current (non AEF) Grants to Local Authorities,Localism,NORTH WARWICKSHIRE BC,,Large,,5000197389,Grant Payable by Exchequer,CV9 1DE,"112,274.00",Yes
Communities & Local Government,DCLG,05/04/2012,Current (non AEF) Grants to Local Authorities,Localism,NORTH WEST LEICESTER DC,,,,5000197390,Grant Payable by Exchequer,LE67 3FJ,"141,287.00",Yes
Communities & Local Government,DCLG,05/04/2012,Current (non AEF) Grants to Local Authorities,Localism,NORTH YORKSHIRE CC (DL7 8AL),,,,5000197548,Grant Payable by Exchequer,DL7 8AL,"6,163,896.00",Yes
Communities & Local Government,DCLG,05/04/2012,Current (non AEF) Grants to Local Authorities,Localism,NORTH YORKSHIRE FIRE & RESCUE AUTH,,Large,,5000197652,Grant Payable by Exchequer,DL6 2ND,"559,971.00",Yes
Communities & Local Government,DCLG,05/04/2012,Current (non AEF) Grants to Local Authorities,Localism,NORTH YORKSHIRE POLICE AUTHORITY,,,,5000197667,Grant Payable by Exchequer,DL7 9HA,"1,844,478.00",Yes
Communities & Local Government,DCLG,05/04/2012,Current (non AEF) Grants to Local Authorities,Localism,NORTHAMPTON BOROUGH COUNCIL,,,,5000197549,Grant Payable by Exchequer,NN4 7NR,"352,162.00",Yes
Communities & Local Government,DCLG,05/04/2012,Current (non AEF) Grants to Local Authorities,Localism,NORTHAMPTONSHIRE COUNTY COUNCIL,,,,5000197550,Grant Payable by Exchequer,NN4 7BR,"6,070,828.00",Yes
Communities & Local Government,DCLG,05/04/2012,Current (non AEF) Grants to Local Authorities,Localism,NORTHAMPTONSHIRE POLICE AUTH,,,,5000197666,Grant Payable by Exchequer,NN1 5DQ,"1,368,979.00",Yes
Communities & Local Government,DCLG,05/04/2012,Current (non AEF) Grants to Local Authorities,Localism,NORTHUMBERLAND COUNTY COUNCIL,,,,5000197654,Grant Payable by Exchequer,NE61 2EF,"3,765,969.00",Yes
Communities & Local Government,DCLG,05/04/2012,Current (non AEF) Grants to Local Authorities,Localism,NORTHUMBRIA POLICE AUTH (RSG),,,,5000197629,Grant Payable by Exchequer,NE1 8DL,"1,097,386.00",Yes
Communities & Local Government,DCLG,05/04/2012,Current (non AEF) Grants to Local Authorities,Localism,NORWICH CITY CNCL,,,,5000197551,Grant Payable by Exchequer,NR2 1NH,"232,053.00",Yes
Communities & Local Government,DCLG,05/04/2012,Current (non AEF) Grants to Local Authorities,Localism,NOTTINGHAMSHIRE COUNTY CNCL,,,,5000197552,Grant Payable by Exchequer,NG1 4BU,"7,721,020.00",Yes
Communities & Local Government,DCLG,05/04/2012,Current (non AEF) Grants to Local Authorities,Localism,NOTTS & CITY NOTTINGHAM FIRE AUTH,,Large,,5000197643,Grant Payable by Exchequer,NG5 8PD,"698,815.00",Yes
Communities & Local Government,DCLG,05/04/2012,Current (non AEF) Grants to Local Authorities,Localism,NUNEATON & BEDWORTH BC,,,,5000197553,Grant Payable by Exchequer,CV11 5AA,"201,705.00",Yes
Communities & Local Government,DCLG,05/04/2012,Current (non AEF) Grants to Local Authorities,Localism,OADBY & WIGSTON BC (HSG),,,,5000197391,Grant Payable by Exchequer,LE8 2DR,"91,009.00",Yes
Communities & Local Government,DCLG,05/04/2012,Current (non AEF) Grants to Local Authorities,Localism,OLDHAM MBC,,,,5000197554,Grant Payable by Exchequer,OL1 1UH,"2,125,770.00",Yes
Communities & Local Government,DCLG,05/04/2012,Current (non AEF) Grants to Local Authorities,Localism,OXFORD CITY COUNCIL,,,,5000197555,Grant Payable by Exchequer,OX1 1DF,"309,859.00",Yes
Communities & Local Government,DCLG,05/04/2012,Current (non AEF) Grants to Local Authorities,Localism,OXFORDSHIRE CC,,,,5000197556,Grant Payable by Exchequer,OX1 1TH,"7,113,139.00",Yes
Communities & Local Government,DCLG,05/04/2012,Current (non AEF) Grants to Local Authorities,Localism,PENDLE BC,,,,5000197557,Grant Payable by Exchequer,BB9 OLX,"158,218.00",Yes
Communities & Local Government,DCLG,05/04/2012,Current (non AEF) Grants to Local Authorities,Localism,PLYMOUTH CITY CNCL,,,,5000197558,Grant Payable by Exchequer,PL1 2AA,"2,404,422.00",Yes
Communities & Local Government,DCLG,05/04/2012,Current (non AEF) Grants to Local Authorities,Localism,POOLE BC (HSG),,,,5000197392,Grant Payable by Exchequer,BH15 2RU,"1,788,484.00",Yes
Communities & Local Government,DCLG,05/04/2012,Current (non AEF) Grants to Local Authorities,Localism,PORTSMOUTH CITY COUNCIL,,,,5000197559,Grant Payable by Exchequer,PO1 2AR,"1,721,270.00",Yes
Communities & Local Government,DCLG,05/04/2012,Current (non AEF) Grants to Local Authorities,Localism,PURBECK DC,,,,5000197393,Grant Payable by Exchequer,DT2 8UP,"81,055.00",Yes
Communities & Local Government,DCLG,05/04/2012,Current (non AEF) Grants to Local Authorities,Localism,READING BC,,,,5000197560,Grant Payable by Exchequer,RG1 7TD,"1,735,972.00",Yes
Communities & Local Government,DCLG,05/04/2012,Current (non AEF) Grants to Local Authorities,Localism,REDDITCH BC,,,,5000197562,Grant Payable by Exchequer,B98 8AH,"144,395.00",Yes
Communities & Local Government,DCLG,05/04/2012,Current (non AEF) Grants to Local Authorities,Localism,REIGATE & BANSTEAD BC,,,,5000197563,Grant Payable by Exchequer,RH2 OSH,"287,852.00",Yes
Communities & Local Government,DCLG,05/04/2012,Current (non AEF) Grants to Local Authorities,Localism,RIBBLE VALLEY BC,,,,5000197394,Grant Payable by Exchequer,BB7 2RA,"78,906.00",Yes
Communities & Local Government,DCLG,05/04/2012,Current (non AEF) Grants to Local Authorities,Localism,RICHMOND UPON THAMES LB,,,,5000197564,Grant Payable by Exchequer,TW1 3BZ,"2,896,370.00",Yes
Communities & Local Government,DCLG,05/04/2012,Current (non AEF) Grants to Local Authorities,Localism,ROCHDALE MBC,,,,5000197565,Grant Payable by Exchequer,OL16 1LQ,"1,974,183.00",Yes
Communities & Local Government,DCLG,05/04/2012,Current (non AEF) Grants to Local Authorities,Localism,ROCHFORD DISTRICT COUNCIL,,,,5000197566,Grant Payable by Exchequer,SS4 1BW,"159,069.00",Yes
Communities & Local Government,DCLG,05/04/2012,Current (non AEF) Grants to Local Authorities,Localism,ROSSENDALE BC,,,,5000197567,Grant Payable by Exchequer,BB4 7LZ,"137,565.00",Yes
Communities & Local Government,DCLG,05/04/2012,Current (non AEF) Grants to Local Authorities,Localism,ROTHER DC (HSG),,,,5000197395,Grant Payable by Exchequer,TN39 3JX,"179,094.00",Yes
Communities & Local Government,DCLG,05/04/2012,Current (non AEF) Grants to Local Authorities,Localism,ROTHERHAM MBC,,,,5000197568,Grant Payable by Exchequer,S60 1AE,"2,333,920.00",Yes
Communities & Local Government,DCLG,05/04/2012,Current (non AEF) Grants to Local Authorities,Localism,ROYAL BERKSHIRE FIRE AUTHORITY,,,,5000197638,Grant Payable by Exchequer,RG30 4FS,"561,302.00",Yes
Communities & Local Government,DCLG,05/04/2012,Current (non AEF) Grants to Local Authorities,Localism,ROYAL BOROUGH OF KENSINGTON & CHELS,,,,5000197524,Grant Payable by Exchequer,W8 7NX,"1,950,559.00",Yes
Communities & Local Government,DCLG,05/04/2012,Current (non AEF) Grants to Local Authorities,Localism,RUGBY BC,,,,5000197569,Grant Payable by Exchequer,CV21 2LA,"153,074.00",Yes
Communities & Local Government,DCLG,05/04/2012,Current (non AEF) Grants to Local Authorities,Localism,RUNNYMEDE BOROUGH COUNCIL,,,,5000197570,Grant Payable by Exchequer,KT15 2AH,"115,994.00",Yes
Communities & Local Government,DCLG,05/04/2012,Current (non AEF) Grants to Local Authorities,Localism,RUSHCLIFFE BOROUGH COUNCIL,,,,5000197396,Grant Payable by Exchequer,NG2 5FE,"136,452.00",Yes
Communities & Local Government,DCLG,05/04/2012,Current (non AEF) Grants to Local Authorities,Localism,RUSHMOOR BC,,,,5000197571,Grant Payable by Exchequer,GU14 7JU,"146,515.00",Yes
Communities & Local Government,DCLG,05/04/2012,Current (non AEF) Grants to Local Authorities,Localism,RUTLAND CC,,,,5000197572,Grant Payable by Exchequer,LE15 6HP,"519,754.00",Yes
Communities & Local Government,DCLG,05/04/2012,Current (non AEF) Grants to Local Authorities,Localism,RYEDALE DC,,,,5000197397,Grant Payable by Exchequer,YO17 0HH,"94,132.00",Yes
Communities & Local Government,DCLG,05/04/2012,Current (non AEF) Grants to Local Authorities,Localism,SALFORD CITY CNCL,,,,5000197573,Grant Payable by Exchequer,M27 5AW,"2,346,935.00",Yes
Communities & Local Government,DCLG,05/04/2012,Current (non AEF) Grants to Local Authorities,Localism,SANDWELL MBC,,,,5000197574,Grant Payable by Exchequer,B69 3BS,"2,527,240.00",Yes
Communities & Local Government,DCLG,05/04/2012,Current (non AEF) Grants to Local Authorities,Localism,SCARBOROUGH BC,,Large,,5000197398,Grant Payable by Exchequer,YO11 2HG,"219,923.00",Yes
Communities & Local Government,DCLG,05/04/2012,Current (non AEF) Grants to Local Authorities,Localism,SEDGEMOOR DC,,,,5000197399,Grant Payable by Exchequer,TA6 3AR,"133,503.00",Yes
Communities & Local Government,DCLG,05/04/2012,Current (non AEF) Grants to Local Authorities,Localism,SEFTON MBC,,,,5000197575,Grant Payable by Exchequer,L20 3NQ,"2,948,818.00",Yes
Communities & Local Government,DCLG,05/04/2012,Current (non AEF) Grants to Local Authorities,Localism,SELBY DC,,,,5000197400,Grant Payable by Exchequer,YO8 0SA,"120,455.00",Yes
Communities & Local Government,DCLG,05/04/2012,Current (non AEF) Grants to Local Authorities,Localism,SEVENOAKS DC,,,,5000197401,Grant Payable by Exchequer,TN13 1HG,"231,273.00",Yes
Communities & Local Government,DCLG,05/04/2012,Current (non AEF) Grants to Local Authorities,Localism,SHEFFIELD CITY CNCL,,,,5000197576,Grant Payable by Exchequer,S1 1UR,"4,931,699.00",Yes
Communities & Local Government,DCLG,05/04/2012,Current (non AEF) Grants to Local Authorities,Localism,SHEPWAY DISTRICT COUNCIL,,,,5000197402,Grant Payable by Exchequer,CT20 2QY,"245,977.00",Yes
Communities & Local Government,DCLG,05/04/2012,Current (non AEF) Grants to Local Authorities,Localism,SHROPSHIRE UNITARY AUTHORITY,,,,5000197659,Grant Payable by Exchequer,SY2 6ND,"3,243,184.00",Yes
Communities & Local Government,DCLG,05/04/2012,Current (non AEF) Grants to Local Authorities,Localism,SLOUGH BOROUGH COUNCIL,,,,5000197577,Grant Payable by Exchequer,SL1 3UQ,"1,208,427.00",Yes
Communities & Local Government,DCLG,05/04/2012,Current (non AEF) Grants to Local Authorities,Localism,SOLIHULL MBC,,,,5000197578,Grant Payable by Exchequer,B91 3QR,"2,347,381.00",Yes
Communities & Local Government,DCLG,05/04/2012,Current (non AEF) Grants to Local Authorities,Localism,SOMERSET COUNTY CNCL,,,,5000197579,Grant Payable by Exchequer,TA1 4DY,"5,107,438.00",Yes
Communities & Local Government,DCLG,05/04/2012,Current (non AEF) Grants to Local Authorities,Localism,SOUTH BUCKS DC (HSG),,,,5000197403,Grant Payable by Exchequer,UB9 4LH,"117,800.00",Yes
Communities & Local Government,DCLG,05/04/2012,Current (non AEF) Grants to Local Authorities,Localism,SOUTH CAMBRIDGESHIRE DC,,,,5000197404,Grant Payable by Exchequer,CB23 6EA,"175,479.00",Yes
Communities & Local Government,DCLG,05/04/2012,Current (non AEF) Grants to Local Authorities,Localism,SOUTH DERBYSHIRE D C,,,,5000197405,Grant Payable by Exchequer,DE11 0AH,"120,929.00",Yes
Communities & Local Government,DCLG,05/04/2012,Current (non AEF) Grants to Local Authorities,Localism,SOUTH GLOUCESTERSHIRE DC (HSG),,,,5000197406,Grant Payable by Exchequer,BS15 2TR,"2,844,379.00",Yes
Communities & Local Government,DCLG,05/04/2012,Current (non AEF) Grants to Local Authorities,Localism,SOUTH HOLLAND,,,,5000197407,Grant Payable by Exchequer,PE11 2XE,"116,996.00",Yes
Communities & Local Government,DCLG,05/04/2012,Current (non AEF) Grants to Local Authorities,Localism,SOUTH KESTEVEN DC (HSG),,,,5000197408,Grant Payable by Exchequer,NG31 6PZ,"158,546.00",Yes
Communities & Local Government,DCLG,05/04/2012,Current (non AEF) Grants to Local Authorities,Localism,SOUTH LAKELAND DC,,,,5000197409,Grant Payable by Exchequer,LA49 4DQ,"203,820.00",Yes
Communities & Local Government,DCLG,05/04/2012,Current (non AEF) Grants to Local Authorities,Localism,SOUTH NORFOLK DC,,,,5000197410,Grant Payable by Exchequer,NR15 2XE,"154,181.00",Yes
Communities & Local Government,DCLG,05/04/2012,Current (non AEF) Grants to Local Authorities,Localism,SOUTH NORTHAMPTONSHIRE DC,,,,5000197411,Grant Payable by Exchequer,NN12 7AE,"144,563.00",Yes
Communities & Local Government,DCLG,05/04/2012,Current (non AEF) Grants to Local Authorities,Localism,SOUTH OXFORDSHIRE DC,,,,5000197412,Grant Payable by Exchequer,OX10 8HQ,"172,146.00",Yes
Communities & Local Government,DCLG,05/04/2012,Current (non AEF) Grants to Local Authorities,Localism,SOUTH SOMERSET DC,,,,5000197413,Grant Payable by Exchequer,BA20 2DS,"230,539.00",Yes
Communities & Local Government,DCLG,05/04/2012,Current (non AEF) Grants to Local Authorities,Localism,SOUTH STAFFORDSHIRE DC,,,,5000197414,Grant Payable by Exchequer,WV8 1PX,"95,021.00",Yes
Communities & Local Government,DCLG,05/04/2012,Current (non AEF) Grants to Local Authorities,Localism,SOUTH TYNESIDE COUNCIL,,,,5000197580,Grant Payable by Exchequer,NE33 2RL,"1,450,546.00",Yes
Communities & Local Government,DCLG,05/04/2012,Current (non AEF) Grants to Local Authorities,Localism,SOUTHAMPTON CITY CNCL,,,,5000197581,Grant Payable by Exchequer,SO14 7LF,"2,080,138.00",Yes
Communities & Local Government,DCLG,05/04/2012,Current (non AEF) Grants to Local Authorities,Localism,SOUTHEND ON SEA BC,,,,5000197582,Grant Payable by Exchequer,SS2 6EP,"1,721,838.00",Yes
Communities & Local Government,DCLG,05/04/2012,Current (non AEF) Grants to Local Authorities,Localism,SOUTHWARK LB,,,,5000197583,Grant Payable by Exchequer,SE1 2QH,"2,281,066.00",Yes
Communities & Local Government,DCLG,05/04/2012,Current (non AEF) Grants to Local Authorities,Localism,ST ALBANS CITY COUNCIL,,,,5000197584,Grant Payable by Exchequer,AL1 3JE,"260,512.00",Yes
Communities & Local Government,DCLG,05/04/2012,Current (non AEF) Grants to Local Authorities,Localism,ST EDMUNDSBURY (HSG),,,,5000197415,Grant Payable by Exchequer,IP33 3YS,"167,977.00",Yes
Communities & Local Government,DCLG,05/04/2012,Current (non AEF) Grants to Local Authorities,Localism,STAFFORD BC,,,,5000197585,Grant Payable by Exchequer,ST16 3AQ,"172,714.00",Yes
Communities & Local Government,DCLG,05/04/2012,Current (non AEF) Grants to Local Authorities,Localism,STAFFORDSHIRE  FIRE & RESCUE SERV,,,,5000197642,Grant Payable by Exchequer,ST15 0BS,"731,012.00",Yes
Communities & Local Government,DCLG,05/04/2012,Current (non AEF) Grants to Local Authorities,Localism,STAFFORDSHIRE COUNTY CNCL,,,,5000197586,Grant Payable by Exchequer,ST16 2LH,"7,429,256.00",Yes
Communities & Local Government,DCLG,05/04/2012,Current (non AEF) Grants to Local Authorities,Localism,STAFFORDSHIRE MOORLANDS DC,,,,5000197416,Grant Payable by Exchequer,ST13 6HQ,"130,020.00",Yes
Communities & Local Government,DCLG,05/04/2012,Current (non AEF) Grants to Local Authorities,Localism,STAFFORDSHIRE POLICE AUTHORITY,,,,5000197668,Grant Payable by Exchequer,ST16 2NF,"1,919,501.00",Yes
Communities & Local Government,DCLG,05/04/2012,Current (non AEF) Grants to Local Authorities,Localism,STEVENAGE BC,,,,5000197587,Grant Payable by Exchequer,SG1 1HN,"136,622.00",Yes
Communities & Local Government,DCLG,05/04/2012,Current (non AEF) Grants to Local Authorities,Localism,STOCKPORT MBC,,,,5000197588,Grant Payable by Exchequer,SK1 3XE,"3,399,671.00",Yes
Communities & Local Government,DCLG,05/04/2012,Current (non AEF) Grants to Local Authorities,Localism,STRATFORD ON AVON DC,,,,5000197589,Grant Payable by Exchequer,CV37 6HX,"168,484.00",Yes
Communities & Local Government,DCLG,05/04/2012,Current (non AEF) Grants to Local Authorities,Localism,STROUD DC (HSG),,,,5000197417,Grant Payable by Exchequer,GL5 4UB,"203,296.00",Yes
Communities & Local Government,DCLG,05/04/2012,Current (non AEF) Grants to Local Authorities,Localism,SUFFOLK CC (SOCIAL CARE SERV) (H,,,,5000197418,Grant Payable by Exchequer,IP4 1LH,"7,243,340.00",Yes
Communities & Local Government,DCLG,05/04/2012,Current (non AEF) Grants to Local Authorities,Localism,SUFFOLK COASTAL DC (HSG),,,,5000197419,Grant Payable by Exchequer,IP12 1AU,"185,582.00",Yes
Communities & Local Government,DCLG,05/04/2012,Current (non AEF) Grants to Local Authorities,Localism,SURREY HEATH BC,,,,5000197590,Grant Payable by Exchequer,GU15 3HD,"178,259.00",Yes
Communities & Local Government,DCLG,05/04/2012,Current (non AEF) Grants to Local Authorities,Localism,SUSSEX POLICE AUTHORITY,,,,5000197630,Grant Payable by Exchequer,BN7 2DZ,"2,623,783.00",Yes
Communities & Local Government,DCLG,05/04/2012,Current (non AEF) Grants to Local Authorities,Localism,SUTTON LB,,,,5000197591,Grant Payable by Exchequer,SM1 1EA,"2,114,654.00",Yes
Communities & Local Government,DCLG,05/04/2012,Current (non AEF) Grants to Local Authorities,Localism,SWALE BC,,,,5000197592,Grant Payable by Exchequer,ME10 3HT,"193,519.00",Yes
Communities & Local Government,DCLG,05/04/2012,Current (non AEF) Grants to Local Authorities,Localism,SWINDON BC,,,,5000197593,Grant Payable by Exchequer,SN1 2JH,"2,095,920.00",Yes
Communities & Local Government,DCLG,05/04/2012,Current (non AEF) Grants to Local Authorities,Localism,TAMESIDE MBC,,,,5000197594,Grant Payable by Exchequer,OL6 6DL,"1,952,174.00",Yes
Communities & Local Government,DCLG,05/04/2012,Current (non AEF) Grants to Local Authorities,Localism,TAMWORTH BOROUGH COUNCIL,,,,5000197595,Grant Payable by Exchequer,B79 7BZ,"87,405.00",Yes
Communities & Local Government,DCLG,05/04/2012,Current (non AEF) Grants to Local Authorities,Localism,TANDRIDGE DC,,,,5000197420,Grant Payable by Exchequer,RH8 0BT,"183,945.00",Yes
Communities & Local Government,DCLG,05/04/2012,Current (non AEF) Grants to Local Authorities,Localism,TAUNTON DEANE BC,,,,5000197421,Grant Payable by Exchequer,TA1 1HE,"140,496.00",Yes
Communities & Local Government,DCLG,05/04/2012,Current (non AEF) Grants to Local Authorities,Localism,TEIGNBRIDGE DC,,,,5000197422,Grant Payable by Exchequer,TQ12 4XX,"185,633.00",Yes
Communities & Local Government,DCLG,05/04/2012,Current (non AEF) Grants to Local Authorities,Localism,TENDRING DC,,,,5000197423,Grant Payable by Exchequer,CO15 1SE,"192,001.00",Yes
Communities & Local Government,DCLG,05/04/2012,Current (non AEF) Grants to Local Authorities,Localism,TEST VALLEY BC,,,,5000197424,Grant Payable by Exchequer,SP10 3AJ,"148,540.00",Yes
Communities & Local Government,DCLG,05/04/2012,Current (non AEF) Grants to Local Authorities,Localism,TEWKESBURY BC,,,,5000197425,Grant Payable by Exchequer,GL20 5TT,"79,893.00",Yes
Communities & Local Government,DCLG,05/04/2012,Current (non AEF) Grants to Local Authorities,Localism,THAMES VALLEY POLICE AUTHORITY (,,,,5000197631,Grant Payable by Exchequer,OX5 2NX,"4,077,251.00",Yes
Communities & Local Government,DCLG,05/04/2012,Current (non AEF) Grants to Local Authorities,Localism,THANET DC,,,,5000197426,Grant Payable by Exchequer,CT8 1XZ,"247,737.00",Yes
Communities & Local Government,DCLG,05/04/2012,Current (non AEF) Grants to Local Authorities,Localism,THREE RIVERS DC,,,,5000197596,Grant Payable by Exchequer,WD3 1RL,"150,992.00",Yes
Communities & Local Government,DCLG,05/04/2012,Current (non AEF) Grants to Local Authorities,Localism,THURROCK  BOROUGH COUNCIL,,,,5000197597,Grant Payable by Exchequer,RM17 6LT,"1,439,335.00",Yes
Communities & Local Government,DCLG,05/04/2012,Current (non AEF) Grants to Local Authorities,Localism,TORBAY BC,,,,5000197598,Grant Payable by Exchequer,TQ1 3DR,"1,545,608.00",Yes
Communities & Local Government,DCLG,05/04/2012,Current (non AEF) Grants to Local Authorities,Localism,TORRIDGE DC,,,,5000197427,Grant Payable by Exchequer,EX39 2HT,"86,653.00",Yes
Communities & Local Government,DCLG,05/04/2012,Current (non AEF) Grants to Local Authorities,Localism,TOWER HAMLETS LB (HSG),,,,5000197428,Grant Payable by Exchequer,E14 2BG,"2,010,748.00",Yes
Communities & Local Government,DCLG,05/04/2012,Current (non AEF) Grants to Local Authorities,Localism,TRAFFORD MBC,,,,5000197599,Grant Payable by Exchequer,M32 0YY,"2,210,046.00",Yes
Communities & Local Government,DCLG,05/04/2012,Current (non AEF) Grants to Local Authorities,Localism,TYNE & WEAR FIRE AUTHORITY (RSG),,,,5000197632,Grant Payable by Exchequer,SR2 7DN,"718,694.00",Yes
Communities & Local Government,DCLG,05/04/2012,Current (non AEF) Grants to Local Authorities,Localism,UTTLESFORD DC,,,,5000197429,Grant Payable by Exchequer,CB11 4ER,"124,319.00",Yes
Communities & Local Government,DCLG,05/04/2012,Current (non AEF) Grants to Local Authorities,Localism,VALE OF WHITE HORSE DC,,,,5000197430,Grant Payable by Exchequer,OX14 3JH,"143,166.00",Yes
Communities & Local Government,DCLG,05/04/2012,Current (non AEF) Grants to Local Authorities,Localism,W YORKSHIRE FIRE & RESCUE AUTH (RSG,,,,5000197633,Grant Payable by Exchequer,BD11 2DY,"1,078,733.00",Yes
Communities & Local Government,DCLG,05/04/2012,Current (non AEF) Grants to Local Authorities,Localism,WALSALL MBC,,,,5000197601,Grant Payable by Exchequer,WS1 1TW,"2,731,140.00",Yes
Communities & Local Government,DCLG,05/04/2012,Current (non AEF) Grants to Local Authorities,Localism,WALTHAM FOREST LB,,,,5000197602,Grant Payable by Exchequer,E17 4JA,"2,225,759.00",Yes
Communities & Local Government,DCLG,05/04/2012,Current (non AEF) Grants to Local Authorities,Localism,WANDSWORTH LB,,,,5000197603,Grant Payable by Exchequer,SW18 2PU,"1,209,967.00",Yes
Communities & Local Government,DCLG,05/04/2012,Current (non AEF) Grants to Local Authorities,Localism,WARRINGTON BC,,,,5000197604,Grant Payable by Exchequer,WA1 1BN,"2,003,925.00",Yes
Communities & Local Government,DCLG,05/04/2012,Current (non AEF) Grants to Local Authorities,Localism,WARWICK,,,,5000197605,Grant Payable by Exchequer,CV32 4NW,"196,281.00",Yes
Communities & Local Government,DCLG,05/04/2012,Current (non AEF) Grants to Local Authorities,Localism,WARWICKSHIRE COUNTY CNCL,,,,5000197606,Grant Payable by Exchequer,CV34 4RH,"5,858,770.00",Yes
Communities & Local Government,DCLG,05/04/2012,Current (non AEF) Grants to Local Authorities,Localism,WATFORD COUNCIL,,,,5000197607,Grant Payable by Exchequer,WD17 3EX,"206,462.00",Yes
Communities & Local Government,DCLG,05/04/2012,Current (non AEF) Grants to Local Authorities,Localism,WAVENEY DISTRICT COUNCIL,,Large,,5000197431,Grant Payable by Exchequer,NR32 1HS,"148,075.00",Yes
Communities & Local Government,DCLG,05/04/2012,Current (non AEF) Grants to Local Authorities,Localism,WAVERLEY BC V177,,,,5000197432,Grant Payable by Exchequer,GU7 1HR,"222,006.00",Yes
Communities & Local Government,DCLG,05/04/2012,Current (non AEF) Grants to Local Authorities,Localism,WEALDEN DC,,,,5000197433,Grant Payable by Exchequer,BN22 9LN,"276,546.00",Yes
Communities & Local Government,DCLG,05/04/2012,Current (non AEF) Grants to Local Authorities,Localism,WELLINGBOROUGH,,,,5000197608,Grant Payable by Exchequer,NN8 1BN,"80,596.00",Yes
Communities & Local Government,DCLG,05/04/2012,Current (non AEF) Grants to Local Authorities,Localism,WELWYN HATFIELD COUNCIL,,,,5000197434,Grant Payable by Exchequer,AL8 6AE,"207,213.00",Yes
Communities & Local Government,DCLG,05/04/2012,Current (non AEF) Grants to Local Authorities,Localism,WEST BERKSHIRE COUNCIL,,,,5000197609,Grant Payable by Exchequer,RG14 2AF,"1,987,954.00",Yes
Communities & Local Government,DCLG,05/04/2012,Current (non AEF) Grants to Local Authorities,Localism,WEST DORSET DC,,,,5000197435,Grant Payable by Exchequer,DT1 1UZ,"135,169.00",Yes
Communities & Local Government,DCLG,05/04/2012,Current (non AEF) Grants to Local Authorities,Localism,WEST LANCASHIRE BC,,,,5000197610,Grant Payable by Exchequer,L39 2DF,"173,840.00",Yes
Communities & Local Government,DCLG,05/04/2012,Current (non AEF) Grants to Local Authorities,Localism,WEST LINDSEY DC,,,,5000197436,Grant Payable by Exchequer,DN21 2NA,"144,867.00",Yes
Communities & Local Government,DCLG,05/04/2012,Current (non AEF) Grants to Local Authorities,Localism,WEST MERCIA POLICE AUTHORITY,,,,5000197669,Grant Payable by Exchequer,WR5 2NP,"2,384,316.00",Yes
Communities & Local Government,DCLG,05/04/2012,Current (non AEF) Grants to Local Authorities,Localism,WEST MIDLANDS FIRE & CIVIL DEFENCE,,,,5000197634,Grant Payable by Exchequer,B4 7DE,"1,153,618.00",Yes
Communities & Local Government,DCLG,05/04/2012,Current (non AEF) Grants to Local Authorities,Localism,WEST MIDLANDS POLICE AUTHORITY,,,,5000197670,Grant Payable by Exchequer,B4 6NQ,"2,398,647.00",Yes
Communities & Local Government,DCLG,05/04/2012,Current (non AEF) Grants to Local Authorities,Localism,WEST OXFORDSHIRE DC,,,,5000197437,Grant Payable by Exchequer,OX28 1NB,"86,615.00",Yes
Communities & Local Government,DCLG,05/04/2012,Current (non AEF) Grants to Local Authorities,Localism,WEST SOMERSET DC,,,,5000197438,Grant Payable by Exchequer,TA4 4QA,"49,125.00",Yes
Communities & Local Government,DCLG,05/04/2012,Current (non AEF) Grants to Local Authorities,Localism,WEST SUSSEX CC,,,,5000197611,Grant Payable by Exchequer,PO19 1RG,"9,566,884.00",Yes
Communities & Local Government,DCLG,05/04/2012,Current (non AEF) Grants to Local Authorities,Localism,WEST YORKSHIRE POLICE AUTHORITY,,,,5000197671,Grant Payable by Exchequer,WF1 3QP,"2,686,026.00",Yes
Communities & Local Government,DCLG,05/04/2012,Current (non AEF) Grants to Local Authorities,Localism,WESTMINSTER CITY CNCL,,,,5000197612,Grant Payable by Exchequer,SW1E 6QP,"1,242,046.00",Yes
Communities & Local Government,DCLG,05/04/2012,Current (non AEF) Grants to Local Authorities,Localism,WEYMOUTH & PORTLAND BC,,,,5000197613,Grant Payable by Exchequer,DT4 8TA,"153,847.00",Yes
Communities & Local Government,DCLG,05/04/2012,Current (non AEF) Grants to Local Authorities,Localism,WIGAN MBC,,,,5000197614,Grant Payable by Exchequer,WN1 1YD,"2,836,110.00",Yes
Communities & Local Government,DCLG,05/04/2012,Current (non AEF) Grants to Local Authorities,Localism,WILTSHIRE & SWINDON FIRE AUTHORITY,,Large,,5000197645,Grant Payable by Exchequer,SN10 5PP,"475,628.00",Yes
Communities & Local Government,DCLG,05/04/2012,Current (non AEF) Grants to Local Authorities,Localism,WILTSHIRE COUNCIL,,,,5000197653,Grant Payable by Exchequer,BA14 8JN,"5,531,710.00",Yes
Communities & Local Government,DCLG,05/04/2012,Current (non AEF) Grants to Local Authorities,Localism,WILTSHIRE POLICE (RSG),,,,5000197635,Grant Payable by Exchequer,BA14 8JJ,"1,202,946.00",Yes
Communities & Local Government,DCLG,05/04/2012,Current (non AEF) Grants to Local Authorities,Localism,WINCHESTER CITY CNCL,,,,5000197439,Grant Payable by Exchequer,SO23 9LJ,"174,401.00",Yes
Communities & Local Government,DCLG,05/04/2012,Current (non AEF) Grants to Local Authorities,Localism,WINDSOR & MAIDENHEAD (HSG),,,,5000197440,Grant Payable by Exchequer,SL6 1RF,"1,623,842.00",Yes
Communities & Local Government,DCLG,05/04/2012,Current (non AEF) Grants to Local Authorities,Localism,WIRRAL MBC,,,,5000197615,Grant Payable by Exchequer,CH41 6BU,"3,322,785.00",Yes
Communities & Local Government,DCLG,05/04/2012,Current (non AEF) Grants to Local Authorities,Localism,WOKING BC,,,,5000197616,Grant Payable by Exchequer,GU21 1YL,"210,626.00",Yes
Communities & Local Government,DCLG,05/04/2012,Current (non AEF) Grants to Local Authorities,Localism,WOKINGHAM DC,,,,5000197617,Grant Payable by Exchequer,RG11 1WJ,"1,975,574.00",Yes
Communities & Local Government,DCLG,05/04/2012,Current (non AEF) Grants to Local Authorities,Localism,WOLVERHAMPTON MBC,,,,5000197618,Grant Payable by Exchequer,WV1 1RL,"2,356,080.00",Yes
Communities & Local Government,DCLG,05/04/2012,Current (non AEF) Grants to Local Authorities,Localism,WORCESTER CITY CNCL,,,,5000197619,Grant Payable by Exchequer,WR1 2EZ,"134,190.00",Yes
Communities & Local Government,DCLG,05/04/2012,Current (non AEF) Grants to Local Authorities,Localism,WORCESTERSHIRE COUNTY COUNCIL,,,,5000197620,Grant Payable by Exchequer,WR5 2NP,"5,490,850.00",Yes
Communities & Local Government,DCLG,05/04/2012,Current (non AEF) Grants to Local Authorities,Localism,WORTHING BC,,,,5000197621,Grant Payable by Exchequer,BN11 1HB,"213,724.00",Yes
Communities & Local Government,DCLG,05/04/2012,Current (non AEF) Grants to Local Authorities,Localism,WYCHAVON DISTRICT COUNCIL,,,,5000197441,Grant Payable by Exchequer,WR10 1PT,"131,278.00",Yes
Communities & Local Government,DCLG,05/04/2012,Current (non AEF) Grants to Local Authorities,Localism,WYCOMBE DC,,Medium,,5000197442,Grant Payable by Exchequer,HP11 1BB,"231,028.00",Yes
Communities & Local Government,DCLG,05/04/2012,Current (non AEF) Grants to Local Authorities,Localism,WYRE BC,,,,5000197443,Grant Payable by Exchequer,FY6 7PU,"176,166.00",Yes
Communities & Local Government,DCLG,05/04/2012,Current (non AEF) Grants to Local Authorities,Localism,WYRE FOREST DISTRICT COUNCIL,,,,5000197622,Grant Payable by Exchequer,DY10 1DA,"175,195.00",Yes
Communities & Local Government,DCLG,05/04/2012,Electricity,Finance & Corporate Services,EDF ENERGY 1 LIMITED,,Large,,5106177618,Rivergate Electricity 11-12,PL3 5XQ,"8,798.56",
Communities & Local Government,DCLG,05/04/2012,Electricity,Finance & Corporate Services,EDF ENERGY 1 LIMITED,,Large,,5106177625,Queen St Leeds Electricity 11-12,PL3 5XQ,"1,848.07",
Communities & Local Government,DCLG,05/04/2012,Electricity,Localism,EDF ENERGY 1 LIMITED,,Large,,5106177627,H1044 EoE RCC from 01 Feb 11,PL3 5XQ,"6,280.39",
Communities & Local Government,DCLG,05/04/2012,EU Gts (Cap) to Prvt/Sec Persons & NPISH,Finance & Corporate Services,DONCASTER SHEFFIELD AIRPORT LTD,,,,7500029583,SY5/27PAL1425/clw5350,DN9 3RH,"-7,517.29",Yes
Communities & Local Government,DCLG,05/04/2012,Hospitality,Neighbourhoods,MITIE CATERING SERVICES LTD,,Large,,2100215663,Hospitality Dec 2011,BS16 7FN,"1,080.24",
Communities & Local Government,DCLG,05/04/2012,Housing Revenue Account Surplus,Neighbourhoods,SHEFFIELD CITY CNCL,,,,5000192182,Overpayment of Grant recovered by Exchequer,S1 1UR,"-303,081.00",Yes
Communities & Local Government,DCLG,05/04/2012,"IT - PC, Network & Hardware",Finance & Corporate Services,STERIA LIMITED,,Large,,5106177577,Tactical Infrastructure project -Phase 2,M14 0WN,"39,019.85",
Communities & Local Government,DCLG,05/04/2012,IT - Service Contracts,Finance & Corporate Services,STERIA LIMITED,,Large,,5106177517,20 x Dell 6300 refurbished laptops,M14 0WN,"9,102.60",
Communities & Local Government,DCLG,05/04/2012,IT - Service Contracts,Finance & Corporate Services,STERIA LIMITED,,Large,,5106177519,20 x Dell 4300 refurbished Laptops,M14 0WN,"9,102.60",
Communities & Local Government,DCLG,05/04/2012,IT Maintenance,Finance & Corporate Services,STERIA LIMITED,,Large,,5106177597,Server Warranties - DCLG,M14 0WN,"73,044.29",
Communities & Local Government,DCLG,05/04/2012,IT Maintenance,Finance & Corporate Services,STERIA LIMITED,,Large,,5106177597,Server Warranties - TSA,M14 0WN,"13,158.42",
Communities & Local Government,DCLG,05/04/2012,Legal Fees,Finance & Corporate Services,DENTON WILDE SAPTE LLP,,Large,,5106177582,(STA) FireContol Litigation & Property,EC4M 7WS,"4,175.40",
Communities & Local Government,DCLG,05/04/2012,Legal Fees,Finance & Corporate Services,TREASURY SOLICITOR,,Public Bodies,,2100215630,LEGAL FEES (ADVERSE COSTS),WC2B 4TS,"35,000.00",
Communities & Local Government,DCLG,05/04/2012,Legal Fees,Localism,FIELD FISHER WATERHOUSE LLP,,Large,,5106177606,Legal Advice AC pension scheme,EC3N 2AA,"2,457.84",
Communities & Local Government,DCLG,05/04/2012,Legal Fees,Neighbourhoods,MISS NICHOLA ELLARD,,,,2100215665,FEES,,"10,424.40",
Communities & Local Government,DCLG,05/04/2012,Office Machinery (<5000),Finance & Corporate Services,DANWOOD GROUP LTD,,Large,,5106177604,Quarterly rental M700U copier 7500843X,LN6 3DG,700.57,
Communities & Local Government,DCLG,05/04/2012,Research,Neighbourhoods,E C HARRIS LLP,,Large,,5106177599,Catagory 1 work part b,N1 9AB,"17,541.00",
Communities & Local Government,DCLG,05/04/2012,Research,Neighbourhoods,E C HARRIS LLP,,Large,,5106177601,Draft report issued,N1 9AB,"19,494.00",
Communities & Local Government,DCLG,05/04/2012,Training,Finance & Corporate Services,MANCHESTER UNIVERSITY,,Large,,5106177616,Bursary for MSC Economics,M13 9PL,"2,970.00",
Communities & Local Government,DCLG,05/04/2012,Work In Progress Pre-Cert 40373 Spend,Neighbourhoods,GWE BUSINESS WEST LTD,,,,7600001316,ERDF Claim - 7 - P2,BS8 3RA,"150,379.39",
Communities & Local Government,DCLG,05/04/2012,Work In Progress Pre-Cert 40373 Spend,Neighbourhoods,GWE BUSINESS WEST LTD,,,,7600001317,ERDF Claim - 7 - P2,BS8 3RA,"77,658.92",
Communities & Local Government,DCLG,05/04/2012,Work In Progress Pre-Cert 40373 Spend,Neighbourhoods,UNIVERSITY OF WARWICK,,Large,,2100215635,REF 90570758,CV4 8UW,"36,820.40",
Communities & Local Government,DCLG,10/04/2012,Accommodation Service Charges,Finance & Corporate Services,JONES LANG LASALLE,,Large,Yes,5106177641,Rivergate Bristol Annual ServChg 2012/13,,"11,038.80",
Communities & Local Government,DCLG,10/04/2012,Agency Staff,Finance & Corporate Services,ALLEN LANE FINANCIAL RECRUITMENT,,Medium,Yes,5106177660,Extension until 17 Feb 2012,,"3,240.00",
Communities & Local Government,DCLG,10/04/2012,Agency Staff,Finance & Corporate Services,CAPITA RESOURCING LTD,,Large,,5106177647,CPD 0492030 Capita MSP,SL6 1DP,"3,446.58",
Communities & Local Government,DCLG,10/04/2012,Agency Staff,Finance & Corporate Services,MICHAEL PAGE INTERNATIONAL,,Large,,5106177603,Interim Internal Audit,SL1 3SA,771.79,
Communities & Local Government,DCLG,10/04/2012,Agency Staff,Finance & Corporate Services,REED SPECIALIST RECRUITMENT LTD,,Large,,5106177609,Agency Staff,NN1 1UE,696.75,
Communities & Local Government,DCLG,10/04/2012,Agency Staff,Finance & Corporate Services,REED SPECIALIST RECRUITMENT LTD,,Large,,5106177611,Agency Staff,NN1 1UE,589.92,
Communities & Local Government,DCLG,10/04/2012,Agency Staff,Finance & Corporate Services,REED SPECIALIST RECRUITMENT LTD,,Large,,5106177612,Agency Staff,NN1 1UE,631.72,
Communities & Local Government,DCLG,10/04/2012,Agency Staff,Finance & Corporate Services,REED SPECIALIST RECRUITMENT LTD,,Large,,5106177614,Agency Staff,NN1 1UE,738.56,
Communities & Local Government,DCLG,10/04/2012,Agency Staff,Finance & Corporate Services,REED SPECIALIST RECRUITMENT LTD,,Large,,5106177615,Agency Staff,NN1 1UE,608.50,
Communities & Local Government,DCLG,10/04/2012,Capital Grant from EC to Local Authority DEL,Finance & Corporate Services,SHEFFIELD CITY COUNCIL,,,,7500029518,SY5/28SCC1557/clw5297,S1 1UR,"-36,944.76",Yes
Communities & Local Government,DCLG,10/04/2012,Current Grants to Non Profit Bodies,Neighbourhoods,VALUATION OFFICE AGENCY,,Public Bodies,,2100215774,Quarterly Payment VOA-Statutory Registration Fair,W1B 5BU,"610,000.00",Yes
Communities & Local Government,DCLG,10/04/2012,Domestic Services,Finance & Corporate Services,AMEY COMMUNITY LTD,,Large,,5106177678,Sept 11-March 12 Lateral Cleaning,OX4 4DQ,"5,807.00",
Communities & Local Government,DCLG,10/04/2012,Domestic Services,Finance & Corporate Services,AMEY COMMUNITY LTD,,Large,,5106177678,Sept11-March12 Lateral General Waste,OX4 4DQ,594.00,
Communities & Local Government,DCLG,10/04/2012,Electricity,Finance & Corporate Services,EDF ENERGY 1 LIMITED,,Large,,5106177642,Bridge House Electricity 11-12,PL3 5XQ,"6,003.10",
Communities & Local Government,DCLG,10/04/2012,Electricity,Finance & Corporate Services,EDF ENERGY 1 LIMITED,,Large,,5106177646,Eland House Electricty 11-12,PL3 5XQ,"31,740.13",
Communities & Local Government,DCLG,10/04/2012,Electricity,Localism,EDF ENERGY 1 LIMITED,,Large,,5106177644,SW RCC Electricity 11-12 IO 1007972,PL3 5XQ,"6,252.48",
Communities & Local Government,DCLG,10/04/2012,Facilities Management (ISD use only),Finance & Corporate Services,AMEY COMMUNITY LTD,,Large,,5106175444,June & July 11 Lateral FM Charge,OX4 4DQ,"-5,588.29",
Communities & Local Government,DCLG,10/04/2012,Facilities Management (ISD use only),Finance & Corporate Services,AMEY COMMUNITY LTD,,Large,,5106177678,Sept 11-March 12 Lateral Gen Requiremts,OX4 4DQ,"4,826.00",
Communities & Local Government,DCLG,10/04/2012,Facilities Management (ISD use only),Finance & Corporate Services,AMEY COMMUNITY LTD,,Large,,5106177678,Sept11 - March12 Lateral Estate Services,OX4 4DQ,"1,814.00",
Communities & Local Government,DCLG,10/04/2012,Facilities Management (ISD use only),Finance & Corporate Services,AMEY COMMUNITY LTD,,Large,,5106177678,Sept11-March12 Lateral Helpdesk Services,OX4 4DQ,775.00,
Communities & Local Government,DCLG,10/04/2012,Facilities Management (ISD use only),Finance & Corporate Services,AMEY COMMUNITY LTD,,Large,,5106177678,Sept11-March12 Lateral Porterage Service,OX4 4DQ,23.00,
Communities & Local Government,DCLG,10/04/2012,Facilities Management (ISD use only),Finance & Corporate Services,AMEY COMMUNITY LTD,,Large,,5106177678,Sept11-March12 Lateral X-Ray Devices,OX4 4DQ,51.00,
Communities & Local Government,DCLG,10/04/2012,Facilities Management (ISD use only),Finance & Corporate Services,AMEY COMMUNITY LTD,,Large,,5106177678,Sept11-March12Lateral Asset&Property Man,OX4 4DQ,171.00,
Communities & Local Government,DCLG,10/04/2012,Finance Consultancy,Neighbourhoods,MAZARS LLP,,Large,,5106177661,Project Verification Audits,LS27 7JN,"54,127.55",
Communities & Local Government,DCLG,10/04/2012,Fixed Maintenance,Finance & Corporate Services,AMEY COMMUNITY LTD,,Large,,5106177678,Sept11-March12 Lateral Grounds & Gardens,OX4 4DQ,167.00,
Communities & Local Government,DCLG,10/04/2012,IT - Service Contracts,Finance & Corporate Services,STERIA LIMITED,,Large,,5106177523,2 & 7 Flr Moves NR00369 pt2,M14 0WN,"2,612.00",
Communities & Local Government,DCLG,10/04/2012,IT - Service Contracts,Finance & Corporate Services,STERIA LIMITED,,Large,,5106177645,CAN 61 Pipes Network,M14 0WN,"16,999.41",
Communities & Local Government,DCLG,10/04/2012,IT - Service Contracts,Finance & Corporate Services,STERIA LIMITED,,Large,,5106177656,LOGASNet Service March 11 - Feb 13,M14 0WN,"46,726.98",
Communities & Local Government,DCLG,10/04/2012,IT - Service Contracts,Finance & Corporate Services,STERIA LIMITED,,Large,,5106177656,DCLG Link Service Feb 2011 to Feb 2013,M14 0WN,"313,471.23",
Communities & Local Government,DCLG,10/04/2012,IT - Service Contracts,Finance & Corporate Services,STERIA LIMITED,,Large,,5106177658,Network Warranties,M14 0WN,"68,394.32",
Communities & Local Government,DCLG,10/04/2012,IT - Service Contracts,Finance & Corporate Services,STERIA LIMITED,,Large,,5106177663,TSA LINK service Feb11 to Feb13,M14 0WN,"12,253.91",
Communities & Local Government,DCLG,10/04/2012,IT - Service Contracts,Finance & Corporate Services,STERIA LIMITED,,Large,,5106177663,TSA WAN service,M14 0WN,"7,016.00",
Communities & Local Government,DCLG,10/04/2012,Online Database Information Retrieval,Neighbourhoods,REED BUSINESS INFORMATION LTD,,Large,,5106177607,Subscription to Estates Gazette Interact,SM2 5AS,"1,074.00",
Communities & Local Government,DCLG,10/04/2012,Rates,Finance & Corporate Services,WAKEFIELD MDC,,Public Bodies,,5106177671,Y&H RCC Rates 12-13,WF1 2HQ,"9,160.00",
Communities & Local Government,DCLG,10/04/2012,Rent,Finance & Corporate Services,HOMES & COMMUNITIES AGENCY,,Public Bodies,,5106177652,Arpley House Remaining Rent 2011/12,NE11 0NA,"43,117.64",
Communities & Local Government,DCLG,10/04/2012,Rent,Finance & Corporate Services,JONES LANG LASALLE,,Large,Yes,5106177641,Rivergate Bristol Annual Rent 2012/13,,"473,109.00",
Communities & Local Government,DCLG,10/04/2012,Security,Finance & Corporate Services,AMEY COMMUNITY LTD,,Large,,5106177678,Sept11-March12 Lateral Reception Service,OX4 4DQ,"1,031.00",
Communities & Local Government,DCLG,10/04/2012,Security,Finance & Corporate Services,AMEY COMMUNITY LTD,,Large,,5106177678,Sept11-March12 Lateral Security Services,OX4 4DQ,"1,514.00",
Communities & Local Government,DCLG,10/04/2012,Telecoms equipment (non-capitalised),Finance & Corporate Services,STERIA LIMITED,,Large,,5106177648,Cambridge - 1st Year Annual,M14 0WN,"14,810.40",
Communities & Local Government,DCLG,10/04/2012,Telecoms equipment (non-capitalised),Finance & Corporate Services,STERIA LIMITED,,Large,,5106177648,Exeter - 1st Year Annual,M14 0WN,"14,810.40",
Communities & Local Government,DCLG,10/04/2012,Telecoms equipment (non-capitalised),Finance & Corporate Services,STERIA LIMITED,,Large,,5106177648,Guildford - 1st Year Annual,M14 0WN,"14,810.40",
Communities & Local Government,DCLG,10/04/2012,Telecoms equipment (non-capitalised),Finance & Corporate Services,STERIA LIMITED,,Large,,5106177648,Plymouth - 1st Year Annual,M14 0WN,"14,810.38",
Communities & Local Government,DCLG,10/04/2012,Telecoms equipment (non-capitalised),Finance & Corporate Services,STERIA LIMITED,,Large,,5106177648,Sheffield - 1st Year Annual,M14 0WN,"14,810.40",
Communities & Local Government,DCLG,10/04/2012,Telecoms equipment (non-capitalised),Finance & Corporate Services,STERIA LIMITED,,Large,,5106177648,Truro - 1st Year Annual,M14 0WN,"14,810.40",
Communities & Local Government,DCLG,10/04/2012,Telecoms equipment (non-capitalised),Finance & Corporate Services,STERIA LIMITED,,Large,,5106177648,Cambridge - Install Charge,M14 0WN,"5,504.44",
Communities & Local Government,DCLG,10/04/2012,Telecoms equipment (non-capitalised),Finance & Corporate Services,STERIA LIMITED,,Large,,5106177648,Exeter - Install Charge,M14 0WN,"5,504.44",
Communities & Local Government,DCLG,10/04/2012,Telecoms equipment (non-capitalised),Finance & Corporate Services,STERIA LIMITED,,Large,,5106177648,Guildford - Install Charge,M14 0WN,"5,504.44",
Communities & Local Government,DCLG,10/04/2012,Telecoms equipment (non-capitalised),Finance & Corporate Services,STERIA LIMITED,,Large,,5106177648,Plymouth - Install Charge,M14 0WN,"5,504.44",
Communities & Local Government,DCLG,10/04/2012,Telecoms equipment (non-capitalised),Finance & Corporate Services,STERIA LIMITED,,Large,,5106177648,Sheffield - Install Charge,M14 0WN,"5,504.44",
Communities & Local Government,DCLG,10/04/2012,Telecoms equipment (non-capitalised),Finance & Corporate Services,STERIA LIMITED,,Large,,5106177648,Truro - Install Charge,M14 0WN,"5,504.44",
Communities & Local Government,DCLG,10/04/2012,Training,Finance & Corporate Services,WWP TRAINING LTD,,Small,,5106177657,Prince 2 Practitioner Exam - Programme Project Management development,SK4 1BN,435.00,
Communities & Local Government,DCLG,10/04/2012,Vehicle hire,Finance & Corporate Services,GOVERNMENT CAR & DESPATCH AGENCY,,Public Bodies,,2100215820,Ministerial Cars,SW8 5AX,"-1,098.00",
Communities & Local Government,DCLG,10/04/2012,Vehicle hire,Finance & Corporate Services,GOVERNMENT CAR & DESPATCH AGENCY,,Public Bodies,,5106177272,Ministerial Cars,SW8 5AX,"1,098.00",
Communities & Local Government,DCLG,10/04/2012,Waste Disposal and pest control,Finance & Corporate Services,AMEY COMMUNITY LTD,,Large,,5106177678,Sept11-March12 Lateral Waste Control,OX4 4DQ,452.00,
Communities & Local Government,DCLG,10/04/2012,Waste Disposal and pest control,Finance & Corporate Services,AMEY COMMUNITY LTD,,Large,,5106177678,Sept11-March12 Lateral Pest Control,OX4 4DQ,42.00,
Communities & Local Government,DCLG,10/04/2012,Work In Progress Pre-Cert 40373 Spend,Neighbourhoods,ARMSTRONG PROPERTIES (NW) LTD,,Small,,7600001319,ERDF Claim - 5 - P1-NW,M30 9HQ,"1,554.73",
Communities & Local Government,DCLG,10/04/2012,Work In Progress Pre-Cert 40373 Spend,Neighbourhoods,BIRMINGHAM CITY COUNCIL (NOT RATES),,Large,,7600001323,ERDF Claim - 9 - P3,B1 1BB,"4,460.06",
Communities & Local Government,DCLG,10/04/2012,Work In Progress Pre-Cert 40373 Spend,Neighbourhoods,BIRMINGHAM SCIENCE PARK ASTON,,Small,,7600001326,ERDF Claim - 5 - P2,B7 4BB,"7,696.05",
Communities & Local Government,DCLG,10/04/2012,Work In Progress Pre-Cert 40373 Spend,Neighbourhoods,BIRMINGHAM SCIENCE PARK ASTON,,Small,,7600001327,ERDF Claim - 4 - P2,B7 4BB,"9,280.08",
Communities & Local Government,DCLG,10/04/2012,Work In Progress Pre-Cert 40373 Spend,Neighbourhoods,BIRMINGHAM SCIENCE PARK ASTON,,Small,,7600001330,ERDF Claim - 6 - P2,B7 4BB,"9,012.99",
Communities & Local Government,DCLG,10/04/2012,Work In Progress Pre-Cert 40373 Spend,Neighbourhoods,BLACKBURN WITH DARWEN BC,,,,7600001325,ERDF Claim - 5 - P2-NW,BB1 7DY,"162,283.00",
Communities & Local Government,DCLG,10/04/2012,Work In Progress Pre-Cert 40373 Spend,Neighbourhoods,CHESHIRE & WARRINGTON ENT COMM (CWE,,,,7600001339,ERDF Claim - 6 - P4-NW,CW10 0HY,"9,835.81",
Communities & Local Government,DCLG,10/04/2012,Work In Progress Pre-Cert 40373 Spend,Neighbourhoods,CHESHIRE & WARRINGTON ENT COMM (CWE,,,,7600001340,ERDF Claim - 7 - P4-NW,CW10 0HY,"14,945.88",
Communities & Local Government,DCLG,10/04/2012,Work In Progress Pre-Cert 40373 Spend,Neighbourhoods,CHESHIRE & WARRINGTON ENT COMM (CWE,,,,7600001341,ERDF Claim - 8 - P4-NW,CW10 0HY,"20,943.60",
Communities & Local Government,DCLG,10/04/2012,Work In Progress Pre-Cert 40373 Spend,Neighbourhoods,DURHAM COUNTY COUNCIL,,,,7600001328,ERDF Claim - 9 - P1,DH1 5UF,"20,057.30",
Communities & Local Government,DCLG,10/04/2012,Work In Progress Pre-Cert 40373 Spend,Neighbourhoods,ECONOMIC SOLUTIONS LIMITED,,Large,,7600001345,ERDF Claim - 20 - P1-MS,M1 5JW,"10,134.28",
Communities & Local Government,DCLG,10/04/2012,Work In Progress Pre-Cert 40373 Spend,Neighbourhoods,ECONOMIC SOLUTIONS LIMITED,,Large,,7600001346,ERDF Claim - 20 - P1-NW,M1 5JW,"103,340.69",
Communities & Local Government,DCLG,10/04/2012,Work In Progress Pre-Cert 40373 Spend,Neighbourhoods,ECONOMIC SOLUTIONS LIMITED,,Large,,7600001349,ERDF Claim - 21 - P1-MS,M1 5JW,"4,050.53",
Communities & Local Government,DCLG,10/04/2012,Work In Progress Pre-Cert 40373 Spend,Neighbourhoods,ECONOMIC SOLUTIONS LIMITED,,Large,,7600001352,ERDF Claim - 21 - P1-NW,M1 5JW,"66,433.58",
Communities & Local Government,DCLG,10/04/2012,Work In Progress Pre-Cert 40373 Spend,Neighbourhoods,ECONOMIC SOLUTIONS LIMITED,,Large,,7600001354,ERDF Claim - 22 - P1-MS,M1 5JW,"12,318.19",
Communities & Local Government,DCLG,10/04/2012,Work In Progress Pre-Cert 40373 Spend,Neighbourhoods,ECONOMIC SOLUTIONS LIMITED,,Large,,7600001356,ERDF Claim - 22 - P1-NW,M1 5JW,"76,737.63",
Communities & Local Government,DCLG,10/04/2012,Work In Progress Pre-Cert 40373 Spend,Neighbourhoods,HUDDERSFIELD UNIVERISTY,,,,7600001324,ERDF Claim - 22 - P1-YH,HD1 3DH,"6,746.20",
Communities & Local Government,DCLG,10/04/2012,Work In Progress Pre-Cert 40373 Spend,Neighbourhoods,LIVERPOOL HOPE UNIVERSITY COLLEGE,,,,7600001336,ERDF Claim - 25 - P2-MS,LA16 9JD,"55,570.29",
Communities & Local Government,DCLG,10/04/2012,Work In Progress Pre-Cert 40373 Spend,Neighbourhoods,LIVERPOOL JOHN MOORES UNIVERSITY,,,,7600001338,ERDF Claim - 1 - P2-MS,L3 2AJ,"38,647.04",
Communities & Local Government,DCLG,10/04/2012,Work In Progress Pre-Cert 40373 Spend,Neighbourhoods,NCEE,,,,7600001332,ERDF Claim - 6 - P1-MS,CV1 2TT,"25,491.72",
Communities & Local Government,DCLG,10/04/2012,Work In Progress Pre-Cert 40373 Spend,Neighbourhoods,NCEE,,,,7600001333,ERDF Claim - 6 - P1-NW,CV1 2TT,"246,883.06",
Communities & Local Government,DCLG,10/04/2012,Work In Progress Pre-Cert 40373 Spend,Neighbourhoods,NEW ECONOMY,,,,7600001348,ERDF Claim - 13 - P5-NW,M1 6EU,"30,014.38",
Communities & Local Government,DCLG,10/04/2012,Work In Progress Pre-Cert 40373 Spend,Neighbourhoods,SHROPSHIRE COUNCIL,,Public Bodies,,7600001361,ERDF Claim - 19 - P2,SY2 6ND,"3,163.06",
Communities & Local Government,DCLG,10/04/2012,Work In Progress Pre-Cert 40373 Spend,Neighbourhoods,SHROPSHIRE COUNCIL,,Public Bodies,,7600001362,ERDF Claim - 20 - P2,SY2 6ND,"4,369.43",
Communities & Local Government,DCLG,10/04/2012,Work In Progress Pre-Cert 40373 Spend,Neighbourhoods,SHROPSHIRE COUNCIL,,Public Bodies,,7600001363,ERDF Claim - 21 - P2,SY2 6ND,"5,189.06",
Communities & Local Government,DCLG,10/04/2012,Work In Progress Pre-Cert 40373 Spend,Neighbourhoods,SHROPSHIRE COUNCIL,,Public Bodies,,7600001364,ERDF Claim - 22 - P2,SY2 6ND,"13,175.40",
Communities & Local Government,DCLG,10/04/2012,Work In Progress Pre-Cert 40373 Spend,Neighbourhoods,SOLIHULL METROPOLITAN BC,,Large,,7600001322,ERDF Claim - 6 - P3,B91 3QS,"17,563.63",
Communities & Local Government,DCLG,10/04/2012,Work In Progress Pre-Cert 40373 Spend,Neighbourhoods,SOLIHULL METROPOLITAN BC,,Large,,7600001329,ERDF Claim - 10 - P2,B91 3QS,"5,431.30",
Communities & Local Government,DCLG,10/04/2012,Work In Progress Pre-Cert 40373 Spend,Neighbourhoods,SOLIHULL METROPOLITAN BC,,Large,,7600001335,ERDF Claim - 8 - P3,B91 3QS,"7,927.70",
Communities & Local Government,DCLG,10/04/2012,Work In Progress Pre-Cert 40373 Spend,Neighbourhoods,ST HELENS CHAMBER,,Medium,,7600001357,ERDF Claim - 4 - P4-MS,WA10 1FY,"47,555.50",
Communities & Local Government,DCLG,10/04/2012,Work In Progress Pre-Cert 40373 Spend,Neighbourhoods,STOKE-ON-TRENT CITY COUNCIL,,Large,,7600001334,ERDF Claim - 12 - P3,ST4 1HP,"9,397.68",
Communities & Local Government,DCLG,10/04/2012,Work In Progress Pre-Cert 40373 Spend,Neighbourhoods,STOKE-ON-TRENT CITY COUNCIL,,Large,,7600001337,ERDF Claim - 13 - P3,ST4 1HP,"5,176.68",
Communities & Local Government,DCLG,10/04/2012,Work In Progress Pre-Cert 40373 Spend,Neighbourhoods,STOKE-ON-TRENT CITY COUNCIL,,Large,,7600001358,ERDF Claim - 14 - P3,ST4 1HP,"30,030.54",
Communities & Local Government,DCLG,10/04/2012,Work In Progress Pre-Cert 40373 Spend,Neighbourhoods,UNIVERSITY OF BATH,,,,7600001342,ERDF Claim - 6 - P1,BA2 7AY,"44,168.06",
Communities & Local Government,DCLG,10/04/2012,Work In Progress Pre-Cert 40373 Spend,Neighbourhoods,UNIVERSITY OF WARWICK,,Large,,7600001331,ERDF Claim - 16 - P1,CV4 8UW,"20,838.95",
Communities & Local Government,DCLG,10/04/2012,Work In Progress Pre-Cert 40373 Spend,Neighbourhoods,WALSALL METROPOLITAN BC,,Large,,7600001321,ERDF Claim - 25 - P3,WS1 1TW,"3,297.22",
Communities & Local Government,DCLG,10/04/2012,Work In Progress Pre-Cert 40467 Spend,Neighbourhoods,ARMSTRONG PROPERTIES (NW) LTD,,Small,,7600001319,ERDF Claim - 5 - P1-NW,M30 9HQ,"283,856.08",
Communities & Local Government,DCLG,10/04/2012,Work In Progress Pre-Cert 40467 Spend,Neighbourhoods,DURHAM COUNTY COUNCIL,,,,7600001350,ERDF Claim - 9 - P1,DH1 5UF,"655,335.50",
Communities & Local Government,DCLG,10/04/2012,Work In Progress Pre-Cert 40467 Spend,Neighbourhoods,DURHAM COUNTY COUNCIL,,,,7600001360,ERDF Claim - 10 - P1,DH1 5UF,"1,852,301.00",
Communities & Local Government,DCLG,10/04/2012,Work In Progress Pre-Cert 40467 Spend,Neighbourhoods,HUDDERSFIELD UNIVERISTY,,,,7600001324,ERDF Claim - 22 - P1-YH,HD1 3DH,750.00,
Communities & Local Government,DCLG,10/04/2012,Work In Progress Pre-Cert 40467 Spend,Neighbourhoods,LIVERPOOL CITY COUNCIL,,,,7600001343,ERDF Claim - 9 - P3-MS,L1 6JD,"64,800.60",
Communities & Local Government,DCLG,10/04/2012,Work In Progress Pre-Cert 40467 Spend,Neighbourhoods,LIVERPOOL CITY COUNCIL,,,,7600001344,ERDF Claim - 10 - P3-MS,L1 6JD,"54,756.01",
Communities & Local Government,DCLG,10/04/2012,Work In Progress Pre-Cert 40467 Spend,Neighbourhoods,REDSUN DEVELOPMENTS LTD,,,,7600001347,ERDF Claim - 16 - P4-MS,L2 7QS,"155,476.76",
Communities & Local Government,DCLG,10/04/2012,Work In Progress Pre-Cert 40467 Spend,Neighbourhoods,SALFORD CITY COUNCIL,,,,7600001318,ERDF Claim - 2 - P3-NW,M27 5FJ,"112,487.60",
Communities & Local Government,DCLG,10/04/2012,Work In Progress Pre-Cert 40467 Spend,Neighbourhoods,SALFORD CITY COUNCIL,,,,7600001320,ERDF Claim - 3 - P3-NW,M27 5FJ,"441,831.21",
Communities & Local Government,DCLG,10/04/2012,Work In Progress Pre-Cert 40467 Spend,Neighbourhoods,SOLIHULL METROPOLITAN BC,,Large,,7600001322,ERDF Claim - 6 - P3,B91 3QS,"3,749.43",
Communities & Local Government,DCLG,10/04/2012,Work In Progress Pre-Cert 40467 Spend,Neighbourhoods,SOLIHULL METROPOLITAN BC,,Large,,7600001335,ERDF Claim - 8 - P3,B91 3QS,"18,953.68",
Communities & Local Government,DCLG,10/04/2012,Work In Progress Pre-Cert 40467 Spend,Neighbourhoods,STOKE-ON-TRENT CITY COUNCIL,,Large,,7600001358,ERDF Claim - 14 - P3,ST4 1HP,"43,212.25",
Communities & Local Government,DCLG,10/04/2012,Work In Progress Pre-Cert 40467 Spend,Neighbourhoods,UNIVERSITY OF SHEFFIELD,,,,7600001351,ERDF Claim - 25 - P1-SY,S60 5TZ,"346,238.96",
Communities & Local Government,DCLG,10/04/2012,Work In Progress Pre-Cert 40467 Spend,Neighbourhoods,UNIVERSITY OF SHEFFIELD,,,,7600001359,ERDF Claim - 26 - P1-SY,S60 5TZ,"193,483.48",
Communities & Local Government,DCLG,10/04/2012,Work In Progress Pre-Cert 40467 Spend,Neighbourhoods,UNIVERSITY OF WARWICK,,Large,,7600001331,ERDF Claim - 16 - P1,CV4 8UW,"475,172.57",
Communities & Local Government,DCLG,11/04/2012,Accommodation Service Charges,Finance & Corporate Services,DLA PIPER UK LLP,,Large,,5106177668,Handling Fee (net of 20% VAT),LS1 4BY,"1,998.00",
Communities & Local Government,DCLG,11/04/2012,Fees,Localism,MR MICHAEL HEAD,,,,2100215828,FEES & ERS,,"4,693.48",
Communities & Local Government,DCLG,11/04/2012,Grant in Aid to NDPBs (non budget),Neighbourhoods,HOMES & COMMUNITIES AGENCY,,Public Bodies,,2100215819,HCA Claim 2,NE11 0NA,"10,819,494.00",Yes
Communities & Local Government,DCLG,11/04/2012,IT - Service Contracts,Finance & Corporate Services,REMPLOY E-CYCLE,,Large,,5106177617,GO Disposal - BRISTOL - REMPLOY,CF39 9BW,"4,174.80",
Communities & Local Government,DCLG,11/04/2012,IT - Service Contracts,Finance & Corporate Services,SPEECH CENTRE,,Micro,,5106175942,Training - Quote ref: 206997,TN6 1DL,550.00,
Communities & Local Government,DCLG,11/04/2012,IT - Service Contracts,Finance & Corporate Services,STERIA LIMITED,,Large,,5106177532,NR00378 - PINS TIP - SMTP Connector,M14 0WN,"2,293.24",
Communities & Local Government,DCLG,11/04/2012,IT - Service Contracts,Neighbourhoods,STERIA LIMITED,,Large,,5106177520,ERDF Interim Solution (1GB),M14 0WN,969.23,
Communities & Local Government,DCLG,11/04/2012,Legal Fees,Finance & Corporate Services,DLA PIPER UK LLP,,Large,,5106177637,Legal Property Services Commission,S1 2JX,781.20,
Communities & Local Government,DCLG,11/04/2012,Legal Fees,Finance & Corporate Services,DLA PIPER UK LLP,,Large,,5106177659,Legal Property Services Commission,S1 2JX,469.20,
Communities & Local Government,DCLG,11/04/2012,Legal Fees,Finance & Corporate Services,DLA PIPER UK LLP,,Large,,5106177659,NON VAT CHARGES,S1 2JX,50.00,
Communities & Local Government,DCLG,11/04/2012,Legal Fees,Finance & Corporate Services,DLA PIPER UK LLP,,Large,,5106177666,Legal Property Services Commission,S1 2JX,"1,218.00",
Communities & Local Government,DCLG,11/04/2012,Legal Fees,Finance & Corporate Services,DLA PIPER UK LLP,,Large,,5106177669,Legal Property Services Commission,S1 2JX,"1,575.82",
Communities & Local Government,DCLG,11/04/2012,Legal Fees,Finance & Corporate Services,DLA PIPER UK LLP,,Large,,5106177688,Legal Property Services Commission,S1 2JX,"1,385.48",
Communities & Local Government,DCLG,11/04/2012,Post,Finance & Corporate Services,NEOPOST LTD,,Large,,5106177689,Franking Machine Credit acc600576,RM1 2AR,"2,000.00",
Communities & Local Government,DCLG,11/04/2012,Professional services,Neighbourhoods,VALUATION OFFICE AGENCY,,Public Bodies,,5106177690,Financial Checks/Fees 2011/12,W1B 5BU,"1,740.00",
Communities & Local Government,DCLG,11/04/2012,Telephone call costs,Finance & Corporate Services,BRITANNIC TECHNOLOGIES LTD,,Medium,,5106177628,Global Crossing Rentals,GU4 7WA,"41,718.71",
Communities & Local Government,DCLG,11/04/2012,Telephone call costs,Finance & Corporate Services,BRITANNIC TECHNOLOGIES LTD,,Medium,,5106177685,Global Crossing Rentals,GU4 7WA,"-11,860.26",
Communities & Local Government,DCLG,11/04/2012,Training,Finance & Corporate Services,BPP PROFESSIONAL EDUCATION,,Large,,5106177692,Fundamentals of Financial Accounting,W12 8AW,433.35,
Communities & Local Government,DCLG,11/04/2012,Training,Finance & Corporate Services,BPP PROFESSIONAL EDUCATION,,Large,,5106177692,Fundamentals of Management Accounting,W12 8AW,433.32,
Communities & Local Government,DCLG,11/04/2012,Travel and Subsistence Account,Localism,MR MICHAEL HEAD,,,,2100215828,EXPENSES,,191.82,
Communities & Local Government,DCLG,11/04/2012,Work In Progress Pre-Cert 40373 Spend,Neighbourhoods,NORTHUM'LAND BUSINESS SERVICES LTD,,,,7600001365,ERDF Claim - 2 - P2,NE63 8QZ,"110,105.71",
Communities & Local Government,DCLG,11/04/2012,Work In Progress Pre-Cert 40373 Spend,Neighbourhoods,SCARBOROUGH BOROUGH COUNCIL,,,,7600001366,ERDF Claim - 8 - P3-YH,YO11 2HG,"12,904.96",
Communities & Local Government,DCLG,11/04/2012,Work In Progress Pre-Cert 40373 Spend,Neighbourhoods,SCARBOROUGH BOROUGH COUNCIL,,,,7600001367,ERDF Claim - 41 - P3-YH,YO11 2HG,"1,706.03",
Communities & Local Government,DCLG,11/04/2012,Work In Progress Pre-Cert 40373 Spend,Neighbourhoods,SHEFFIELD CITY COUNCIL,,,,7600001369,ERDF Claim - 34 - P3-SY,S1 2SH,"1,085.00",
Communities & Local Government,DCLG,11/04/2012,Work In Progress Pre-Cert 40373 Spend,Neighbourhoods,SHEFFIELD CITY COUNCIL,,,,7600001371,ERDF Claim - 11 - P2-SY,S1 2SH,"31,532.25",
Communities & Local Government,DCLG,11/04/2012,Work In Progress Pre-Cert 40373 Spend,Neighbourhoods,SHEFFIELD HALLAM UNIVERSITY,,,,7600001372,ERDF Claim - 38 - P1-SY,S1 1WB,"31,943.26",
Communities & Local Government,DCLG,11/04/2012,Work In Progress Pre-Cert 40373 Spend,Neighbourhoods,SHEFFIELD HALLAM UNIVERSITY,,,,7600001373,ERDF Claim - 38 - P1-YH,S1 1WB,"10,585.78",
Communities & Local Government,DCLG,11/04/2012,Work In Progress Pre-Cert 40467 Spend,Neighbourhoods,HEBDEN BRIDGE COMMUNITY ASSOC LTD,,Micro,,7600001368,ERDF Claim - 25 - P2-YH,HX7 7BY,"58,299.25",
Communities & Local Government,DCLG,11/04/2012,Work In Progress Pre-Cert 40467 Spend,Neighbourhoods,LEWIS'S LIVERPOOL LLP,,,,7600001353,ERDF Claim - 5 - P4-MS,WA14 4DW,"10,438.00",
Communities & Local Government,DCLG,11/04/2012,Work In Progress Pre-Cert 40467 Spend,Neighbourhoods,LEWIS'S LIVERPOOL LLP,,,,7600001355,ERDF Claim - 6 - P4-MS,WA14 4DW,"123,812.00",
Communities & Local Government,DCLG,11/04/2012,Work In Progress Pre-Cert 40467 Spend,Neighbourhoods,SCARBOROUGH BOROUGH COUNCIL,,,,7600001366,ERDF Claim - 8 - P3-YH,YO11 2HG,"85,709.98",
Communities & Local Government,DCLG,12/04/2012,Agency Staff,Finance & Corporate Services,SBS GROUP (UK) LTD,,Large,,5106177747,Contractor Business Support Team P2P,EC1N 8TS,"2,508.00",
Communities & Local Government,DCLG,12/04/2012,Current (non AEF) Grants to Local Authorities,Localism,BARKING & DAGENHAM LB,,,,2600061764,Barking&Dagenham New Homes Bonus-Riot Recovery,RM10 7BY,"1,119.48",Yes
